 Batch Number,Vendor Name,Invoice Number, Line,Line Amount,Account Description,Issue Date ,Total Amount Paid,Department,Pro Class
150115C,HEALTH MANAGEMENT LIMITED=====,124940,1,565.27,OHS CONTRACT,02/02/2015,565.27,HR Excluding Secondments,Healthcare
270115E,*PREMIER VANGUARD LTD,718704,1,53.2,STATIONERY CONSUMABLES,02/02/2015,556.44,Operations Fire Stations,Stationery
270115E,*PREMIER VANGUARD LTD,718704,2,133,STATIONERY CONSUMABLES,02/02/2015,,Operations Fire Stations,Stationery
270115E,*PREMIER VANGUARD LTD,718704,3,53.2,STATIONERY CONSUMABLES,02/02/2015,,Operations Fire Stations,Stationery
270115E,*PREMIER VANGUARD LTD,718704,4,19,STATIONERY CONSUMABLES,02/02/2015,,Operations Fire Stations,Stationery
270115E,*PREMIER VANGUARD LTD,718704,5,66.72,STATIONERY CONSUMABLES,02/02/2015,,Operations Fire Stations,Stationery
270115E,*PREMIER VANGUARD LTD,718704,6,26.6,STATIONERY CONSUMABLES,02/02/2015,,Operations Fire Stations,Stationery
270115E,*PREMIER VANGUARD LTD,718704,7,46,STATIONERY CONSUMABLES,02/02/2015,,Operations Fire Stations,Stationery
270115E,*PREMIER VANGUARD LTD,718704,8,66.72,STATIONERY CONSUMABLES,02/02/2015,,Operations Fire Stations,Stationery
270115E,*PREMIER VANGUARD LTD,718704,9,92,STATIONERY CONSUMABLES,02/02/2015,,Operations Fire Stations,Stationery
280115C,FIRST PRODUCTS (SUSSEX) LTD,01/15 3,1,"1,219.50",OPERATIONAL EQUIP-PURCHASE,02/02/2015,"1,219.50",Operational Procedures, Fire & Rescue 
280115C,*SPRUE SAFETY PRODUCTS LTD====,1069021,1,"1,483.20",FIRE DETECTORS,02/02/2015,"1,483.20",Operations Non Fire Stations,Health & Safety
270115E,*SPRUE SAFETY PRODUCTS LTD====,1069060,1,618,FIRE DETECTORS,02/02/2015,618,Operations Non Fire Stations,Health & Safety
280115C,*SPRUE SAFETY PRODUCTS LTD====,1069357,1,"1,483.20",FIRE DETECTORS,02/02/2015,"1,483.20",Operations Non Fire Stations,Health & Safety
280115C,*SPRUE SAFETY PRODUCTS LTD====,1069359,1,"1,236.00",FIRE DETECTORS,02/02/2015,"1,236.00",Operations Non Fire Stations,Health & Safety
280115C,*SPRUE SAFETY PRODUCTS LTD====,1069362,1,741.6,FIRE DETECTORS,02/02/2015,741.6,Operations Non Fire Stations,Health & Safety
280115C,*SPRUE SAFETY PRODUCTS LTD====,1069365,1,370.8,FIRE DETECTORS,02/02/2015,370.8,Operations Non Fire Stations,Health & Safety
280115C,*SPRUE SAFETY PRODUCTS LTD====,1069539,1,494.4,FIRE DETECTORS,02/02/2015,494.4,Operations Non Fire Stations,Health & Safety
280115C,FIRSTFIRE LTD=================,13541,1,108,CLOTHING,02/02/2015,324,USAR Secondments,Clothing
280115C,FIRSTFIRE LTD=================,13541,2,108,CLOTHING,02/02/2015,,USAR Secondments,Clothing
280115C,FIRSTFIRE LTD=================,13541,3,108,CLOTHING,02/02/2015,,USAR Secondments,Clothing
140938,BOURNE CONSTRUCTION COMPANY,14/516,1,250,STRATEGIC (NON CYCLICAL),02/02/2015,450,Technical and Service Support,"Works - Construction, R&M"
140938,BOURNE CONSTRUCTION COMPANY,14/516,2,200,STRATEGIC (NON CYCLICAL),02/02/2015,,Technical and Service Support,"Works - Construction, R&M"
150115C,BUREAU VERITAS HS&E LTD=======,15000397,1,"96,450.00",SCIENTIFIC SERVICES,02/02/2015,"96,450.00",Procurement,Environmental Services
270115E,FALTECH LIMITED,1501-017,1,"5,497.70",RADIO,02/02/2015,"6,654.20",Information and Communication Technology,ICT
270115E,FALTECH LIMITED,1501-017,2,821.7,RADIO,02/02/2015,,Information and Communication Technology,ICT
270115E,FALTECH LIMITED,1501-017,3,162.5,RADIO,02/02/2015,,Information and Communication Technology,ICT
270115E,FALTECH LIMITED,1501-017,4,172.3,RADIO,02/02/2015,,Information and Communication Technology,ICT
210115C,AIRSERVICES(UK)===============,17644,1,143,REPAIR & MAINTENANCE,02/02/2015,258,Technical And Service Support,Fire & Rescue
210115C,AIRSERVICES(UK)===============,17644,2,91,REPAIR & MAINTENANCE,02/02/2015,,Technical And Service Support,Fire & Rescue
210115C,AIRSERVICES(UK)===============,17644,3,6,REPAIR & MAINTENANCE,02/02/2015,,Technical And Service Support,Fire & Rescue
210115C,AIRSERVICES(UK)===============,17644,4,18,REPAIR & MAINTENANCE,02/02/2015,,Technical And Service Support,Fire & Rescue
140940,ARKAS LIMITED=================,26228,1,"1,083.11",STRATEGIC (CYCLICAL),02/02/2015,"1,445.11",Technical And Service Support,"Works - Construction, R&M"
140940,ARKAS LIMITED=================,26228,2,214,STRATEGIC (CYCLICAL),02/02/2015,,Technical And Service Support,"Works - Construction, R&M"
140940,ARKAS LIMITED=================,26228,3,148,STRATEGIC (CYCLICAL),02/02/2015,,Technical And Service Support,"Works - Construction, R&M"
270115E,ARKAS LIMITED=================,26412,1,346,STRATEGIC (CYCLICAL),02/02/2015,"1,440.76",Technical And Service Support,"Works - Construction, R&M"
270115E,ARKAS LIMITED=================,26412,2,247,STRATEGIC (CYCLICAL),02/02/2015,,Technical And Service Support,"Works - Construction, R&M"
270115E,ARKAS LIMITED=================,26412,3,551.26,TACTICAL DAY TO DAY,02/02/2015,,Technical And Service Support,"Works - Construction, R&M"
270115E,ARKAS LIMITED=================,26412,4,296.5,STRATEGIC (CYCLICAL),02/02/2015,,Technical And Service Support,"Works - Construction, R&M"
270115E,ARKAS LIMITED=================,26413,1,924.28,STRATEGIC (CYCLICAL),02/02/2015,"2,053.73",Technical And Service Support,"Works - Construction, R&M"
270115E,ARKAS LIMITED=================,26413,2,464.5,STRATEGIC (CYCLICAL),02/02/2015,,Technical And Service Support,"Works - Construction, R&M"
270115E,ARKAS LIMITED=================,26413,3,500.45,STRATEGIC (CYCLICAL),02/02/2015,,Technical And Service Support,"Works - Construction, R&M"
270115E,ARKAS LIMITED=================,26413,4,164.5,STRATEGIC (CYCLICAL),02/02/2015,,Technical And Service Support,"Works - Construction, R&M"
270115E,ARKAS LIMITED=================,26414,1,376.15,STRATEGIC (CYCLICAL),02/02/2015,"1,108.88",Technical And Service Support,"Works - Construction, R&M"
270115E,ARKAS LIMITED=================,26414,2,198.7,STRATEGIC (CYCLICAL),02/02/2015,,Technical And Service Support,"Works - Construction, R&M"
270115E,ARKAS LIMITED=================,26414,3,181,STRATEGIC (CYCLICAL),02/02/2015,,Technical And Service Support,"Works - Construction, R&M"
270115E,ARKAS LIMITED=================,26414,4,353.03,STRATEGIC (CYCLICAL),02/02/2015,,Technical And Service Support,"Works - Construction, R&M"
270115E,ARKAS LIMITED=================,26415,1,183.89,STRATEGIC (CYCLICAL),02/02/2015,895.73,Technical And Service Support,"Works - Construction, R&M"
270115E,ARKAS LIMITED=================,26415,2,333.34,STRATEGIC (CYCLICAL),02/02/2015,,Technical And Service Support,"Works - Construction, R&M"
270115E,ARKAS LIMITED=================,26415,3,197.5,STRATEGIC (CYCLICAL),02/02/2015,,Technical And Service Support,"Works - Construction, R&M"
270115E,ARKAS LIMITED=================,26415,4,181,STRATEGIC (CYCLICAL),02/02/2015,,Technical And Service Support,"Works - Construction, R&M"
140940,ARKAS LIMITED=================,26427,1,108.23,STRATEGIC (CYCLICAL),02/02/2015,902.15,Technical And Service Support,"Works - Construction, R&M"
140940,ARKAS LIMITED=================,26427,2,167.62,STRATEGIC (CYCLICAL),02/02/2015,,Technical And Service Support,"Works - Construction, R&M"
140940,ARKAS LIMITED=================,26427,3,99,STRATEGIC (CYCLICAL),02/02/2015,,Technical And Service Support,"Works - Construction, R&M"
140940,ARKAS LIMITED=================,26427,4,527.3,STRATEGIC (CYCLICAL),02/02/2015,,Technical And Service Support,"Works - Construction, R&M"
140940,ARKAS LIMITED=================,26429,1,313,STRATEGIC (CYCLICAL),02/02/2015,576.5,Technical And Service Support,"Works - Construction, R&M"
140940,ARKAS LIMITED=================,26429,2,263.5,STRATEGIC (CYCLICAL),02/02/2015,,Technical And Service Support,"Works - Construction, R&M"
140940,ARKAS LIMITED=================,26500,1,276,STRATEGIC (CYCLICAL),02/02/2015,276,Technical And Service Support,"Works - Construction, R&M"
140940,ARKAS LIMITED=================,26518,1,148,STRATEGIC (CYCLICAL),02/02/2015,"1,309.61",Technical And Service Support,"Works - Construction, R&M"
140940,ARKAS LIMITED=================,26518,2,300.3,STRATEGIC (CYCLICAL),02/02/2015,,Technical And Service Support,"Works - Construction, R&M"
140940,ARKAS LIMITED=================,26518,3,214,STRATEGIC (CYCLICAL),02/02/2015,,Technical And Service Support,"Works - Construction, R&M"
140940,ARKAS LIMITED=================,26518,4,647.31,STRATEGIC (CYCLICAL),02/02/2015,,Technical And Service Support,"Works - Construction, R&M"
140940,ARKAS LIMITED=================,26519,1,214,STRATEGIC (CYCLICAL),02/02/2015,"1,730.15",Technical And Service Support,"Works - Construction, R&M"
140940,ARKAS LIMITED=================,26519,2,834.21,STRATEGIC (CYCLICAL),02/02/2015,,Technical And Service Support,"Works - Construction, R&M"
140940,ARKAS LIMITED=================,26519,3,253.44,STRATEGIC (CYCLICAL),02/02/2015,,Technical And Service Support,"Works - Construction, R&M"
140940,ARKAS LIMITED=================,26519,4,428.5,STRATEGIC (CYCLICAL),02/02/2015,,Technical And Service Support,"Works - Construction, R&M"
140940,ARKAS LIMITED=================,26520,1,317.48,STRATEGIC (CYCLICAL),02/02/2015,909.98,Technical And Service Support,"Works - Construction, R&M"
140940,ARKAS LIMITED=================,26520,2,181,STRATEGIC (CYCLICAL),02/02/2015,,Technical And Service Support,"Works - Construction, R&M"
140940,ARKAS LIMITED=================,26520,3,181,STRATEGIC (CYCLICAL),02/02/2015,,Technical And Service Support,"Works - Construction, R&M"
140940,ARKAS LIMITED=================,26520,4,230.5,STRATEGIC (CYCLICAL),02/02/2015,,Technical And Service Support,"Works - Construction, R&M"
140940,ARKAS LIMITED=================,26521,1,197.5,STRATEGIC (CYCLICAL),02/02/2015,"1,015.52",Technical And Service Support,"Works - Construction, R&M"
140940,ARKAS LIMITED=================,26521,2,214,STRATEGIC (CYCLICAL),02/02/2015,,Technical And Service Support,"Works - Construction, R&M"
140940,ARKAS LIMITED=================,26521,3,406.52,STRATEGIC (CYCLICAL),02/02/2015,,Technical And Service Support,"Works - Construction, R&M"
140940,ARKAS LIMITED=================,26521,4,197.5,STRATEGIC (CYCLICAL),02/02/2015,,Technical And Service Support,"Works - Construction, R&M"
140940,ARKAS LIMITED=================,26522,1,577.42,STRATEGIC (CYCLICAL),02/02/2015,"1,880.83",Technical And Service Support,"Works - Construction, R&M"
140940,ARKAS LIMITED=================,26522,2,301.13,STRATEGIC (CYCLICAL),02/02/2015,,Technical And Service Support,"Works - Construction, R&M"
140940,ARKAS LIMITED=================,26522,3,233.41,STRATEGIC (CYCLICAL),02/02/2015,,Technical And Service Support,"Works - Construction, R&M"
140940,ARKAS LIMITED=================,26522,4,768.87,STRATEGIC (CYCLICAL),02/02/2015,,Technical And Service Support,"Works - Construction, R&M"
140940,ARKAS LIMITED=================,26523,1,281.95,STRATEGIC (CYCLICAL),02/02/2015,"1,704.32",Technical And Service Support,"Works - Construction, R&M"
140940,ARKAS LIMITED=================,26523,2,887.68,STRATEGIC (CYCLICAL),02/02/2015,,Technical And Service Support,"Works - Construction, R&M"
140940,ARKAS LIMITED=================,26523,3,197.5,STRATEGIC (CYCLICAL),02/02/2015,,Technical And Service Support,"Works - Construction, R&M"
140940,ARKAS LIMITED=================,26523,4,337.19,STRATEGIC (CYCLICAL),02/02/2015,,Technical And Service Support,"Works - Construction, R&M"
140940,ARKAS LIMITED=================,26524,1,216.05,STRATEGIC (CYCLICAL),02/02/2015,880.95,Technical And Service Support,"Works - Construction, R&M"
140940,ARKAS LIMITED=================,26524,2,214,STRATEGIC (CYCLICAL),02/02/2015,,Technical And Service Support,"Works - Construction, R&M"
140940,ARKAS LIMITED=================,26524,3,269.9,STRATEGIC (CYCLICAL),02/02/2015,,Technical And Service Support,"Works - Construction, R&M"
140940,ARKAS LIMITED=================,26524,4,181,STRATEGIC (CYCLICAL),02/02/2015,,Technical And Service Support,"Works - Construction, R&M"
140940,ARKAS LIMITED=================,26525,1,348.4,STRATEGIC (CYCLICAL),02/02/2015,"1,369.74",Technical And Service Support,"Works - Construction, R&M"
140940,ARKAS LIMITED=================,26525,2,201.39,STRATEGIC (CYCLICAL),02/02/2015,,Technical And Service Support,"Works - Construction, R&M"
140940,ARKAS LIMITED=================,26525,3,655.45,STRATEGIC (CYCLICAL),02/02/2015,,Technical And Service Support,"Works - Construction, R&M"
140940,ARKAS LIMITED=================,26525,4,164.5,STRATEGIC (CYCLICAL),02/02/2015,,Technical And Service Support,"Works - Construction, R&M"
140940,ARKAS LIMITED=================,26526,1,276.11,STRATEGIC (CYCLICAL),02/02/2015,763.66,Technical And Service Support,"Works - Construction, R&M"
140940,ARKAS LIMITED=================,26526,2,247,STRATEGIC (CYCLICAL),02/02/2015,,Technical And Service Support,"Works - Construction, R&M"
140940,ARKAS LIMITED=================,26526,3,240.55,STRATEGIC (CYCLICAL),02/02/2015,,Technical And Service Support,"Works - Construction, R&M"
140940,ARKAS LIMITED=================,26527,1,230.5,STRATEGIC (CYCLICAL),02/02/2015,"1,239.97",Technical And Service Support,"Works - Construction, R&M"
140940,ARKAS LIMITED=================,26527,2,183.03,STRATEGIC (CYCLICAL),02/02/2015,,Technical And Service Support,"Works - Construction, R&M"
140940,ARKAS LIMITED=================,26527,3,826.44,STRATEGIC (CYCLICAL),02/02/2015,,Technical And Service Support,"Works - Construction, R&M"
800057920,ADECCO UK LIMITED=============,26934355,1,"1,445.40",FRS STAFF AGENCY,02/02/2015,"1,445.40",National Operational Guidance Project,Human Resources
800057921,ADECCO UK LIMITED=============,26934356,1,"1,445.40",FRS STAFF AGENCY,02/02/2015,"1,445.40",National Operational Guidance Project,Human Resources
800057936,ADECCO UK LIMITED=============,26963829,1,900.2,FRS STAFF AGENCY,02/02/2015,900.2,National Operational Guidance Project,Human Resources
800057919,ADECCO UK LIMITED=============,26982879,1,"1,510.07",FRS STAFF AGENCY,02/02/2015,"1,510.07",Legal & Democratic Services,Human Resources
800056687,ADECCO UK LIMITED=============,27006046,1,"1,674.75",FRS STAFF AGENCY,02/02/2015,"1,674.75",Information and Communication Technology,Human Resources
800057933,ADECCO UK LIMITED=============,27019657,1,498.6,FRS STAFF AGENCY,02/02/2015,498.6,Legal & Democratic Services,Human Resources
800057826,ADECCO UK LIMITED=============,27037588,1,"1,281.25",FRS STAFF AGENCY,02/02/2015,"1,281.25",Information and Communication Technology,Human Resources
800057837,ADECCO UK LIMITED=============,27040158,1,439.6,FRS STAFF AGENCY,02/02/2015,439.6,Operations Non Fire Stations,Human Resources
800057857,ADECCO UK LIMITED=============,27040178,1,"1,835.15",FRS STAFF AGENCY,02/02/2015,"1,835.15",Vehicle & Equipment Programme,Human Resources
800057861,ADECCO UK LIMITED=============,27040182,1,624.4,FRS STAFF AGENCY,02/02/2015,624.4,Operations Non Fire Stations,Human Resources
280115C,BRISTOL UNIFORMS LTD==========,282721,1,"3,101.02",CLOTHING,02/02/2015,"3,101.02",Operations Non Fire Stations,Clothing
270115E,DRAEGER SAFETY UK LIMITED=====,2910004339,1,381.9,PROTECTIVE EQUIPT - PARTS,02/02/2015,381.9,Technical and Service Support,Fire & Rescue
270115E,DRAEGER SAFETY UK LIMITED=====,2910004778,1,"1,062.00",PROTECTIVE EQUIPT - PARTS,02/02/2015,"1,062.00",Technical and Service Support,Fire & Rescue
270115E,DRAEGER SAFETY UK LIMITED=====,2910004779,1,407.7,PROTECTIVE EQUIPT - PARTS,02/02/2015,407.7,Technical and Service Support,Fire & Rescue
270115E,DRAEGER SAFETY UK LIMITED=====,2910004979,1,"2,694.60",PROTECTIVE EQUIPT - PARTS,02/02/2015,"2,694.60",Technical and Service Support,Fire & Rescue
270115E,DRAEGER SAFETY UK LIMITED=====,2910004981,1,"13,972.00",PROTECTIVE EQUIPT - PARTS,02/02/2015,"13,972.00",Technical and Service Support,Fire & Rescue
270115E,DRAEGER SAFETY UK LIMITED=====,2910005352,1,"8,882.20",PROTECTIVE EQUIPT - PARTS,02/02/2015,"8,882.20",Technical and Service Support,Fire & Rescue
200115E,DRAEGER SAFETY UK LIMITED=====,2910005501,1,43,PROTECTIVE EQUIPT - PARTS,02/02/2015,"2,284.95",Technical and Service Support,Fire & Rescue
200115E,DRAEGER SAFETY UK LIMITED=====,2910005501,2,76.6,PROTECTIVE EQUIPT - PARTS,02/02/2015,,Technical and Service Support,Fire & Rescue
200115E,DRAEGER SAFETY UK LIMITED=====,2910005501,3,277.75,PROTECTIVE EQUIPT - PARTS,02/02/2015,,Technical and Service Support,Fire & Rescue
200115E,DRAEGER SAFETY UK LIMITED=====,2910005501,4,760.4,PROTECTIVE EQUIPT - PARTS,02/02/2015,,Technical and Service Support,Fire & Rescue
200115E,DRAEGER SAFETY UK LIMITED=====,2910005501,5,452,PROTECTIVE EQUIPT - PARTS,02/02/2015,,Technical and Service Support,Fire & Rescue
200115E,DRAEGER SAFETY UK LIMITED=====,2910005501,6,584,PROTECTIVE EQUIPT - PARTS,02/02/2015,,Technical and Service Support,Fire & Rescue
200115E,DRAEGER SAFETY UK LIMITED=====,2910005501,7,88,PROTECTIVE EQUIPT - PARTS,02/02/2015,,Technical and Service Support,Fire & Rescue
200115E,DRAEGER SAFETY UK LIMITED=====,2910005501,8,3.2,PROTECTIVE EQUIPT - PARTS,02/02/2015,,Technical and Service Support,Fire & Rescue
140941,STORM TECHNOLOGIES============,307402,1,289.2,ACQUISITIONS,02/02/2015,289.2,Information and Communication Technology,ICT
280115C,HUNTERS CONTRACTS LIMITED,348613,1,334.3,OFFICE FURNITURE,02/02/2015,334.3,Operations Fire Stations,Furniture
270115E,UNDERSTANDING RECRUITMENT,3537,1,"4,140.00",FRS STAFF AGENCY,02/02/2015,"4,140.00",Information and Communication Technology,Human Resources
150115C,UNDERSTANDING RECRUITMENT,3591,1,"5,040.00",CONSULTANTS,02/02/2015,"5,040.00",Information and Communication Technology,Human Resources
140941,COMPUTACENTRE================,3880368696,1,"17,900.10",MAINTENANCE & SUPPORT,02/02/2015,"17,900.10",Information and Communication Technology,ICT
140941,COMPUTACENTRE================,3880369775,1,"2,097.60",MAINTENANCE & SUPPORT,02/02/2015,"2,097.60",Information and Communication Technology,ICT
270115E,PLASTOR=======================,38983,1,644.4,REPAIR & MAINTENANCE,02/02/2015,"2,049.00",Technical And Service Support,Fire & Rescue
270115E,PLASTOR=======================,38983,2,"1,404.60",REPAIR & MAINTENANCE,02/02/2015,,Technical And Service Support,Fire & Rescue
270115E,PLASTOR=======================,39985,1,214.8,OFFICE EQUIPMENT,02/02/2015,833.95,Technical And Service Support,Fire & Rescue
270115E,PLASTOR=======================,39985,2,468.2,OFFICE EQUIPMENT,02/02/2015,,Technical And Service Support,Fire & Rescue
270115E,PLASTOR=======================,39985,3,141,OFFICE EQUIPMENT,02/02/2015,,Technical And Service Support,Fire & Rescue
270115E,PLASTOR=======================,39985,4,9.95,REPAIR & MAINTENANCE,02/02/2015,,Technical And Service Support,Fire & Rescue
270115E,CANON (UK) LTD===============,401607302,1,"1,494.06",OFFICE EQUIPMENT,02/02/2015,"1,494.06",Technical And Service Support,ICT
701627,BRITISH GAS BUSINESS==========,5501512141,1,"1,099.16",ELECTRICITY,02/02/2015,"1,099.16",Technical And Service Support,Utilities
800057663,*GREENHAM TRADING LTD=========,5670165,1,278.94,HYGIENE,02/02/2015,278.94,Technical And Service Support,Cleaning & Janitorial
270115E,GAS & AIR SERVICES (UK)=======,6556,1,"5,880.00",REPAIR & MAINTENANCE,02/02/2015,"5,880.00",Technical And Service Support,Building Constr Materials
270115E,GAS & AIR SERVICES (UK)=======,6559,1,"1,321.42",REPAIR & MAINTENANCE,02/02/2015,"1,321.42",Technical And Service Support,Building Constr Materials
280115C,CANON (UK) LTD===============,770507600,1,225.06,OFFICE EQUIPMENT,02/02/2015,"1,125.30",Regulatory Fire Safety,ICT
280115C,CANON (UK) LTD===============,770507600,2,225.06,OFFICE EQUIPMENT,02/02/2015,,Operations Non Fire Stations,ICT
280115C,CANON (UK) LTD===============,770507600,3,225.06,OFFICE EQUIPMENT,02/02/2015,,Community Safety Delivery,ICT
280115C,CANON (UK) LTD===============,770507600,4,225.06,OFFICE EQUIPMENT,02/02/2015,,Operations Fire Stations,ICT
280115C,CANON (UK) LTD===============,770507600,5,225.06,OFFICE EQUIPMENT,02/02/2015,,Operations Non Fire Stations,ICT
140940,TWO SERVICES LTD==============,80336,1,264.5,TACTICAL DAY TO DAY,02/02/2015,264.5,Technical And Service Support,Catering
190115C,*OFFICE DEPOT UK LTD,963840037,1,"1,190.00",STATIONERY CONSUMABLES,02/02/2015,"1,190.00",Technical And Service Support,Stationery
270115E,MULTITONE ELECTRONICS PLC=====,98556/98967,1,279.5,RADIO,02/02/2015,862.5,Information and Communication Technology,ICT
270115E,MULTITONE ELECTRONICS PLC=====,98556/98967,2,134.5,RADIO,02/02/2015,,Information and Communication Technology,ICT
270115E,MULTITONE ELECTRONICS PLC=====,98556/98967,3,448.5,RADIO,02/02/2015,,Information and Communication Technology,ICT
270115E,PITNEY BOWES PURCHASE POWER,BC306396,1,"4,040.00",POSTAL SERVICES,02/02/2015,"4,040.00",Strategy & Performance,Mail Services
140940,GMO GLOBALSIGN LTD============,BM2014000247435,1,"1,041.00",MAINTENANCE & SUPPORT,02/02/2015,"1,041.00",Information and Communication Technology,ICT
270115E,SURVITEC SERVICE &DISTRIBUTION,CD30808040,1,118.6,PROTECTIVE EQUIPT - PARTS,02/02/2015,473.8,Technical and Service Support,Fire & Rescue
270115E,SURVITEC SERVICE &DISTRIBUTION,CD30808040,2,340.2,PROTECTIVE EQUIPT - PARTS,02/02/2015,,Technical and Service Support,Fire & Rescue
270115E,SURVITEC SERVICE &DISTRIBUTION,CD30808040,3,15,REPAIR & MAINTENANCE,02/02/2015,,Technical And Service Support,Fire & Rescue
800057866,ALLSTAR BUSINESS SOLUTIONS LTD,E2004149466,1,729.28,FUEL,02/02/2015,"15,685.89",Operations Non Fire Stations,Vehicle Management
800057866,ALLSTAR BUSINESS SOLUTIONS LTD,E2004149466,2,553.59,FUEL,02/02/2015,,Operations Fire Stations,Vehicle Management
800057866,ALLSTAR BUSINESS SOLUTIONS LTD,E2004149466,3,455.65,FUEL,02/02/2015,,Operations Fire Stations,Vehicle Management
800057866,ALLSTAR BUSINESS SOLUTIONS LTD,E2004149466,4,438.24,FUEL,02/02/2015,,Operations Fire Stations,Vehicle Management
800057866,ALLSTAR BUSINESS SOLUTIONS LTD,E2004149466,5,403.35,FUEL,02/02/2015,,Procurement,Vehicle Management
800057866,ALLSTAR BUSINESS SOLUTIONS LTD,E2004149466,6,361.93,FUEL,02/02/2015,,Operations Fire Stations,Vehicle Management
800057866,ALLSTAR BUSINESS SOLUTIONS LTD,E2004149466,7,310.22,FUEL,02/02/2015,,Operations Fire Stations,Vehicle Management
800057866,ALLSTAR BUSINESS SOLUTIONS LTD,E2004149466,8,290.98,FUEL,02/02/2015,,Operations Fire Stations,Vehicle Management
800057866,ALLSTAR BUSINESS SOLUTIONS LTD,E2004149466,9,286.73,FUEL,02/02/2015,,Operations Fire Stations,Vehicle Management
800057866,ALLSTAR BUSINESS SOLUTIONS LTD,E2004149466,10,275.32,FUEL,02/02/2015,,Operations Fire Stations,Vehicle Management
800057866,ALLSTAR BUSINESS SOLUTIONS LTD,E2004149466,11,275.21,FUEL,02/02/2015,,Operations Fire Stations,Vehicle Management
800057866,ALLSTAR BUSINESS SOLUTIONS LTD,E2004149466,12,268.57,FUEL,02/02/2015,,Operations Fire Stations,Vehicle Management
800057866,ALLSTAR BUSINESS SOLUTIONS LTD,E2004149466,13,258.49,FUEL,02/02/2015,,Operations Fire Stations,Vehicle Management
800057866,ALLSTAR BUSINESS SOLUTIONS LTD,E2004149466,14,250.5,FUEL,02/02/2015,,Operations Fire Stations,Vehicle Management
800057866,ALLSTAR BUSINESS SOLUTIONS LTD,E2004149466,15,244.28,FUEL,02/02/2015,,Operations Fire Stations,Vehicle Management
800057866,ALLSTAR BUSINESS SOLUTIONS LTD,E2004149466,16,241.18,FUEL,02/02/2015,,Operations Fire Stations,Vehicle Management
800057866,ALLSTAR BUSINESS SOLUTIONS LTD,E2004149466,17,240.86,FUEL,02/02/2015,,Regulatory Fire Safety,Vehicle Management
800057866,ALLSTAR BUSINESS SOLUTIONS LTD,E2004149466,18,239.88,FUEL,02/02/2015,,Operations Fire Stations,Vehicle Management
800057866,ALLSTAR BUSINESS SOLUTIONS LTD,E2004149466,19,236.1,FUEL,02/02/2015,,Operations Fire Stations,Vehicle Management
800057866,ALLSTAR BUSINESS SOLUTIONS LTD,E2004149466,20,235.09,FUEL,02/02/2015,,Operations Fire Stations,Vehicle Management
800057866,ALLSTAR BUSINESS SOLUTIONS LTD,E2004149466,21,233.87,FUEL,02/02/2015,,Operations Fire Stations,Vehicle Management
800057866,ALLSTAR BUSINESS SOLUTIONS LTD,E2004149466,22,233.28,FUEL,02/02/2015,,Operations Fire Stations,Vehicle Management
800057866,ALLSTAR BUSINESS SOLUTIONS LTD,E2004149466,23,224.96,FUEL,02/02/2015,,Operations Fire Stations,Vehicle Management
800057866,ALLSTAR BUSINESS SOLUTIONS LTD,E2004149466,24,214,FUEL,02/02/2015,,Operations Fire Stations,Vehicle Management
800057866,ALLSTAR BUSINESS SOLUTIONS LTD,E2004149466,25,212.48,FUEL,02/02/2015,,Operations Fire Stations,Vehicle Management
800057866,ALLSTAR BUSINESS SOLUTIONS LTD,E2004149466,26,209.98,FUEL,02/02/2015,,Operations Fire Stations,Vehicle Management
800057866,ALLSTAR BUSINESS SOLUTIONS LTD,E2004149466,27,206.01,FUEL,02/02/2015,,Operations Fire Stations,Vehicle Management
800057866,ALLSTAR BUSINESS SOLUTIONS LTD,E2004149466,28,205.04,FUEL,02/02/2015,,Operations Fire Stations,Vehicle Management
800057866,ALLSTAR BUSINESS SOLUTIONS LTD,E2004149466,29,197.65,FUEL,02/02/2015,,Operations Fire Stations,Vehicle Management
800057866,ALLSTAR BUSINESS SOLUTIONS LTD,E2004149466,30,196.71,FUEL,02/02/2015,,Operations Fire Stations,Vehicle Management
800057866,ALLSTAR BUSINESS SOLUTIONS LTD,E2004149466,31,192.05,FUEL,02/02/2015,,Operations Fire Stations,Vehicle Management
800057866,ALLSTAR BUSINESS SOLUTIONS LTD,E2004149466,32,185.92,FUEL,02/02/2015,,Operations Fire Stations,Vehicle Management
800057866,ALLSTAR BUSINESS SOLUTIONS LTD,E2004149466,33,183.07,FUEL,02/02/2015,,Operations Fire Stations,Vehicle Management
800057866,ALLSTAR BUSINESS SOLUTIONS LTD,E2004149466,34,182.97,FUEL,02/02/2015,,Information and Communication Technology,Vehicle Management
800057866,ALLSTAR BUSINESS SOLUTIONS LTD,E2004149466,35,173.46,FUEL,02/02/2015,,Operations Fire Stations,Vehicle Management
800057866,ALLSTAR BUSINESS SOLUTIONS LTD,E2004149466,36,169.33,FUEL,02/02/2015,,Operations Fire Stations,Vehicle Management
800057866,ALLSTAR BUSINESS SOLUTIONS LTD,E2004149466,37,163.83,FUEL,02/02/2015,,Operations Fire Stations,Vehicle Management
800057866,ALLSTAR BUSINESS SOLUTIONS LTD,E2004149466,38,159.28,FUEL,02/02/2015,,Operations Fire Stations,Vehicle Management
800057866,ALLSTAR BUSINESS SOLUTIONS LTD,E2004149466,39,150.86,FUEL,02/02/2015,,Operations Fire Stations,Vehicle Management
800057866,ALLSTAR BUSINESS SOLUTIONS LTD,E2004149466,40,150.2,FUEL,02/02/2015,,Operations Fire Stations,Vehicle Management
800057866,ALLSTAR BUSINESS SOLUTIONS LTD,E2004149466,41,148.14,FUEL,02/02/2015,,Operations Fire Stations,Vehicle Management
800057866,ALLSTAR BUSINESS SOLUTIONS LTD,E2004149466,42,144.04,FUEL,02/02/2015,,Operations Fire Stations,Vehicle Management
800057866,ALLSTAR BUSINESS SOLUTIONS LTD,E2004149466,43,144.03,FUEL,02/02/2015,,Operations Fire Stations,Vehicle Management
800057866,ALLSTAR BUSINESS SOLUTIONS LTD,E2004149466,44,143.25,FUEL,02/02/2015,,Operations Fire Stations,Vehicle Management
800057866,ALLSTAR BUSINESS SOLUTIONS LTD,E2004149466,45,137.26,FUEL,02/02/2015,,Technical And Service Support,Vehicle Management
800057866,ALLSTAR BUSINESS SOLUTIONS LTD,E2004149466,46,135.89,FUEL,02/02/2015,,CBRN RRT,Vehicle Management
800057866,ALLSTAR BUSINESS SOLUTIONS LTD,E2004149466,47,135.44,FUEL,02/02/2015,,Operations Fire Stations,Vehicle Management
800057866,ALLSTAR BUSINESS SOLUTIONS LTD,E2004149466,48,133.56,FUEL,02/02/2015,,Operations Fire Stations,Vehicle Management
800057866,ALLSTAR BUSINESS SOLUTIONS LTD,E2004149466,49,126.83,FUEL,02/02/2015,,Operations Fire Stations,Vehicle Management
800057866,ALLSTAR BUSINESS SOLUTIONS LTD,E2004149466,50,126.65,FUEL,02/02/2015,,Command Units,Vehicle Management
800057866,ALLSTAR BUSINESS SOLUTIONS LTD,E2004149466,51,124.79,FUEL,02/02/2015,,Operations Fire Stations,Vehicle Management
800057866,ALLSTAR BUSINESS SOLUTIONS LTD,E2004149466,52,124.51,FUEL,02/02/2015,,Operations Fire Stations,Vehicle Management
800057866,ALLSTAR BUSINESS SOLUTIONS LTD,E2004149466,53,121.32,FUEL,02/02/2015,,Operations Fire Stations,Vehicle Management
800057866,ALLSTAR BUSINESS SOLUTIONS LTD,E2004149466,54,121.14,FUEL,02/02/2015,,Operations Fire Stations,Vehicle Management
800057866,ALLSTAR BUSINESS SOLUTIONS LTD,E2004149466,55,120.8,FUEL,02/02/2015,,Command Units,Vehicle Management
800057866,ALLSTAR BUSINESS SOLUTIONS LTD,E2004149466,56,119.83,FUEL,02/02/2015,,Operations Fire Stations,Vehicle Management
800057866,ALLSTAR BUSINESS SOLUTIONS LTD,E2004149466,57,113.09,FUEL,02/02/2015,,Operations Fire Stations,Vehicle Management
800057866,ALLSTAR BUSINESS SOLUTIONS LTD,E2004149466,58,110.56,FUEL,02/02/2015,,Operations Fire Stations,Vehicle Management
800057866,ALLSTAR BUSINESS SOLUTIONS LTD,E2004149466,59,108.23,FUEL,02/02/2015,,Operations Fire Stations,Vehicle Management
800057866,ALLSTAR BUSINESS SOLUTIONS LTD,E2004149466,60,103.63,FUEL,02/02/2015,,Operations Fire Stations,Vehicle Management
800057866,ALLSTAR BUSINESS SOLUTIONS LTD,E2004149466,61,102.32,FUEL,02/02/2015,,Operations Fire Stations,Vehicle Management
800057866,ALLSTAR BUSINESS SOLUTIONS LTD,E2004149466,62,101.64,FUEL,02/02/2015,,Operations Fire Stations,Vehicle Management
800057866,ALLSTAR BUSINESS SOLUTIONS LTD,E2004149466,63,100.55,FUEL,02/02/2015,,Operations Fire Stations,Vehicle Management
800057866,ALLSTAR BUSINESS SOLUTIONS LTD,E2004149466,64,98.03,FUEL,02/02/2015,,Operations Fire Stations,Vehicle Management
800057866,ALLSTAR BUSINESS SOLUTIONS LTD,E2004149466,65,97.56,FUEL,02/02/2015,,Command Units,Vehicle Management
800057866,ALLSTAR BUSINESS SOLUTIONS LTD,E2004149466,66,96.66,FUEL,02/02/2015,,Operations Fire Stations,Vehicle Management
800057866,ALLSTAR BUSINESS SOLUTIONS LTD,E2004149466,67,94.96,FUEL,02/02/2015,,Operations Fire Stations,Vehicle Management
800057866,ALLSTAR BUSINESS SOLUTIONS LTD,E2004149466,68,94.14,FUEL,02/02/2015,,Operations Fire Stations,Vehicle Management
800057866,ALLSTAR BUSINESS SOLUTIONS LTD,E2004149466,69,91.57,FUEL,02/02/2015,,Operations Fire Stations,Vehicle Management
800057866,ALLSTAR BUSINESS SOLUTIONS LTD,E2004149466,70,89.99,FUEL,02/02/2015,,Operations Fire Stations,Vehicle Management
800057866,ALLSTAR BUSINESS SOLUTIONS LTD,E2004149466,71,89.74,FUEL,02/02/2015,,Operations Fire Stations,Vehicle Management
800057866,ALLSTAR BUSINESS SOLUTIONS LTD,E2004149466,72,83.72,FUEL,02/02/2015,,Operations Fire Stations,Vehicle Management
800057866,ALLSTAR BUSINESS SOLUTIONS LTD,E2004149466,73,80.77,FUEL,02/02/2015,,Operations Fire Stations,Vehicle Management
800057866,ALLSTAR BUSINESS SOLUTIONS LTD,E2004149466,74,77.08,FUEL,02/02/2015,,Operational Procedures,Vehicle Management
800057866,ALLSTAR BUSINESS SOLUTIONS LTD,E2004149466,75,75.85,FUEL,02/02/2015,,Operations Fire Stations,Vehicle Management
800057866,ALLSTAR BUSINESS SOLUTIONS LTD,E2004149466,76,71.21,FUEL,02/02/2015,,Operations Fire Stations,Vehicle Management
800057866,ALLSTAR BUSINESS SOLUTIONS LTD,E2004149466,77,70.04,FUEL,02/02/2015,,Operations Fire Stations,Vehicle Management
800057866,ALLSTAR BUSINESS SOLUTIONS LTD,E2004149466,78,70,FUEL,02/02/2015,,Operational Resilience,Vehicle Management
800057866,ALLSTAR BUSINESS SOLUTIONS LTD,E2004149466,79,69.17,FUEL,02/02/2015,,Command Units,Vehicle Management
800057866,ALLSTAR BUSINESS SOLUTIONS LTD,E2004149466,80,68.91,FUEL,02/02/2015,,Operations Fire Stations,Vehicle Management
800057866,ALLSTAR BUSINESS SOLUTIONS LTD,E2004149466,81,68.41,FUEL,02/02/2015,,Operations Fire Stations,Vehicle Management
800057866,ALLSTAR BUSINESS SOLUTIONS LTD,E2004149466,82,67.49,FUEL,02/02/2015,,Command Units,Vehicle Management
800057866,ALLSTAR BUSINESS SOLUTIONS LTD,E2004149466,83,66.07,FUEL,02/02/2015,,Operations Non Fire Stations,Vehicle Management
800057866,ALLSTAR BUSINESS SOLUTIONS LTD,E2004149466,84,63.66,FUEL,02/02/2015,,Operations Fire Stations,Vehicle Management
800057866,ALLSTAR BUSINESS SOLUTIONS LTD,E2004149466,85,63.11,FUEL,02/02/2015,,Operations Fire Stations,Vehicle Management
800057866,ALLSTAR BUSINESS SOLUTIONS LTD,E2004149466,86,62.77,FUEL,02/02/2015,,Operations Fire Stations,Vehicle Management
800057866,ALLSTAR BUSINESS SOLUTIONS LTD,E2004149466,87,58.19,FUEL,02/02/2015,,Operations Non Fire Stations,Vehicle Management
800057866,ALLSTAR BUSINESS SOLUTIONS LTD,E2004149466,88,57.9,FUEL,02/02/2015,,Operations Non Fire Stations,Vehicle Management
800057866,ALLSTAR BUSINESS SOLUTIONS LTD,E2004149466,89,56.95,FUEL,02/02/2015,,Command Units,Vehicle Management
800057866,ALLSTAR BUSINESS SOLUTIONS LTD,E2004149466,90,55.64,FUEL,02/02/2015,,Command Units,Vehicle Management
800057866,ALLSTAR BUSINESS SOLUTIONS LTD,E2004149466,91,52.45,FUEL,02/02/2015,,Operations Fire Stations,Vehicle Management
800057866,ALLSTAR BUSINESS SOLUTIONS LTD,E2004149466,92,47.46,FUEL,02/02/2015,,Command Units,Vehicle Management
800057866,ALLSTAR BUSINESS SOLUTIONS LTD,E2004149466,93,44.84,FUEL,02/02/2015,,Operations Fire Stations,Vehicle Management
800057866,ALLSTAR BUSINESS SOLUTIONS LTD,E2004149466,94,44.07,FUEL,02/02/2015,,Operations Fire Stations,Vehicle Management
800057866,ALLSTAR BUSINESS SOLUTIONS LTD,E2004149466,95,43.35,FUEL,02/02/2015,,LIFE - LFB Funded,Vehicle Management
800057866,ALLSTAR BUSINESS SOLUTIONS LTD,E2004149466,96,38.93,FUEL,02/02/2015,,Operations Fire Stations,Vehicle Management
800057866,ALLSTAR BUSINESS SOLUTIONS LTD,E2004149466,97,33.38,FUEL,02/02/2015,,Technical And Service Support,Vehicle Management
800057866,ALLSTAR BUSINESS SOLUTIONS LTD,E2004149466,98,28.19,FUEL,02/02/2015,,Operations Fire Stations,Vehicle Management
800057866,ALLSTAR BUSINESS SOLUTIONS LTD,E2004149466,99,25.73,FUEL,02/02/2015,,Operations Fire Stations,Vehicle Management
190115C,HALL FUELS,I07302727,1,"2,670.60",FUEL,02/02/2015,"2,670.60",Operations Fire Stations,Vehicle Management
270115E,BABCOCK CIVIL INFRASTRUCTURE,II5000899,1,300,STRATEGIC (NON CYCLICAL),02/02/2015,300,Technical And Service Support,"Works - Construction, R&M"
270115E,BABCOCK CIVIL INFRASTRUCTURE,II5000900,1,541.32,STRATEGIC (NON CYCLICAL),02/02/2015,541.32,Technical And Service Support,"Works - Construction, R&M"
270115E,BABCOCK CIVIL INFRASTRUCTURE,II5000901,1,483.73,STRATEGIC (NON CYCLICAL),02/02/2015,483.73,Technical And Service Support,"Works - Construction, R&M"
270115E,BABCOCK CIVIL INFRASTRUCTURE,II5000902,1,"1,039.62",STRATEGIC (NON CYCLICAL),02/02/2015,"1,039.62",Technical And Service Support,"Works - Construction, R&M"
270115E,BABCOCK CIVIL INFRASTRUCTURE,II5000903,1,"2,168.83",STRATEGIC (NON CYCLICAL),02/02/2015,"2,168.83",Technical And Service Support,"Works - Construction, R&M"
270115E,BABCOCK CIVIL INFRASTRUCTURE,II5000904,1,"2,026.29",STRATEGIC (NON CYCLICAL),02/02/2015,"2,026.29",Technical And Service Support,"Works - Construction, R&M"
260115G,BENNETT MECHANICAL SERVICES LT,L5084,1,"43,126.44",PROF FEES-MISCELLANEOUS,02/02/2015,"43,126.44",Technical and Service Support,Building Constr Materials
270115E,ETC VENUES LTD================,MO-98083,1,472,PROFESSIONAL DEVELOPMENT,02/02/2015,472,National Operational Guidance Project,Human Resources
280115C,KCOM GROUP====================,PA171533,1,"2,719.86",DEVELOPMT  EXP-COMPUTER CABLES,02/02/2015,"6,147.52",Technical and Service Support,ICT
280115C,KCOM GROUP====================,PA171533,2,591.84,DEVELOPMT  EXP-COMPUTER CABLES,02/02/2015,,Technical and Service Support,ICT
280115C,KCOM GROUP====================,PA171533,3,781.82,DEVELOPMT  EXP-COMPUTER CABLES,02/02/2015,,Technical and Service Support,ICT
280115C,KCOM GROUP====================,PA171533,4,804,DEVELOPMT  EXP-COMPUTER CABLES,02/02/2015,,Technical and Service Support,ICT
280115C,KCOM GROUP====================,PA171533,5,"1,250.00",DEVELOPMT  EXP-COMPUTER CABLES,02/02/2015,,Technical and Service Support,ICT
140940,RADIOCOMS SYSTEMS LIMITED=====,RSLSI14007109,1,595,RADIO,02/02/2015,595,Information and Communication Technology,ICT
270115E,SABRE SAFETY LTD,SUKIN14241,1,249.9,PROTECTIVE EQUIPT - PARTS,02/02/2015,446.2,Technical and Service Support, Fire & Rescue 
270115E,SABRE SAFETY LTD,SUKIN14241,2,183.8,PROTECTIVE EQUIPT - PARTS,02/02/2015,,Technical and Service Support, Fire & Rescue 
270115E,SABRE SAFETY LTD,SUKIN14241,3,12.5,REPAIR & MAINTENANCE,02/02/2015,,Technical And Service Support, Fire & Rescue 
270115E,SPEAKERS TRUST,WEB/004049,1,257.5,PROFESSIONAL DEVELOPMENT,02/02/2015,772.5,LIFE - LFB Funded,Human Resources
270115E,SPEAKERS TRUST,WEB/004049,2,257.5,PROFESSIONAL DEVELOPMENT,02/02/2015,,LIFE - LFB Funded,Human Resources
270115E,SPEAKERS TRUST,WEB/004049,3,257.5,PROFESSIONAL DEVELOPMENT,02/02/2015,,LIFE - LFB Funded,Human Resources
020215C,APPLUS LLT,320,1,"3,750.00",GENERAL,03/02/2015,"3,750.00",Procurement,Vehicle Management
020215C,APPLUS LLT,331,1,"3,750.00",GENERAL,03/02/2015,"3,750.00",Procurement,Vehicle Management
020215C,APPLUS LLT,15002,1,"3,750.00",GENERAL,04/02/2015,"3,750.00",Procurement,Vehicle Management
140944,THE SALVATION ARMY============,VATC141205,1,456,REFRESHMENTS,04/02/2015,456,Operational Procedures,Social Community Care S&S
210115C,HEALTH MANAGEMENT LIMITED=====,125193,1,600,THIRD PARTY REPORTS,05/02/2015,600,HR Excluding Secondments,Healthcare
280115C,SYNERGY HEALTH LAB SERVICE LTD,127584,1,190,DRUG & ALCOHOL TESTS,05/02/2015,380,HR Excluding Secondments,Healthcare
280115C,SYNERGY HEALTH LAB SERVICE LTD,127584,2,190,DRUG & ALCOHOL TESTS,05/02/2015,,HR Excluding Secondments,Healthcare
300115C,MOOLANDS LTD,1715,1,"3,670.00",STRATEGIC (NON CYCLICAL),05/02/2015,"3,670.00",Technical and Service Support,"Works - Construction, R&M"
210115C,JAYMART=======================,1087473,1,271.18,FIXTURES & FITTINGS,05/02/2015,271.18,Technical And Service Support,Building Constr Materials
020215C,STEELCASE SOLUTIONS===========,48083,1,630.27,OFFICE FURNITURE,05/02/2015,630.27,Technical And Service Support,Furniture
020215C,HUNTER APPAREL SOLUTIONS LTD==,62796,1,24.44,CLOTHING,05/02/2015,"1,275.42",Firefighter Trainees,Clothing
020215C,HUNTER APPAREL SOLUTIONS LTD==,62796,2,22.59,CLOTHING,05/02/2015,,Firefighter Trainees,Clothing
020215C,HUNTER APPAREL SOLUTIONS LTD==,62796,3,22.02,CLOTHING,05/02/2015,,Firefighter Trainees,Clothing
020215C,HUNTER APPAREL SOLUTIONS LTD==,62796,4,25.08,CLOTHING,05/02/2015,,Firefighter Trainees,Clothing
020215C,HUNTER APPAREL SOLUTIONS LTD==,62796,5,22.59,CLOTHING,05/02/2015,,Firefighter Trainees,Clothing
020215C,HUNTER APPAREL SOLUTIONS LTD==,62796,6,25.08,CLOTHING,05/02/2015,,Firefighter Trainees,Clothing
020215C,HUNTER APPAREL SOLUTIONS LTD==,62796,7,22.59,CLOTHING,05/02/2015,,Firefighter Trainees,Clothing
020215C,HUNTER APPAREL SOLUTIONS LTD==,62796,8,25.08,CLOTHING,05/02/2015,,Firefighter Trainees,Clothing
020215C,HUNTER APPAREL SOLUTIONS LTD==,62796,9,22.59,CLOTHING,05/02/2015,,Firefighter Trainees,Clothing
020215C,HUNTER APPAREL SOLUTIONS LTD==,62796,10,25.08,CLOTHING,05/02/2015,,Firefighter Trainees,Clothing
020215C,HUNTER APPAREL SOLUTIONS LTD==,62796,11,22.59,CLOTHING,05/02/2015,,Firefighter Trainees,Clothing
020215C,HUNTER APPAREL SOLUTIONS LTD==,62796,12,25.08,CLOTHING,05/02/2015,,Firefighter Trainees,Clothing
020215C,HUNTER APPAREL SOLUTIONS LTD==,62796,13,22.59,CLOTHING,05/02/2015,,Firefighter Trainees,Clothing
020215C,HUNTER APPAREL SOLUTIONS LTD==,62796,14,25.08,CLOTHING,05/02/2015,,Firefighter Trainees,Clothing
020215C,HUNTER APPAREL SOLUTIONS LTD==,62796,15,22.59,CLOTHING,05/02/2015,,Firefighter Trainees,Clothing
020215C,HUNTER APPAREL SOLUTIONS LTD==,62796,16,22.02,CLOTHING,05/02/2015,,Firefighter Trainees,Clothing
020215C,HUNTER APPAREL SOLUTIONS LTD==,62796,17,22.02,CLOTHING,05/02/2015,,Firefighter Trainees,Clothing
020215C,HUNTER APPAREL SOLUTIONS LTD==,62796,18,22.02,CLOTHING,05/02/2015,,Firefighter Trainees,Clothing
020215C,HUNTER APPAREL SOLUTIONS LTD==,62796,19,22.02,CLOTHING,05/02/2015,,Firefighter Trainees,Clothing
020215C,HUNTER APPAREL SOLUTIONS LTD==,62796,20,22.44,CLOTHING,05/02/2015,,Firefighter Trainees,Clothing
020215C,HUNTER APPAREL SOLUTIONS LTD==,62796,21,20.4,CLOTHING,05/02/2015,,Firefighter Trainees,Clothing
020215C,HUNTER APPAREL SOLUTIONS LTD==,62796,22,24.44,CLOTHING,05/02/2015,,Firefighter Trainees,Clothing
020215C,HUNTER APPAREL SOLUTIONS LTD==,62796,23,22.59,CLOTHING,05/02/2015,,Firefighter Trainees,Clothing
020215C,HUNTER APPAREL SOLUTIONS LTD==,62796,24,22.02,CLOTHING,05/02/2015,,Firefighter Trainees,Clothing
020215C,HUNTER APPAREL SOLUTIONS LTD==,62796,25,22.59,CLOTHING,05/02/2015,,Firefighter Trainees,Clothing
020215C,HUNTER APPAREL SOLUTIONS LTD==,62796,26,24.44,CLOTHING,05/02/2015,,Firefighter Trainees,Clothing
020215C,HUNTER APPAREL SOLUTIONS LTD==,62796,27,22.59,CLOTHING,05/02/2015,,Firefighter Trainees,Clothing
020215C,HUNTER APPAREL SOLUTIONS LTD==,62796,28,22.02,CLOTHING,05/02/2015,,Firefighter Trainees,Clothing
020215C,HUNTER APPAREL SOLUTIONS LTD==,62796,29,22.02,CLOTHING,05/02/2015,,Firefighter Trainees,Clothing
020215C,HUNTER APPAREL SOLUTIONS LTD==,62796,30,19.89,CLOTHING,05/02/2015,,Firefighter Trainees,Clothing
020215C,HUNTER APPAREL SOLUTIONS LTD==,62796,31,22.02,CLOTHING,05/02/2015,,Firefighter Trainees,Clothing
020215C,HUNTER APPAREL SOLUTIONS LTD==,62796,32,22.02,CLOTHING,05/02/2015,,Firefighter Trainees,Clothing
020215C,HUNTER APPAREL SOLUTIONS LTD==,62796,33,18.33,CLOTHING,05/02/2015,,Operations Fire Stations,Clothing
020215C,HUNTER APPAREL SOLUTIONS LTD==,62796,34,22.59,CLOTHING,05/02/2015,,Operations Fire Stations,Clothing
020215C,HUNTER APPAREL SOLUTIONS LTD==,62796,35,6.63,CLOTHING,05/02/2015,,Operations Fire Stations,Clothing
020215C,HUNTER APPAREL SOLUTIONS LTD==,62796,36,18.33,CLOTHING,05/02/2015,,Operations Fire Stations,Clothing
020215C,HUNTER APPAREL SOLUTIONS LTD==,62796,37,22.02,CLOTHING,05/02/2015,,Operations Fire Stations,Clothing
020215C,HUNTER APPAREL SOLUTIONS LTD==,62796,38,12.22,CLOTHING,05/02/2015,,Operations Fire Stations,Clothing
020215C,HUNTER APPAREL SOLUTIONS LTD==,62796,39,7.34,CLOTHING,05/02/2015,,Operations Fire Stations,Clothing
020215C,HUNTER APPAREL SOLUTIONS LTD==,62796,40,18.33,CLOTHING,05/02/2015,,Operations Fire Stations,Clothing
020215C,HUNTER APPAREL SOLUTIONS LTD==,62796,41,22.02,CLOTHING,05/02/2015,,Operations Fire Stations,Clothing
020215C,HUNTER APPAREL SOLUTIONS LTD==,62796,42,14.68,CLOTHING,05/02/2015,,Operations Fire Stations,Clothing
020215C,HUNTER APPAREL SOLUTIONS LTD==,62796,43,18.33,CLOTHING,05/02/2015,,Operations Fire Stations,Clothing
020215C,HUNTER APPAREL SOLUTIONS LTD==,62796,44,14.68,CLOTHING,05/02/2015,,Operations Fire Stations,Clothing
020215C,HUNTER APPAREL SOLUTIONS LTD==,62796,45,13.26,CLOTHING,05/02/2015,,Operations Non Fire Stations,Clothing
020215C,HUNTER APPAREL SOLUTIONS LTD==,62796,46,6.11,CLOTHING,05/02/2015,,Operations Fire Stations,Clothing
020215C,HUNTER APPAREL SOLUTIONS LTD==,62796,47,6.27,CLOTHING,05/02/2015,,Operations Fire Stations,Clothing
020215C,HUNTER APPAREL SOLUTIONS LTD==,62796,48,22.02,CLOTHING,05/02/2015,,Operations Fire Stations,Clothing
020215C,HUNTER APPAREL SOLUTIONS LTD==,62796,49,7.34,CLOTHING,05/02/2015,,Operations Fire Stations,Clothing
020215C,HUNTER APPAREL SOLUTIONS LTD==,62796,50,5.76,CLOTHING,05/02/2015,,Operations Fire Stations,Clothing
020215C,HUNTER APPAREL SOLUTIONS LTD==,62796,51,7.53,CLOTHING,05/02/2015,,Operations Fire Stations,Clothing
020215C,HUNTER APPAREL SOLUTIONS LTD==,62796,52,22.02,CLOTHING,05/02/2015,,Operations Fire Stations,Clothing
020215C,HUNTER APPAREL SOLUTIONS LTD==,62796,53,7.34,CLOTHING,05/02/2015,,Operations Fire Stations,Clothing
020215C,HUNTER APPAREL SOLUTIONS LTD==,62796,54,6.63,CLOTHING,05/02/2015,,Operational Procedures,Clothing
020215C,HUNTER APPAREL SOLUTIONS LTD==,62796,55,5.61,CLOTHING,05/02/2015,,Operations Fire Stations,Clothing
020215C,HUNTER APPAREL SOLUTIONS LTD==,62796,56,7.34,CLOTHING,05/02/2015,,Operations Fire Stations,Clothing
020215C,HUNTER APPAREL SOLUTIONS LTD==,62796,57,7.34,CLOTHING,05/02/2015,,Operations Fire Stations,Clothing
020215C,HUNTER APPAREL SOLUTIONS LTD==,62796,58,22.44,CLOTHING,05/02/2015,,Operations Fire Stations,Clothing
020215C,HUNTER APPAREL SOLUTIONS LTD==,62796,59,11.52,CLOTHING,05/02/2015,,Operations Fire Stations,Clothing
020215C,HUNTER APPAREL SOLUTIONS LTD==,62796,60,11.52,CLOTHING,05/02/2015,,Operations Fire Stations,Clothing
020215C,HUNTER APPAREL SOLUTIONS LTD==,62796,61,22.02,CLOTHING,05/02/2015,,Operations Fire Stations,Clothing
020215C,HUNTER APPAREL SOLUTIONS LTD==,62796,62,13.26,CLOTHING,05/02/2015,,Operations Fire Stations,Clothing
020215C,HUNTER APPAREL SOLUTIONS LTD==,62796,63,13.26,CLOTHING,05/02/2015,,Operations Fire Stations,Clothing
020215C,HUNTER APPAREL SOLUTIONS LTD==,62796,64,20.4,CLOTHING,05/02/2015,,Operations Fire Stations,Clothing
020215C,HUNTER APPAREL SOLUTIONS LTD==,62796,65,6.11,CLOTHING,05/02/2015,,Operations Fire Stations,Clothing
020215C,HUNTER APPAREL SOLUTIONS LTD==,62796,66,22.02,CLOTHING,05/02/2015,,Operations Fire Stations,Clothing
020215C,HUNTER APPAREL SOLUTIONS LTD==,62796,67,14.68,CLOTHING,05/02/2015,,Operations Fire Stations,Clothing
020215C,HUNTER APPAREL SOLUTIONS LTD==,62796,68,19.89,CLOTHING,05/02/2015,,Operations Fire Stations,Clothing
020215C,HUNTER APPAREL SOLUTIONS LTD==,62796,69,6.63,CLOTHING,05/02/2015,,Operations Fire Stations,Clothing
020215C,HUNTER APPAREL SOLUTIONS LTD==,62796,70,16.83,CLOTHING,05/02/2015,,Operations Fire Stations,Clothing
020215C,HUNTER APPAREL SOLUTIONS LTD==,62796,71,22.14,CLOTHING,05/02/2015,,Operations Fire Stations,Clothing
290115C,HUNTER APPAREL SOLUTIONS LTD==,62959,1,112.2,UNIFORMS - POMS,05/02/2015,303.3,Procurement,Clothing
290115C,HUNTER APPAREL SOLUTIONS LTD==,62959,2,56.1,UNIFORMS - POMS,05/02/2015,,Procurement,Clothing
290115C,HUNTER APPAREL SOLUTIONS LTD==,62959,3,135,UNIFORMS - POMS,05/02/2015,,Procurement,Clothing
020215C,HUNTER APPAREL SOLUTIONS LTD==,63067,1,112.2,UNIFORMS - POMS,05/02/2015,"2,286.76",Procurement,Clothing
020215C,HUNTER APPAREL SOLUTIONS LTD==,63067,2,336.6,UNIFORMS - POMS,05/02/2015,,Procurement,Clothing
020215C,HUNTER APPAREL SOLUTIONS LTD==,63067,3,196.56,UNIFORMS - POMS,05/02/2015,,Procurement,Clothing
020215C,HUNTER APPAREL SOLUTIONS LTD==,63067,4,280,UNIFORMS - POMS,05/02/2015,,Procurement,Clothing
020215C,HUNTER APPAREL SOLUTIONS LTD==,63067,5,140,UNIFORMS - POMS,05/02/2015,,Procurement,Clothing
020215C,HUNTER APPAREL SOLUTIONS LTD==,63067,6,140,UNIFORMS - POMS,05/02/2015,,Procurement,Clothing
020215C,HUNTER APPAREL SOLUTIONS LTD==,63067,7,140,UNIFORMS - POMS,05/02/2015,,Procurement,Clothing
020215C,HUNTER APPAREL SOLUTIONS LTD==,63067,8,150,UNIFORMS - POMS,05/02/2015,,Procurement,Clothing
020215C,HUNTER APPAREL SOLUTIONS LTD==,63067,9,150,UNIFORMS - POMS,05/02/2015,,Procurement,Clothing
020215C,HUNTER APPAREL SOLUTIONS LTD==,63067,10,150,UNIFORMS - POMS,05/02/2015,,Procurement,Clothing
020215C,HUNTER APPAREL SOLUTIONS LTD==,63067,11,491.4,UNIFORMS - POMS,05/02/2015,,Procurement,Clothing
300115C,MORRISEY ELECTRICAL & BUILDING,8012015,1,"41,863.62",DEVELOPMENT  EXPENSES-CONTRACT,05/02/2015,"41,863.62",Technical and Service Support,"Works - Construction, R&M"
290115C,CHANGING YOUNG MINDS,1010,1,150,GENERAL,05/02/2015,300,LIFE - LFB Funded,Human Resources
290115C,CHANGING YOUNG MINDS,1010,2,150,GENERAL,05/02/2015,,LIFE - LFB Funded,Human Resources
220115E,NISBETS=======================,10657976,1,529.99,CATERING EQUIPMENT,05/02/2015,529.99,Operations Fire Stations,Catering
300115C,G WORRALL & SON LIMITED=======,108852,1,260,TACTICAL DAY TO DAY,05/02/2015,260,Technical And Service Support,Facilities & Management S
290115C,BT GLOBAL SERVICES============,1132688,1,541.66,TELECOMMUNICATIONS,05/02/2015,541.66,Information and Communication Technology,ICT
290115C,QI CONSULTING,12743,1,"22,995.00",CONSULTANTS,05/02/2015,"22,995.00",Information and Communication Technology,Consultancy
290115C,RUTH LEE LTD==================,12947,1,"2,795.00",OPERATIONAL EQUIP-PURCHASE,05/02/2015,"2,795.00",Operational Resilience,Fire & Rescue
140943,THAMES WATER UTILITIES LTD====,13752-86795L,1,505.8,WATER & SEWERAGE RATES,05/02/2015,505.8,Technical And Service Support,Utilities
020215C,SURREY BLIND & CURTAIN CO=====,14508,1,192,FIXTURES & FITTINGS,05/02/2015,"2,339.00",Technical And Service Support,"Works - Construction, R&M"
020215C,SURREY BLIND & CURTAIN CO=====,14508,2,272,FIXTURES & FITTINGS,05/02/2015,,Technical And Service Support,"Works - Construction, R&M"
020215C,SURREY BLIND & CURTAIN CO=====,14508,3,"1,216.00",FIXTURES & FITTINGS,05/02/2015,,Technical And Service Support,"Works - Construction, R&M"
020215C,SURREY BLIND & CURTAIN CO=====,14508,4,659,FIXTURES & FITTINGS,05/02/2015,,Technical And Service Support,"Works - Construction, R&M"
270115E,H FINE & SON LTD==============,148821,1,505,GENERAL CONSUMABLES,05/02/2015,505,Procurement,Uniform
300115C,HARRIS INSTALLATION SERVICES,17402,1,900.89,REMOVALS,05/02/2015,900.89,Technical And Service Support,Facilities & Management S
260115G,COMMUNITIES & LOCAL GOVERNMENT,1800021053,1,"122,993.53",RADIO,05/02/2015,"131,410.35",Information and Communication Technology,ICT
260115G,COMMUNITIES & LOCAL GOVERNMENT,1800021053,2,"8,416.82",RADIO,05/02/2015,,Information and Communication Technology,ICT
020215C,FYNE ASSOCIATES LTD===========,20609,1,500,ADVERTISING,05/02/2015,500,Corporate Management Secretariat,Facilities & Management S
020215C,REGENT OFFICE CARE LTD========,23564,1,158.7,STRATEGIC (CYCLICAL),05/02/2015,"6,062.34",Technical and Service Support,Cleaning & Janitorial
020215C,REGENT OFFICE CARE LTD========,23564,2,190.44,STRATEGIC (CYCLICAL),05/02/2015,,Technical and Service Support,Cleaning & Janitorial
020215C,REGENT OFFICE CARE LTD========,23564,3,190.44,STRATEGIC (CYCLICAL),05/02/2015,,Technical and Service Support,Cleaning & Janitorial
020215C,REGENT OFFICE CARE LTD========,23564,4,190.44,STRATEGIC (CYCLICAL),05/02/2015,,Technical and Service Support,Cleaning & Janitorial
020215C,REGENT OFFICE CARE LTD========,23564,5,158.7,STRATEGIC (CYCLICAL),05/02/2015,,Technical and Service Support,Cleaning & Janitorial
020215C,REGENT OFFICE CARE LTD========,23564,6,158.7,STRATEGIC (CYCLICAL),05/02/2015,,Technical and Service Support,Cleaning & Janitorial
020215C,REGENT OFFICE CARE LTD========,23564,7,158.7,STRATEGIC (CYCLICAL),05/02/2015,,Technical and Service Support,Cleaning & Janitorial
020215C,REGENT OFFICE CARE LTD========,23564,8,190.44,STRATEGIC (CYCLICAL),05/02/2015,,Technical and Service Support,Cleaning & Janitorial
020215C,REGENT OFFICE CARE LTD========,23564,9,190.44,STRATEGIC (CYCLICAL),05/02/2015,,Technical and Service Support,Cleaning & Janitorial
020215C,REGENT OFFICE CARE LTD========,23564,10,190.44,STRATEGIC (CYCLICAL),05/02/2015,,Technical and Service Support,Cleaning & Janitorial
020215C,REGENT OFFICE CARE LTD========,23564,11,158.7,STRATEGIC (CYCLICAL),05/02/2015,,Technical and Service Support,Cleaning & Janitorial
020215C,REGENT OFFICE CARE LTD========,23564,12,190.44,STRATEGIC (CYCLICAL),05/02/2015,,Technical and Service Support,Cleaning & Janitorial
020215C,REGENT OFFICE CARE LTD========,23564,13,158.7,STRATEGIC (CYCLICAL),05/02/2015,,Technical and Service Support,Cleaning & Janitorial
020215C,REGENT OFFICE CARE LTD========,23564,14,158.7,STRATEGIC (CYCLICAL),05/02/2015,,Technical and Service Support,Cleaning & Janitorial
020215C,REGENT OFFICE CARE LTD========,23564,15,158.7,STRATEGIC (CYCLICAL),05/02/2015,,Technical and Service Support,Cleaning & Janitorial
020215C,REGENT OFFICE CARE LTD========,23564,16,190.44,STRATEGIC (CYCLICAL),05/02/2015,,Technical and Service Support,Cleaning & Janitorial
020215C,REGENT OFFICE CARE LTD========,23564,17,158.7,STRATEGIC (CYCLICAL),05/02/2015,,Technical and Service Support,Cleaning & Janitorial
020215C,REGENT OFFICE CARE LTD========,23564,18,190.44,STRATEGIC (CYCLICAL),05/02/2015,,Technical and Service Support,Cleaning & Janitorial
020215C,REGENT OFFICE CARE LTD========,23564,19,158.7,STRATEGIC (CYCLICAL),05/02/2015,,Technical and Service Support,Cleaning & Janitorial
020215C,REGENT OFFICE CARE LTD========,23564,20,190.44,STRATEGIC (CYCLICAL),05/02/2015,,Technical and Service Support,Cleaning & Janitorial
020215C,REGENT OFFICE CARE LTD========,23564,21,190.44,STRATEGIC (CYCLICAL),05/02/2015,,Technical and Service Support,Cleaning & Janitorial
020215C,REGENT OFFICE CARE LTD========,23564,22,158.7,STRATEGIC (CYCLICAL),05/02/2015,,Technical and Service Support,Cleaning & Janitorial
020215C,REGENT OFFICE CARE LTD========,23564,23,190.44,STRATEGIC (CYCLICAL),05/02/2015,,Technical and Service Support,Cleaning & Janitorial
020215C,REGENT OFFICE CARE LTD========,23564,24,190.44,STRATEGIC (CYCLICAL),05/02/2015,,Technical and Service Support,Cleaning & Janitorial
020215C,REGENT OFFICE CARE LTD========,23564,25,190.44,STRATEGIC (CYCLICAL),05/02/2015,,Technical and Service Support,Cleaning & Janitorial
020215C,REGENT OFFICE CARE LTD========,23564,26,190.44,STRATEGIC (CYCLICAL),05/02/2015,,Technical and Service Support,Cleaning & Janitorial
020215C,REGENT OFFICE CARE LTD========,23564,27,158.7,STRATEGIC (CYCLICAL),05/02/2015,,Technical and Service Support,Cleaning & Janitorial
020215C,REGENT OFFICE CARE LTD========,23564,28,253.92,STRATEGIC (CYCLICAL),05/02/2015,,Technical and Service Support,Cleaning & Janitorial
020215C,REGENT OFFICE CARE LTD========,23564,29,190.44,STRATEGIC (CYCLICAL),05/02/2015,,Technical and Service Support,Cleaning & Janitorial
020215C,REGENT OFFICE CARE LTD========,23564,30,158.7,STRATEGIC (CYCLICAL),05/02/2015,,Technical and Service Support,Cleaning & Janitorial
020215C,REGENT OFFICE CARE LTD========,23564,31,158.7,STRATEGIC (CYCLICAL),05/02/2015,,Technical and Service Support,Cleaning & Janitorial
020215C,REGENT OFFICE CARE LTD========,23564,32,190.44,STRATEGIC (CYCLICAL),05/02/2015,,Technical and Service Support,Cleaning & Janitorial
020215C,REGENT OFFICE CARE LTD========,23564,33,190.44,STRATEGIC (CYCLICAL),05/02/2015,,Technical and Service Support,Cleaning & Janitorial
020215C,REGENT OFFICE CARE LTD========,23564,34,158.7,STRATEGIC (CYCLICAL),05/02/2015,,Technical and Service Support,Cleaning & Janitorial
290115C,AUTOGLASS LIMITED=============,24653284,1,754.53,WINDSCREEN & TYRE CHARGES,05/02/2015,754.53,Procurement,Vehicle Management
020215C,ARKAS LIMITED=================,25944,1,472,STRATEGIC (CYCLICAL),05/02/2015,472,Technical And Service Support,"Works - Construction, R&M"
020215C,ARKAS LIMITED=================,26426,1,247,STRATEGIC (CYCLICAL),05/02/2015,"2,531.89",Technical And Service Support,"Works - Construction, R&M"
020215C,ARKAS LIMITED=================,26426,2,"1,946.50",STRATEGIC (CYCLICAL),05/02/2015,,Technical And Service Support,"Works - Construction, R&M"
020215C,ARKAS LIMITED=================,26426,3,187.94,STRATEGIC (CYCLICAL),05/02/2015,,Technical And Service Support,"Works - Construction, R&M"
020215C,ARKAS LIMITED=================,26426,4,150.45,STRATEGIC (CYCLICAL),05/02/2015,,Technical And Service Support,"Works - Construction, R&M"
800057922,ADECCO UK LIMITED=============,26941532,1,"1,445.40",FRS STAFF AGENCY,05/02/2015,"1,445.40",National Operational Guidance Project,Human Resources
800057937,ADECCO UK LIMITED=============,26971972,1,540.12,FRS STAFF AGENCY,05/02/2015,540.12,National Operational Guidance Project,Human Resources
800057959,ADECCO UK LIMITED=============,26979161,1,900.2,FRS STAFF AGENCY,05/02/2015,900.2,National Operational Guidance Project,Human Resources
800057945,ADECCO UK LIMITED=============,26979171,1,"1,471.35",FRS STAFF AGENCY,05/02/2015,"1,471.35",Legal & Democratic Services,Human Resources
800057939,ADECCO UK LIMITED=============,26986661,1,900.2,FRS STAFF AGENCY,05/02/2015,900.2,National Operational Guidance Project,Human Resources
800057946,ADECCO UK LIMITED=============,26986672,1,"1,471.35",FRS STAFF AGENCY,05/02/2015,"1,471.35",Legal & Democratic Services,Human Resources
800057940,ADECCO UK LIMITED=============,26994124,1,900.2,FRS STAFF AGENCY,05/02/2015,900.2,National Operational Guidance Project,Human Resources
800057941,ADECCO UK LIMITED=============,27002216,1,900.2,FRS STAFF AGENCY,05/02/2015,900.2,National Operational Guidance Project,Human Resources
800057954,ADECCO UK LIMITED=============,27002226,1,"1,471.35",FRS STAFF AGENCY,05/02/2015,"1,471.35",Legal & Democratic Services,Human Resources
800057942,ADECCO UK LIMITED=============,27008886,1,874.48,FRS STAFF AGENCY,05/02/2015,874.48,National Operational Guidance Project,Human Resources
800057948,ADECCO UK LIMITED=============,27008895,1,"1,471.35",FRS STAFF AGENCY,05/02/2015,"1,471.35",Legal & Democratic Services,Human Resources
800057943,ADECCO UK LIMITED=============,27015845,1,900.2,FRS STAFF AGENCY,05/02/2015,900.2,National Operational Guidance Project,Human Resources
800057949,ADECCO UK LIMITED=============,27015854,1,"1,471.35",FRS STAFF AGENCY,05/02/2015,"1,471.35",Legal & Democratic Services,Human Resources
800057931,ADECCO UK LIMITED=============,27015866,1,"1,445.40",FRS STAFF AGENCY,05/02/2015,"1,445.40",National Operational Guidance Project,Human Resources
800057935,ADECCO UK LIMITED=============,27019658,1,"1,005.51",FRS STAFF AGENCY,05/02/2015,"1,005.51",Legal & Democratic Services,Human Resources
800057934,ADECCO UK LIMITED=============,27019659,1,722.97,FRS STAFF AGENCY,05/02/2015,722.97,Legal & Democratic Services,Human Resources
800057944,ADECCO UK LIMITED=============,27022907,1,900.2,FRS STAFF AGENCY,05/02/2015,900.2,National Operational Guidance Project,Human Resources
800057950,ADECCO UK LIMITED=============,27022915,1,"1,471.35",FRS STAFF AGENCY,05/02/2015,"1,471.35",Legal & Democratic Services,Human Resources
800057961,ADECCO UK LIMITED=============,27046065,1,973.14,FRS STAFF AGENCY,05/02/2015,973.14,Review of Property Services,Human Resources
800057962,ADECCO UK LIMITED=============,27046066,1,624.4,FRS STAFF AGENCY,05/02/2015,624.4,Procurement,Human Resources
800057963,ADECCO UK LIMITED=============,27046068,1,439.6,FRS STAFF AGENCY,05/02/2015,439.6,HR Excluding Secondments,Human Resources
800057965,ADECCO UK LIMITED=============,27046070,1,439.6,FRS STAFF AGENCY,05/02/2015,439.6,HR Excluding Secondments,Human Resources
800057966,ADECCO UK LIMITED=============,27046071,1,498.24,FRS STAFF AGENCY,05/02/2015,498.24,Mobilising,Human Resources
800057967,ADECCO UK LIMITED=============,27046072,1,624.4,FRS STAFF AGENCY,05/02/2015,624.4,Strategy & Performance,Human Resources
800057968,ADECCO UK LIMITED=============,27046075,1,"1,617.38",FRS STAFF AGENCY,05/02/2015,"1,617.38",Legal & Democratic Services,Human Resources
800057969,ADECCO UK LIMITED=============,27046076,1,893.2,FRS STAFF AGENCY,05/02/2015,893.2,Vehicle & Equipment Programme,Human Resources
800057970,ADECCO UK LIMITED=============,27046077,1,624.4,FRS STAFF AGENCY,05/02/2015,624.4,Operational Directorates Support Group,Human Resources
800057971,ADECCO UK LIMITED=============,27046078,1,635.17,FRS STAFF AGENCY,05/02/2015,635.17,Corporate Management Secretariat,Human Resources
800057972,ADECCO UK LIMITED=============,27046079,1,"1,471.35",FRS STAFF AGENCY,05/02/2015,"1,471.35",Legal & Democratic Services,Human Resources
800057973,ADECCO UK LIMITED=============,27046080,1,"1,076.80",FRS STAFF AGENCY,05/02/2015,"1,076.80",Technical And Service Support,Human Resources
800057974,ADECCO UK LIMITED=============,27046081,1,900.2,FRS STAFF AGENCY,05/02/2015,900.2,National Operational Guidance Project,Human Resources
800057975,ADECCO UK LIMITED=============,27046082,1,624.4,FRS STAFF AGENCY,05/02/2015,624.4,Operations Non Fire Stations,Human Resources
800057979,ADECCO UK LIMITED=============,27046086,1,499.52,FRS STAFF AGENCY,05/02/2015,499.52,Operations Non Fire Stations,Human Resources
800057980,ADECCO UK LIMITED=============,27046087,1,624.4,FRS STAFF AGENCY,05/02/2015,624.4,Technical And Service Support,Human Resources
800057981,ADECCO UK LIMITED=============,27046088,1,624.4,FRS STAFF AGENCY,05/02/2015,624.4,Operations Non Fire Stations,Human Resources
800057983,ADECCO UK LIMITED=============,27046090,1,"1,927.20",FRS STAFF AGENCY,05/02/2015,"1,927.20",National Operational Guidance Project,Human Resources
800057985,ADECCO UK LIMITED=============,27046092,1,439.6,FRS STAFF AGENCY,05/02/2015,439.6,Operational Directorates Support Group,Human Resources
800057986,ADECCO UK LIMITED=============,27046093,1,332.85,FRS STAFF AGENCY,05/02/2015,332.85,Strategy & Performance,Human Resources
800057987,ADECCO UK LIMITED=============,27046094,1,439.6,FRS STAFF AGENCY,05/02/2015,439.6,Regulatory Fire Safety,Human Resources
800057988,ADECCO UK LIMITED=============,27046095,1,439.6,FRS STAFF AGENCY,05/02/2015,439.6,Regulatory Fire Safety,Human Resources
800057989,ADECCO UK LIMITED=============,27046096,1,439.6,FRS STAFF AGENCY,05/02/2015,439.6,Regulatory Fire Safety,Human Resources
800057990,ADECCO UK LIMITED=============,27046097,1,439.6,FRS STAFF AGENCY,05/02/2015,439.6,Regulatory Fire Safety,Human Resources
800057991,ADECCO UK LIMITED=============,27046098,1,439.6,FRS STAFF AGENCY,05/02/2015,439.6,Communications,Human Resources
800057993,ADECCO UK LIMITED=============,27046100,1,554.75,FRS STAFF AGENCY,05/02/2015,554.75,Regulatory Fire Safety,Human Resources
800057994,ADECCO UK LIMITED=============,27049344,1,"1,674.75",FRS STAFF AGENCY,05/02/2015,"1,674.75",Information and Communication Technology,Human Resources
800057995,ADECCO UK LIMITED=============,27049345,1,"1,339.80",FRS STAFF AGENCY,05/02/2015,"1,339.80",Information and Communication Technology,Human Resources
800057996,ADECCO UK LIMITED=============,27049346,1,"1,674.75",FRS STAFF AGENCY,05/02/2015,"1,674.75",Information and Communication Technology,Human Resources
800058060,ADECCO UK LIMITED=============,27052402,1,439.6,FRS STAFF AGENCY,05/02/2015,439.6,HR Excluding Secondments,Human Resources
800058062,ADECCO UK LIMITED=============,27052404,1,351.68,FRS STAFF AGENCY,05/02/2015,351.68,HR Excluding Secondments,Human Resources
800058063,ADECCO UK LIMITED=============,27052405,1,624.4,FRS STAFF AGENCY,05/02/2015,624.4,Strategy & Performance,Human Resources
800058064,ADECCO UK LIMITED=============,27052406,1,624.4,FRS STAFF AGENCY,05/02/2015,624.4,Regulatory Fire Safety,Human Resources
800058065,ADECCO UK LIMITED=============,27052407,1,624.4,FRS STAFF AGENCY,05/02/2015,624.4,Technical And Service Support,Human Resources
800058066,ADECCO UK LIMITED=============,27052408,1,"1,466.42",FRS STAFF AGENCY,05/02/2015,"1,466.42",Legal & Democratic Services,Human Resources
800058067,ADECCO UK LIMITED=============,27052409,1,893.2,FRS STAFF AGENCY,05/02/2015,893.2,Vehicle & Equipment Programme,Human Resources
800058068,ADECCO UK LIMITED=============,27052410,1,624.4,FRS STAFF AGENCY,05/02/2015,624.4,Operational Directorates Support Group,Human Resources
800058072,ADECCO UK LIMITED=============,27052414,1,900.2,FRS STAFF AGENCY,05/02/2015,900.2,National Operational Guidance Project,Human Resources
800058073,ADECCO UK LIMITED=============,27052415,1,624.4,FRS STAFF AGENCY,05/02/2015,624.4,Operations Non Fire Stations,Human Resources
800058075,ADECCO UK LIMITED=============,27052417,1,"1,380.16",FRS STAFF AGENCY,05/02/2015,"1,380.16",Technical And Service Support,Human Resources
800058076,ADECCO UK LIMITED=============,27052418,1,900.2,FRS STAFF AGENCY,05/02/2015,900.2,National Operational Guidance Project,Human Resources
800058077,ADECCO UK LIMITED=============,27052419,1,624.4,FRS STAFF AGENCY,05/02/2015,624.4,Operations Non Fire Stations,Human Resources
800058081,ADECCO UK LIMITED=============,27052423,1,"2,409.00",FRS STAFF AGENCY,05/02/2015,"2,409.00",National Operational Guidance Project,Human Resources
800058082,ADECCO UK LIMITED=============,27052424,1,443.8,FRS STAFF AGENCY,05/02/2015,443.8,Strategy & Performance,Human Resources
800058084,ADECCO UK LIMITED=============,27052426,1,439.6,FRS STAFF AGENCY,05/02/2015,439.6,Regulatory Fire Safety,Human Resources
800058085,ADECCO UK LIMITED=============,27052427,1,439.6,FRS STAFF AGENCY,05/02/2015,439.6,Regulatory Fire Safety,Human Resources
800058086,ADECCO UK LIMITED=============,27052428,1,439.6,FRS STAFF AGENCY,05/02/2015,439.6,Regulatory Fire Safety,Human Resources
800058087,ADECCO UK LIMITED=============,27052429,1,439.6,FRS STAFF AGENCY,05/02/2015,439.6,Regulatory Fire Safety,Human Resources
800058090,ADECCO UK LIMITED=============,27052432,1,554.75,FRS STAFF AGENCY,05/02/2015,554.75,Regulatory Fire Safety,Human Resources
140943,THAMES WATER UTILITIES LTD====,2963180521,1,276.7,WATER & SEWERAGE RATES,05/02/2015,276.7,Technical And Service Support,Utilities
300115C,EVOLUTION ENVIRONMENTAL LTD,3468,1,500,DEVELOPMENT  EXPENSES-CONTRACT,05/02/2015,500,Technical and Service Support,"Works - Construction, R&M"
290115C,CARPETS & FLOOR COVERS DIRECT=,3478*,1,500,TACTICAL DAY TO DAY,05/02/2015,500,Technical And Service Support,Building Constr Materials
280115C,HUNTERS CONTRACTS LIMITED,348797,1,478.8,OFFICE FURNITURE,05/02/2015,478.8,Operations Fire Stations,Furniture
200115E,COMPUTACENTRE================,3880385438,1,485.04,DEVELOPMENT  EXPENSES-CONTRACT,05/02/2015,485.04,Property PFI,ICT
290115C,THE MARSTAN PRESS LTD========,420,1,718,GENERAL CONSUMABLES,05/02/2015,718,Procurement,Facilities & Management S
210115C,GLOBAL TO LOCAL LTD,437/23/AF201,1,"1,595.40",CONSULTANTS,05/02/2015,"3,695.40",EU Fired-Up Project,Consultancy
210115C,GLOBAL TO LOCAL LTD,437/23/AF201,2,"2,100.00",CONSULTANTS,05/02/2015,,EU Fired-Up Project,Consultancy
020215C,NWFS==========================,441,1,"1,000.00",SUBSCRIPTIONS,05/02/2015,"1,000.00",Corporate Management Secretariat,Fire & Rescue
300115C,CK DIRECT,4662,1,"8,230.00",STRATEGIC (NON CYCLICAL),05/02/2015,"8,230.00",Technical and Service Support,Facilities & Management S
300115C,CK DIRECT,4663,1,"2,387.50",STRATEGIC (NON CYCLICAL),05/02/2015,"4,775.00",Technical and Service Support,Facilities & Management S
300115C,CK DIRECT,4663,2,"2,387.50",DAY TO DAY MINOR IMPS,05/02/2015,,Technical And Service Support,Facilities & Management S
300115C,CK DIRECT,4664,1,"4,850.00",STRATEGIC (NON CYCLICAL),05/02/2015,"4,850.00",Technical and Service Support,Facilities & Management S
140943,THAMES WATER UTILITIES LTD====,4894198142L,1,384.54,WATER & SEWERAGE RATES,05/02/2015,384.54,Technical And Service Support,Utilities
300115C,FAHEY BUILDERS LTD============,5252,1,760,STRATEGIC (CYCLICAL),05/02/2015,"7,600.00",Technical and Service Support,"Works - Construction, R&M"
300115C,FAHEY BUILDERS LTD============,5252,2,760,STRATEGIC (CYCLICAL),05/02/2015,,Technical and Service Support,"Works - Construction, R&M"
300115C,FAHEY BUILDERS LTD============,5252,3,760,STRATEGIC (CYCLICAL),05/02/2015,,Technical and Service Support,"Works - Construction, R&M"
300115C,FAHEY BUILDERS LTD============,5252,4,760,STRATEGIC (CYCLICAL),05/02/2015,,Technical and Service Support,"Works - Construction, R&M"
300115C,FAHEY BUILDERS LTD============,5252,5,760,STRATEGIC (CYCLICAL),05/02/2015,,Technical and Service Support,"Works - Construction, R&M"
300115C,FAHEY BUILDERS LTD============,5252,6,760,STRATEGIC (CYCLICAL),05/02/2015,,Technical and Service Support,"Works - Construction, R&M"
300115C,FAHEY BUILDERS LTD============,5252,7,760,STRATEGIC (CYCLICAL),05/02/2015,,Technical and Service Support,"Works - Construction, R&M"
300115C,FAHEY BUILDERS LTD============,5252,8,760,STRATEGIC (CYCLICAL),05/02/2015,,Technical and Service Support,"Works - Construction, R&M"
300115C,FAHEY BUILDERS LTD============,5252,9,760,STRATEGIC (CYCLICAL),05/02/2015,,Technical and Service Support,"Works - Construction, R&M"
300115C,FAHEY BUILDERS LTD============,5252,10,760,STRATEGIC (CYCLICAL),05/02/2015,,Technical and Service Support,"Works - Construction, R&M"
800057744,*GREENHAM TRADING LTD=========,5671106,1,4.56,HYGIENE,05/02/2015,342.2,Operations Fire Stations,Cleaning & Janitorial
800057744,*GREENHAM TRADING LTD=========,5671106,2,15.5,HYGIENE,05/02/2015,,Operations Fire Stations,Cleaning & Janitorial
800057744,*GREENHAM TRADING LTD=========,5671106,3,16.3,HYGIENE,05/02/2015,,Operations Fire Stations,Cleaning & Janitorial
800057744,*GREENHAM TRADING LTD=========,5671106,4,12,HYGIENE,05/02/2015,,Operations Fire Stations,Cleaning & Janitorial
800057744,*GREENHAM TRADING LTD=========,5671106,5,8.85,HYGIENE,05/02/2015,,Operations Fire Stations,Cleaning & Janitorial
800057744,*GREENHAM TRADING LTD=========,5671106,6,5.13,HYGIENE,05/02/2015,,Operations Fire Stations,Cleaning & Janitorial
800057744,*GREENHAM TRADING LTD=========,5671106,7,37.28,OPERATIONAL EQUIP-PURCHASE,05/02/2015,,Operations Fire Stations,Cleaning & Janitorial
800057744,*GREENHAM TRADING LTD=========,5671106,8,40.75,HYGIENE,05/02/2015,,Operations Fire Stations,Cleaning & Janitorial
800057744,*GREENHAM TRADING LTD=========,5671106,9,16,HYGIENE,05/02/2015,,Operations Fire Stations,Cleaning & Janitorial
800057744,*GREENHAM TRADING LTD=========,5671106,10,2.76,HYGIENE,05/02/2015,,Operations Fire Stations,Cleaning & Janitorial
800057744,*GREENHAM TRADING LTD=========,5671106,11,15.5,HYGIENE,05/02/2015,,Operations Fire Stations,Cleaning & Janitorial
800057744,*GREENHAM TRADING LTD=========,5671106,12,40.75,HYGIENE,05/02/2015,,Operations Fire Stations,Cleaning & Janitorial
800057744,*GREENHAM TRADING LTD=========,5671106,13,2.76,HYGIENE,05/02/2015,,Operations Fire Stations,Cleaning & Janitorial
800057744,*GREENHAM TRADING LTD=========,5671106,14,18.6,HYGIENE,05/02/2015,,Operations Fire Stations,Cleaning & Janitorial
800057744,*GREENHAM TRADING LTD=========,5671106,15,16,HYGIENE,05/02/2015,,Operations Fire Stations,Cleaning & Janitorial
800057744,*GREENHAM TRADING LTD=========,5671106,16,35.47,HYGIENE,05/02/2015,,Operations Fire Stations,Cleaning & Janitorial
800057744,*GREENHAM TRADING LTD=========,5671106,17,33.99,HYGIENE,05/02/2015,,Operations Fire Stations,Cleaning & Janitorial
800057744,*GREENHAM TRADING LTD=========,5671106,18,20,HYGIENE,05/02/2015,,Operations Fire Stations,Cleaning & Janitorial
140943,THAMES WATER UTILITIES LTD====,7544309254L,1,427.39,WATER & SEWERAGE RATES,05/02/2015,427.39,Technical And Service Support,Utilities
290115C,PETER JONES (ILG) LTD=========,79089,1,525,RADIO,05/02/2015,"1,408.60",Information and Communication Technology,ICT
290115C,PETER JONES (ILG) LTD=========,79089,2,437.5,RADIO,05/02/2015,,Information and Communication Technology,ICT
290115C,PETER JONES (ILG) LTD=========,79089,3,437.5,RADIO,05/02/2015,,Information and Communication Technology,ICT
290115C,PETER JONES (ILG) LTD=========,79089,4,8.6,RADIO,05/02/2015,,Information and Communication Technology,ICT
290115C,TWO SERVICES LTD==============,80511,1,681.5,CATERING EQUIPMENT,05/02/2015,681.5,Operations Fire Stations,Catering
290115C,TWO SERVICES LTD==============,80520,1,681.5,CATERING EQUIPMENT,05/02/2015,681.5,Operations Fire Stations,Catering
290115C,TWO SERVICES LTD==============,80521,1,713,CATERING EQUIPMENT,05/02/2015,713,Operations Fire Stations,Catering
140943,THAMES WATER UTILITIES LTD====,89656-99261A,1,366.76,WATER & SEWERAGE RATES,05/02/2015,366.76,Technical And Service Support,Utilities
300115C,ASTEC SURVEYS LIMITED=========,ASL-15-002,1,355,ASBESTOS,05/02/2015,355,Technical and Service Support,Environmental Services
300115C,ASTEC SURVEYS LIMITED=========,ASL-15-003,1,195,ASBESTOS,05/02/2015,390,Technical and Service Support,Environmental Services
300115C,ASTEC SURVEYS LIMITED=========,ASL-15-003,2,195,ASBESTOS,05/02/2015,,Technical and Service Support,Environmental Services
800058018,ALLSTAR BUSINESS SOLUTIONS LTD,E2004181324,1,963.29,FUEL,05/02/2015,"15,837.01",Operations Non Fire Stations,Vehicle Management
800058018,ALLSTAR BUSINESS SOLUTIONS LTD,E2004181324,2,510.88,FUEL,05/02/2015,,Procurement,Vehicle Management
800058018,ALLSTAR BUSINESS SOLUTIONS LTD,E2004181324,3,501.37,FUEL,05/02/2015,,Operations Fire Stations,Vehicle Management
800058018,ALLSTAR BUSINESS SOLUTIONS LTD,E2004181324,4,398.37,FUEL,05/02/2015,,Operations Fire Stations,Vehicle Management
800058018,ALLSTAR BUSINESS SOLUTIONS LTD,E2004181324,5,338.52,FUEL,05/02/2015,,Operations Fire Stations,Vehicle Management
800058018,ALLSTAR BUSINESS SOLUTIONS LTD,E2004181324,6,311.55,FUEL,05/02/2015,,Operations Fire Stations,Vehicle Management
800058018,ALLSTAR BUSINESS SOLUTIONS LTD,E2004181324,7,293.37,FUEL,05/02/2015,,Operations Fire Stations,Vehicle Management
800058018,ALLSTAR BUSINESS SOLUTIONS LTD,E2004181324,8,292.26,FUEL,05/02/2015,,Operations Fire Stations,Vehicle Management
800058018,ALLSTAR BUSINESS SOLUTIONS LTD,E2004181324,9,281,FUEL,05/02/2015,,Operations Fire Stations,Vehicle Management
800058018,ALLSTAR BUSINESS SOLUTIONS LTD,E2004181324,10,269.59,FUEL,05/02/2015,,Operations Fire Stations,Vehicle Management
800058018,ALLSTAR BUSINESS SOLUTIONS LTD,E2004181324,11,252.11,FUEL,05/02/2015,,Operations Fire Stations,Vehicle Management
800058018,ALLSTAR BUSINESS SOLUTIONS LTD,E2004181324,12,233.72,FUEL,05/02/2015,,Operations Fire Stations,Vehicle Management
800058018,ALLSTAR BUSINESS SOLUTIONS LTD,E2004181324,13,232.46,FUEL,05/02/2015,,Operations Fire Stations,Vehicle Management
800058018,ALLSTAR BUSINESS SOLUTIONS LTD,E2004181324,14,232.34,FUEL,05/02/2015,,Operations Fire Stations,Vehicle Management
800058018,ALLSTAR BUSINESS SOLUTIONS LTD,E2004181324,15,223.44,FUEL,05/02/2015,,Operations Fire Stations,Vehicle Management
800058018,ALLSTAR BUSINESS SOLUTIONS LTD,E2004181324,16,218.65,FUEL,05/02/2015,,Operations Fire Stations,Vehicle Management
800058018,ALLSTAR BUSINESS SOLUTIONS LTD,E2004181324,17,216.54,FUEL,05/02/2015,,Operations Fire Stations,Vehicle Management
800058018,ALLSTAR BUSINESS SOLUTIONS LTD,E2004181324,18,213.48,FUEL,05/02/2015,,Operations Fire Stations,Vehicle Management
800058018,ALLSTAR BUSINESS SOLUTIONS LTD,E2004181324,19,212.73,FUEL,05/02/2015,,Operations Fire Stations,Vehicle Management
800058018,ALLSTAR BUSINESS SOLUTIONS LTD,E2004181324,20,212.48,FUEL,05/02/2015,,Operations Fire Stations,Vehicle Management
800058018,ALLSTAR BUSINESS SOLUTIONS LTD,E2004181324,21,212.48,FUEL,05/02/2015,,Operations Fire Stations,Vehicle Management
800058018,ALLSTAR BUSINESS SOLUTIONS LTD,E2004181324,22,203.85,FUEL,05/02/2015,,Operations Fire Stations,Vehicle Management
800058018,ALLSTAR BUSINESS SOLUTIONS LTD,E2004181324,23,198.99,FUEL,05/02/2015,,Operations Fire Stations,Vehicle Management
800058018,ALLSTAR BUSINESS SOLUTIONS LTD,E2004181324,24,198.64,FUEL,05/02/2015,,Operations Fire Stations,Vehicle Management
800058018,ALLSTAR BUSINESS SOLUTIONS LTD,E2004181324,25,198.33,FUEL,05/02/2015,,Operations Fire Stations,Vehicle Management
800058018,ALLSTAR BUSINESS SOLUTIONS LTD,E2004181324,26,197.72,FUEL,05/02/2015,,Operations Fire Stations,Vehicle Management
800058018,ALLSTAR BUSINESS SOLUTIONS LTD,E2004181324,27,196.48,FUEL,05/02/2015,,Operations Fire Stations,Vehicle Management
800058018,ALLSTAR BUSINESS SOLUTIONS LTD,E2004181324,28,194.89,FUEL,05/02/2015,,Operations Fire Stations,Vehicle Management
800058018,ALLSTAR BUSINESS SOLUTIONS LTD,E2004181324,29,192.79,FUEL,05/02/2015,,Operations Fire Stations,Vehicle Management
800058018,ALLSTAR BUSINESS SOLUTIONS LTD,E2004181324,30,190.38,FUEL,05/02/2015,,Operations Fire Stations,Vehicle Management
800058018,ALLSTAR BUSINESS SOLUTIONS LTD,E2004181324,31,189.33,FUEL,05/02/2015,,Operations Fire Stations,Vehicle Management
800058018,ALLSTAR BUSINESS SOLUTIONS LTD,E2004181324,32,187.87,FUEL,05/02/2015,,Operations Fire Stations,Vehicle Management
800058018,ALLSTAR BUSINESS SOLUTIONS LTD,E2004181324,33,183.29,FUEL,05/02/2015,,Operations Fire Stations,Vehicle Management
800058018,ALLSTAR BUSINESS SOLUTIONS LTD,E2004181324,34,174.05,FUEL,05/02/2015,,Operations Fire Stations,Vehicle Management
800058018,ALLSTAR BUSINESS SOLUTIONS LTD,E2004181324,35,172.79,FUEL,05/02/2015,,Operations Fire Stations,Vehicle Management
800058018,ALLSTAR BUSINESS SOLUTIONS LTD,E2004181324,36,172.5,FUEL,05/02/2015,,Operations Fire Stations,Vehicle Management
800058018,ALLSTAR BUSINESS SOLUTIONS LTD,E2004181324,37,169.11,FUEL,05/02/2015,,Operations Fire Stations,Vehicle Management
800058018,ALLSTAR BUSINESS SOLUTIONS LTD,E2004181324,38,168.53,FUEL,05/02/2015,,Regulatory Fire Safety,Vehicle Management
800058018,ALLSTAR BUSINESS SOLUTIONS LTD,E2004181324,39,165.4,FUEL,05/02/2015,,Operations Fire Stations,Vehicle Management
800058018,ALLSTAR BUSINESS SOLUTIONS LTD,E2004181324,40,162.52,FUEL,05/02/2015,,Business Continuity,Vehicle Management
800058018,ALLSTAR BUSINESS SOLUTIONS LTD,E2004181324,41,158.29,FUEL,05/02/2015,,Operations Fire Stations,Vehicle Management
800058018,ALLSTAR BUSINESS SOLUTIONS LTD,E2004181324,42,156.05,FUEL,05/02/2015,,Operations Fire Stations,Vehicle Management
800058018,ALLSTAR BUSINESS SOLUTIONS LTD,E2004181324,43,151.84,FUEL,05/02/2015,,Operations Fire Stations,Vehicle Management
800058018,ALLSTAR BUSINESS SOLUTIONS LTD,E2004181324,44,148.78,FUEL,05/02/2015,,Operations Fire Stations,Vehicle Management
800058018,ALLSTAR BUSINESS SOLUTIONS LTD,E2004181324,45,147.84,FUEL,05/02/2015,,Operations Fire Stations,Vehicle Management
800058018,ALLSTAR BUSINESS SOLUTIONS LTD,E2004181324,46,144.78,FUEL,05/02/2015,,Operations Fire Stations,Vehicle Management
800058018,ALLSTAR BUSINESS SOLUTIONS LTD,E2004181324,47,143.85,FUEL,05/02/2015,,Operations Fire Stations,Vehicle Management
800058018,ALLSTAR BUSINESS SOLUTIONS LTD,E2004181324,48,142.97,FUEL,05/02/2015,,Operations Fire Stations,Vehicle Management
800058018,ALLSTAR BUSINESS SOLUTIONS LTD,E2004181324,49,137.55,FUEL,05/02/2015,,Operations Fire Stations,Vehicle Management
800058018,ALLSTAR BUSINESS SOLUTIONS LTD,E2004181324,50,136.89,FUEL,05/02/2015,,Operational Resilience,Vehicle Management
800058018,ALLSTAR BUSINESS SOLUTIONS LTD,E2004181324,51,131.42,FUEL,05/02/2015,,Operations Fire Stations,Vehicle Management
800058018,ALLSTAR BUSINESS SOLUTIONS LTD,E2004181324,52,127.83,FUEL,05/02/2015,,Technical And Service Support,Vehicle Management
800058018,ALLSTAR BUSINESS SOLUTIONS LTD,E2004181324,53,127.13,FUEL,05/02/2015,,Operations Fire Stations,Vehicle Management
800058018,ALLSTAR BUSINESS SOLUTIONS LTD,E2004181324,54,124.68,FUEL,05/02/2015,,Operations Fire Stations,Vehicle Management
800058018,ALLSTAR BUSINESS SOLUTIONS LTD,E2004181324,55,122.8,FUEL,05/02/2015,,Operations Fire Stations,Vehicle Management
800058018,ALLSTAR BUSINESS SOLUTIONS LTD,E2004181324,56,122.18,FUEL,05/02/2015,,Operations Fire Stations,Vehicle Management
800058018,ALLSTAR BUSINESS SOLUTIONS LTD,E2004181324,57,117.89,FUEL,05/02/2015,,Operations Fire Stations,Vehicle Management
800058018,ALLSTAR BUSINESS SOLUTIONS LTD,E2004181324,58,116.14,FUEL,05/02/2015,,Operations Fire Stations,Vehicle Management
800058018,ALLSTAR BUSINESS SOLUTIONS LTD,E2004181324,59,114.56,FUEL,05/02/2015,,Operations Fire Stations,Vehicle Management
800058018,ALLSTAR BUSINESS SOLUTIONS LTD,E2004181324,60,110.98,FUEL,05/02/2015,,Operations Fire Stations,Vehicle Management
800058018,ALLSTAR BUSINESS SOLUTIONS LTD,E2004181324,61,102.93,FUEL,05/02/2015,,Operational Resilience,Vehicle Management
800058018,ALLSTAR BUSINESS SOLUTIONS LTD,E2004181324,62,101.46,FUEL,05/02/2015,,Operations Fire Stations,Vehicle Management
800058018,ALLSTAR BUSINESS SOLUTIONS LTD,E2004181324,63,100.32,FUEL,05/02/2015,,Operations Fire Stations,Vehicle Management
800058018,ALLSTAR BUSINESS SOLUTIONS LTD,E2004181324,64,99.29,FUEL,05/02/2015,,Operations Fire Stations,Vehicle Management
800058018,ALLSTAR BUSINESS SOLUTIONS LTD,E2004181324,65,99.03,FUEL,05/02/2015,,Operations Fire Stations,Vehicle Management
800058018,ALLSTAR BUSINESS SOLUTIONS LTD,E2004181324,66,98.99,FUEL,05/02/2015,,Operations Fire Stations,Vehicle Management
800058018,ALLSTAR BUSINESS SOLUTIONS LTD,E2004181324,67,97.97,FUEL,05/02/2015,,Operations Fire Stations,Vehicle Management
800058018,ALLSTAR BUSINESS SOLUTIONS LTD,E2004181324,68,97.73,FUEL,05/02/2015,,Technical And Service Support,Vehicle Management
800058018,ALLSTAR BUSINESS SOLUTIONS LTD,E2004181324,69,94.15,FUEL,05/02/2015,,Command Units,Vehicle Management
800058018,ALLSTAR BUSINESS SOLUTIONS LTD,E2004181324,70,89.85,FUEL,05/02/2015,,Information and Communication Technology,Vehicle Management
800058018,ALLSTAR BUSINESS SOLUTIONS LTD,E2004181324,71,88.43,FUEL,05/02/2015,,Command Units,Vehicle Management
800058018,ALLSTAR BUSINESS SOLUTIONS LTD,E2004181324,72,87.66,FUEL,05/02/2015,,Operations Fire Stations,Vehicle Management
800058018,ALLSTAR BUSINESS SOLUTIONS LTD,E2004181324,73,87.35,FUEL,05/02/2015,,Operations Fire Stations,Vehicle Management
800058018,ALLSTAR BUSINESS SOLUTIONS LTD,E2004181324,74,85.76,FUEL,05/02/2015,,Operations Non Fire Stations,Vehicle Management
800058018,ALLSTAR BUSINESS SOLUTIONS LTD,E2004181324,75,84.46,FUEL,05/02/2015,,Operations Fire Stations,Vehicle Management
800058018,ALLSTAR BUSINESS SOLUTIONS LTD,E2004181324,76,84.18,FUEL,05/02/2015,,Operations Fire Stations,Vehicle Management
800058018,ALLSTAR BUSINESS SOLUTIONS LTD,E2004181324,77,83.97,FUEL,05/02/2015,,Operations Fire Stations,Vehicle Management
800058018,ALLSTAR BUSINESS SOLUTIONS LTD,E2004181324,78,83.21,FUEL,05/02/2015,,Operations Fire Stations,Vehicle Management
800058018,ALLSTAR BUSINESS SOLUTIONS LTD,E2004181324,79,82.82,FUEL,05/02/2015,,LIFE - LFB Funded,Vehicle Management
800058018,ALLSTAR BUSINESS SOLUTIONS LTD,E2004181324,80,82.23,FUEL,05/02/2015,,Operations Fire Stations,Vehicle Management
800058018,ALLSTAR BUSINESS SOLUTIONS LTD,E2004181324,81,78.99,FUEL,05/02/2015,,Operations Fire Stations,Vehicle Management
800058018,ALLSTAR BUSINESS SOLUTIONS LTD,E2004181324,82,78.46,FUEL,05/02/2015,,Operations Fire Stations,Vehicle Management
800058018,ALLSTAR BUSINESS SOLUTIONS LTD,E2004181324,83,77.96,FUEL,05/02/2015,,Operations Fire Stations,Vehicle Management
800058018,ALLSTAR BUSINESS SOLUTIONS LTD,E2004181324,84,76.67,FUEL,05/02/2015,,Command Units,Vehicle Management
800058018,ALLSTAR BUSINESS SOLUTIONS LTD,E2004181324,85,76.16,FUEL,05/02/2015,,Operations Fire Stations,Vehicle Management
800058018,ALLSTAR BUSINESS SOLUTIONS LTD,E2004181324,86,65.22,FUEL,05/02/2015,,Command Units,Vehicle Management
800058018,ALLSTAR BUSINESS SOLUTIONS LTD,E2004181324,87,64.95,FUEL,05/02/2015,,Operations Fire Stations,Vehicle Management
800058018,ALLSTAR BUSINESS SOLUTIONS LTD,E2004181324,88,61.92,FUEL,05/02/2015,,Command Units,Vehicle Management
800058018,ALLSTAR BUSINESS SOLUTIONS LTD,E2004181324,89,60.79,FUEL,05/02/2015,,Operations Fire Stations,Vehicle Management
800058018,ALLSTAR BUSINESS SOLUTIONS LTD,E2004181324,90,58.34,FUEL,05/02/2015,,Operations Fire Stations,Vehicle Management
800058018,ALLSTAR BUSINESS SOLUTIONS LTD,E2004181324,91,57.91,FUEL,05/02/2015,,Operations Non Fire Stations,Vehicle Management
800058018,ALLSTAR BUSINESS SOLUTIONS LTD,E2004181324,92,57.1,FUEL,05/02/2015,,Command Units,Vehicle Management
800058018,ALLSTAR BUSINESS SOLUTIONS LTD,E2004181324,93,54.58,FUEL,05/02/2015,,Command Units,Vehicle Management
800058018,ALLSTAR BUSINESS SOLUTIONS LTD,E2004181324,94,48.94,FUEL,05/02/2015,,Operations Fire Stations,Vehicle Management
800058018,ALLSTAR BUSINESS SOLUTIONS LTD,E2004181324,95,45.04,FUEL,05/02/2015,,Operations Fire Stations,Vehicle Management
800058018,ALLSTAR BUSINESS SOLUTIONS LTD,E2004181324,96,40.02,FUEL,05/02/2015,,Operations Fire Stations,Vehicle Management
800058018,ALLSTAR BUSINESS SOLUTIONS LTD,E2004181324,97,39.12,FUEL,05/02/2015,,Operations Fire Stations,Vehicle Management
800058018,ALLSTAR BUSINESS SOLUTIONS LTD,E2004181324,98,34.5,FUEL,05/02/2015,,Command Units,Vehicle Management
800058018,ALLSTAR BUSINESS SOLUTIONS LTD,E2004181324,99,33.33,FUEL,05/02/2015,,Operational Procedures,Vehicle Management
800058018,ALLSTAR BUSINESS SOLUTIONS LTD,E2004181324,100,29.63,FUEL,05/02/2015,,Operational Procedures,Vehicle Management
800058018,ALLSTAR BUSINESS SOLUTIONS LTD,E2004181324,101,24.7,FUEL,05/02/2015,,Operations Fire Stations,Vehicle Management
800058018,ALLSTAR BUSINESS SOLUTIONS LTD,E2004181324,102,18.35,FUEL,05/02/2015,,CBRN RRT,Vehicle Management
140943,GOOD ENERGY===================,GE106451EA,1,688.5,ELECTRICITY,05/02/2015,688.5,Technical And Service Support,Utilities
260115G,THE WYEDEAN WEAVING COMPANY LD,I-14117,1,93.3,UNIFORMS - POMS,05/02/2015,"2,453.20",Procurement,Clothing
260115G,THE WYEDEAN WEAVING COMPANY LD,I-14117,2,94,UNIFORMS - POMS,05/02/2015,,Procurement,Clothing
260115G,THE WYEDEAN WEAVING COMPANY LD,I-14117,3,85.8,UNIFORMS - POMS,05/02/2015,,Procurement,Clothing
260115G,THE WYEDEAN WEAVING COMPANY LD,I-14117,4,312.5,UNIFORMS - POMS,05/02/2015,,Procurement,Clothing
260115G,THE WYEDEAN WEAVING COMPANY LD,I-14117,5,178.6,UNIFORMS - POMS,05/02/2015,,Procurement,Clothing
260115G,THE WYEDEAN WEAVING COMPANY LD,I-14117,6,178.6,UNIFORMS - POMS,05/02/2015,,Procurement,Clothing
260115G,THE WYEDEAN WEAVING COMPANY LD,I-14117,7,314.5,UNIFORMS - POMS,05/02/2015,,Procurement,Clothing
260115G,THE WYEDEAN WEAVING COMPANY LD,I-14117,8,179.6,UNIFORMS - POMS,05/02/2015,,Procurement,Clothing
260115G,THE WYEDEAN WEAVING COMPANY LD,I-14117,9,329,UNIFORMS - POMS,05/02/2015,,Procurement,Clothing
260115G,THE WYEDEAN WEAVING COMPANY LD,I-14117,10,326.5,UNIFORMS - POMS,05/02/2015,,Procurement,Clothing
260115G,THE WYEDEAN WEAVING COMPANY LD,I-14117,11,95.1,UNIFORMS - POMS,05/02/2015,,Procurement,Clothing
260115G,THE WYEDEAN WEAVING COMPANY LD,I-14117,12,86.8,UNIFORMS - POMS,05/02/2015,,Procurement,Clothing
260115G,THE WYEDEAN WEAVING COMPANY LD,I-14117,13,86.8,UNIFORMS - POMS,05/02/2015,,Procurement,Clothing
260115G,THE WYEDEAN WEAVING COMPANY LD,I-14117,14,92.1,UNIFORMS - POMS,05/02/2015,,Procurement,Clothing
020215C,HALL FUELS,I07262237,1,892.11,FUEL,05/02/2015,892.11,Operations Fire Stations,Vehicle Management
020215C,HALL FUELS,I07265175,1,"1,839.40",FUEL,05/02/2015,"1,839.40",Operations Fire Stations,Vehicle Management
260115G,HALL FUELS,I07308752,1,"2,669.70",FUEL,05/02/2015,"2,669.70",Operations Fire Stations,Vehicle Management
220115E,HALL FUELS,I07312542,1,"2,225.50",FUEL,05/02/2015,"2,225.50",Operations Fire Stations,Vehicle Management
020215C,JACKSON LIFT GROUP============,JS399588,1,87.08,STRATEGIC (CYCLICAL),05/02/2015,"2,393.86",Technical And Service Support,Facilities & Management S
020215C,JACKSON LIFT GROUP============,JS399588,2,87.08,STRATEGIC (CYCLICAL),05/02/2015,,Technical And Service Support,Facilities & Management S
020215C,JACKSON LIFT GROUP============,JS399588,3,87.08,STRATEGIC (CYCLICAL),05/02/2015,,Technical and Service Support,Facilities & Management S
020215C,JACKSON LIFT GROUP============,JS399588,4,87.08,STRATEGIC (CYCLICAL),05/02/2015,,Technical and Service Support,Facilities & Management S
020215C,JACKSON LIFT GROUP============,JS399588,5,87.08,STRATEGIC (CYCLICAL),05/02/2015,,Technical and Service Support,Facilities & Management S
020215C,JACKSON LIFT GROUP============,JS399588,6,87.08,STRATEGIC (CYCLICAL),05/02/2015,,Technical and Service Support,Facilities & Management S
020215C,JACKSON LIFT GROUP============,JS399588,7,87.08,STRATEGIC (CYCLICAL),05/02/2015,,Technical and Service Support,Facilities & Management S
020215C,JACKSON LIFT GROUP============,JS399588,8,87.08,STRATEGIC (CYCLICAL),05/02/2015,,Technical and Service Support,Facilities & Management S
020215C,JACKSON LIFT GROUP============,JS399588,9,87.08,STRATEGIC (CYCLICAL),05/02/2015,,Technical and Service Support,Facilities & Management S
020215C,JACKSON LIFT GROUP============,JS399588,10,43.08,STRATEGIC (CYCLICAL),05/02/2015,,Technical and Service Support,Facilities & Management S
020215C,JACKSON LIFT GROUP============,JS399588,11,43.08,STRATEGIC (CYCLICAL),05/02/2015,,Technical and Service Support,Facilities & Management S
020215C,JACKSON LIFT GROUP============,JS399588,12,109.17,STRATEGIC (CYCLICAL),05/02/2015,,Technical and Service Support,Facilities & Management S
020215C,JACKSON LIFT GROUP============,JS399588,13,109.17,STRATEGIC (CYCLICAL),05/02/2015,,Technical And Service Support,Facilities & Management S
020215C,JACKSON LIFT GROUP============,JS399588,14,109.17,STRATEGIC (CYCLICAL),05/02/2015,,Technical And Service Support,Facilities & Management S
020215C,JACKSON LIFT GROUP============,JS399588,15,109.17,STRATEGIC (CYCLICAL),05/02/2015,,Technical And Service Support,Facilities & Management S
020215C,JACKSON LIFT GROUP============,JS399588,16,109.17,STRATEGIC (CYCLICAL),05/02/2015,,Technical And Service Support,Facilities & Management S
020215C,JACKSON LIFT GROUP============,JS399588,17,109.17,STRATEGIC (CYCLICAL),05/02/2015,,Technical And Service Support,Facilities & Management S
020215C,JACKSON LIFT GROUP============,JS399588,18,43.08,STRATEGIC (CYCLICAL),05/02/2015,,Technical And Service Support,Facilities & Management S
020215C,JACKSON LIFT GROUP============,JS399588,19,87.08,STRATEGIC (CYCLICAL),05/02/2015,,Technical and Service Support,Facilities & Management S
020215C,JACKSON LIFT GROUP============,JS399588,20,43.08,STRATEGIC (CYCLICAL),05/02/2015,,Technical and Service Support,Facilities & Management S
020215C,JACKSON LIFT GROUP============,JS399588,21,87.08,STRATEGIC (CYCLICAL),05/02/2015,,Technical and Service Support,Facilities & Management S
020215C,JACKSON LIFT GROUP============,JS399588,22,43.08,STRATEGIC (CYCLICAL),05/02/2015,,Technical and Service Support,Facilities & Management S
020215C,JACKSON LIFT GROUP============,JS399588,23,87.08,STRATEGIC (CYCLICAL),05/02/2015,,Technical and Service Support,Facilities & Management S
020215C,JACKSON LIFT GROUP============,JS399588,24,87.08,STRATEGIC (CYCLICAL),05/02/2015,,Technical and Service Support,Facilities & Management S
020215C,JACKSON LIFT GROUP============,JS399588,25,87.08,STRATEGIC (CYCLICAL),05/02/2015,,Technical and Service Support,Facilities & Management S
020215C,JACKSON LIFT GROUP============,JS399588,26,87.08,STRATEGIC (CYCLICAL),05/02/2015,,Technical and Service Support,Facilities & Management S
020215C,JACKSON LIFT GROUP============,JS399588,27,43.08,STRATEGIC (CYCLICAL),05/02/2015,,Technical and Service Support,Facilities & Management S
020215C,JACKSON LIFT GROUP============,JS399588,28,87.08,STRATEGIC (CYCLICAL),05/02/2015,,Technical and Service Support,Facilities & Management S
020215C,JACKSON LIFT GROUP============,JS399588,29,87.08,STRATEGIC (CYCLICAL),05/02/2015,,Technical and Service Support,Facilities & Management S
300115C,COFELY WORKPLACE LIMITED,M133448,1,421.94,TACTICAL DAY TO DAY,05/02/2015,"19,166.81",Technical And Service Support,"Works - Construction, R&M"
300115C,COFELY WORKPLACE LIMITED,M133448,2,26.51,TACTICAL DAY TO DAY,05/02/2015,,Technical And Service Support,"Works - Construction, R&M"
300115C,COFELY WORKPLACE LIMITED,M133448,3,228.8,TACTICAL DAY TO DAY,05/02/2015,,Technical And Service Support,"Works - Construction, R&M"
300115C,COFELY WORKPLACE LIMITED,M133448,4,459.04,TACTICAL DAY TO DAY,05/02/2015,,Technical And Service Support,"Works - Construction, R&M"
300115C,COFELY WORKPLACE LIMITED,M133448,5,35.37,TACTICAL DAY TO DAY,05/02/2015,,Technical And Service Support,"Works - Construction, R&M"
300115C,COFELY WORKPLACE LIMITED,M133448,6,327.16,TACTICAL DAY TO DAY,05/02/2015,,Technical And Service Support,"Works - Construction, R&M"
300115C,COFELY WORKPLACE LIMITED,M133448,7,245.5,TACTICAL DAY TO DAY,05/02/2015,,Technical And Service Support,"Works - Construction, R&M"
300115C,COFELY WORKPLACE LIMITED,M133448,8,"1,143.09",TACTICAL DAY TO DAY,05/02/2015,,Technical And Service Support,"Works - Construction, R&M"
300115C,COFELY WORKPLACE LIMITED,M133448,9,445.19,TACTICAL DAY TO DAY,05/02/2015,,Technical And Service Support,"Works - Construction, R&M"
300115C,COFELY WORKPLACE LIMITED,M133448,10,408.38,TACTICAL DAY TO DAY,05/02/2015,,Technical And Service Support,"Works - Construction, R&M"
300115C,COFELY WORKPLACE LIMITED,M133448,11,339.52,TACTICAL DAY TO DAY,05/02/2015,,Technical And Service Support,"Works - Construction, R&M"
300115C,COFELY WORKPLACE LIMITED,M133448,12,126.09,TACTICAL DAY TO DAY,05/02/2015,,Technical And Service Support,"Works - Construction, R&M"
300115C,COFELY WORKPLACE LIMITED,M133448,13,"1,133.74",TACTICAL DAY TO DAY,05/02/2015,,Technical And Service Support,"Works - Construction, R&M"
300115C,COFELY WORKPLACE LIMITED,M133448,14,447.65,TACTICAL DAY TO DAY,05/02/2015,,Technical And Service Support,"Works - Construction, R&M"
300115C,COFELY WORKPLACE LIMITED,M133448,15,612.27,TACTICAL DAY TO DAY,05/02/2015,,Technical And Service Support,"Works - Construction, R&M"
300115C,COFELY WORKPLACE LIMITED,M133448,16,305.59,TACTICAL DAY TO DAY,05/02/2015,,Technical And Service Support,"Works - Construction, R&M"
300115C,COFELY WORKPLACE LIMITED,M133448,17,599.57,TACTICAL DAY TO DAY,05/02/2015,,Technical And Service Support,"Works - Construction, R&M"
300115C,COFELY WORKPLACE LIMITED,M133448,18,281.07,TACTICAL DAY TO DAY,05/02/2015,,Technical And Service Support,"Works - Construction, R&M"
300115C,COFELY WORKPLACE LIMITED,M133448,19,65.71,TACTICAL DAY TO DAY,05/02/2015,,Technical And Service Support,"Works - Construction, R&M"
300115C,COFELY WORKPLACE LIMITED,M133448,20,716.59,TACTICAL DAY TO DAY,05/02/2015,,Technical And Service Support,"Works - Construction, R&M"
300115C,COFELY WORKPLACE LIMITED,M133448,21,235.74,TACTICAL DAY TO DAY,05/02/2015,,Technical And Service Support,"Works - Construction, R&M"
300115C,COFELY WORKPLACE LIMITED,M133448,22,293.13,TACTICAL DAY TO DAY,05/02/2015,,Technical And Service Support,"Works - Construction, R&M"
300115C,COFELY WORKPLACE LIMITED,M133448,23,223.95,TACTICAL DAY TO DAY,05/02/2015,,Technical And Service Support,"Works - Construction, R&M"
300115C,COFELY WORKPLACE LIMITED,M133448,24,86.04,TACTICAL DAY TO DAY,05/02/2015,,Technical And Service Support,"Works - Construction, R&M"
300115C,COFELY WORKPLACE LIMITED,M133448,25,"1,121.28",TACTICAL DAY TO DAY,05/02/2015,,Technical And Service Support,"Works - Construction, R&M"
300115C,COFELY WORKPLACE LIMITED,M133448,26,12.87,TACTICAL DAY TO DAY,05/02/2015,,Technical And Service Support,"Works - Construction, R&M"
300115C,COFELY WORKPLACE LIMITED,M133448,27,33.14,TACTICAL DAY TO DAY,05/02/2015,,Technical And Service Support,"Works - Construction, R&M"
300115C,COFELY WORKPLACE LIMITED,M133448,28,911.4,TACTICAL DAY TO DAY,05/02/2015,,Technical And Service Support,"Works - Construction, R&M"
300115C,COFELY WORKPLACE LIMITED,M133448,29,349.17,TACTICAL DAY TO DAY,05/02/2015,,Technical And Service Support,"Works - Construction, R&M"
300115C,COFELY WORKPLACE LIMITED,M133448,30,79.53,TACTICAL DAY TO DAY,05/02/2015,,Technical And Service Support,"Works - Construction, R&M"
300115C,COFELY WORKPLACE LIMITED,M133448,31,47.16,TACTICAL DAY TO DAY,05/02/2015,,Technical And Service Support,"Works - Construction, R&M"
300115C,COFELY WORKPLACE LIMITED,M133448,32,35.37,TACTICAL DAY TO DAY,05/02/2015,,Technical And Service Support,"Works - Construction, R&M"
300115C,COFELY WORKPLACE LIMITED,M133448,33,431.77,TACTICAL DAY TO DAY,05/02/2015,,Technical And Service Support,"Works - Construction, R&M"
300115C,COFELY WORKPLACE LIMITED,M133448,34,78.9,TACTICAL DAY TO DAY,05/02/2015,,Technical And Service Support,"Works - Construction, R&M"
300115C,COFELY WORKPLACE LIMITED,M133448,35,852.5,TACTICAL DAY TO DAY,05/02/2015,,Technical And Service Support,"Works - Construction, R&M"
300115C,COFELY WORKPLACE LIMITED,M133448,36,534.68,TACTICAL DAY TO DAY,05/02/2015,,Technical And Service Support,"Works - Construction, R&M"
300115C,COFELY WORKPLACE LIMITED,M133448,37,58.95,TACTICAL DAY TO DAY,05/02/2015,,Technical And Service Support,"Works - Construction, R&M"
300115C,COFELY WORKPLACE LIMITED,M133448,38,45.04,TACTICAL DAY TO DAY,05/02/2015,,Technical And Service Support,"Works - Construction, R&M"
300115C,COFELY WORKPLACE LIMITED,M133448,39,120.02,TACTICAL DAY TO DAY,05/02/2015,,Technical And Service Support,"Works - Construction, R&M"
300115C,COFELY WORKPLACE LIMITED,M133448,40,264.4,TACTICAL DAY TO DAY,05/02/2015,,Technical And Service Support,"Works - Construction, R&M"
300115C,COFELY WORKPLACE LIMITED,M133448,41,46.39,TACTICAL DAY TO DAY,05/02/2015,,Technical And Service Support,"Works - Construction, R&M"
300115C,COFELY WORKPLACE LIMITED,M133448,42,837.06,TACTICAL DAY TO DAY,05/02/2015,,Technical And Service Support,"Works - Construction, R&M"
300115C,COFELY WORKPLACE LIMITED,M133448,43,192.97,TACTICAL DAY TO DAY,05/02/2015,,Technical And Service Support,"Works - Construction, R&M"
300115C,COFELY WORKPLACE LIMITED,M133448,44,352,TACTICAL DAY TO DAY,05/02/2015,,Technical And Service Support,"Works - Construction, R&M"
300115C,COFELY WORKPLACE LIMITED,M133448,45,178.68,TACTICAL DAY TO DAY,05/02/2015,,Technical And Service Support,"Works - Construction, R&M"
300115C,COFELY WORKPLACE LIMITED,M133448,46,579.53,TACTICAL DAY TO DAY,05/02/2015,,Technical And Service Support,"Works - Construction, R&M"
300115C,COFELY WORKPLACE LIMITED,M133448,47,124.5,TACTICAL DAY TO DAY,05/02/2015,,Technical And Service Support,"Works - Construction, R&M"
300115C,COFELY WORKPLACE LIMITED,M133448,48,"1,371.77",TACTICAL DAY TO DAY,05/02/2015,,Technical And Service Support,"Works - Construction, R&M"
300115C,COFELY WORKPLACE LIMITED,M133448,49,286,TACTICAL DAY TO DAY,05/02/2015,,Technical And Service Support,"Works - Construction, R&M"
300115C,COFELY WORKPLACE LIMITED,M133448,50,470.38,TACTICAL DAY TO DAY,05/02/2015,,Technical And Service Support,"Works - Construction, R&M"
300115C,COFELY WORKPLACE LIMITED,M133448,51,269.87,TACTICAL DAY TO DAY,05/02/2015,,Technical And Service Support,"Works - Construction, R&M"
300115C,COFELY WORKPLACE LIMITED,M133448,52,273.84,TACTICAL DAY TO DAY,05/02/2015,,Technical And Service Support,"Works - Construction, R&M"
260115G,COFELY WORKPLACE LIMITED,M133750,1,"1,050.85",STRATEGIC (NON CYCLICAL),05/02/2015,"1,050.85",Technical and Service Support,"Works - Construction, R&M"
300115C,COFELY WORKPLACE LIMITED,M133751,1,"1,953.33",TACTICAL DAY TO DAY,05/02/2015,"1,953.33",Technical And Service Support,"Works - Construction, R&M"
260115G,COFELY WORKPLACE LIMITED,M133752,1,"1,754.85",STRATEGIC (NON CYCLICAL),05/02/2015,"2,004.35",Technical and Service Support,"Works - Construction, R&M"
260115G,COFELY WORKPLACE LIMITED,M133752,2,249.5,STRATEGIC (NON CYCLICAL),05/02/2015,,Technical and Service Support,"Works - Construction, R&M"
260115G,COFELY WORKPLACE LIMITED,M133753,1,"4,163.30",STRATEGIC (NON CYCLICAL),05/02/2015,"4,163.30",Technical and Service Support,"Works - Construction, R&M"
300115C,CANNON'S MSA LTD,NV1081548,1,299.97,TACTICAL DAY TO DAY,05/02/2015,299.97,Technical And Service Support,Vehicle Management
020215C,PHOENIX SOFTWARE LTD==========,OP/I745335,1,"9,880.00",MAINTENANCE & SUPPORT,05/02/2015,"15,776.80",Information and Communication Technology,ICT
020215C,PHOENIX SOFTWARE LTD==========,OP/I745335,2,"4,936.80",MAINTENANCE & SUPPORT,05/02/2015,,Information and Communication Technology,ICT
020215C,PHOENIX SOFTWARE LTD==========,OP/I745335,3,960,MAINTENANCE & SUPPORT,05/02/2015,,Information and Communication Technology,ICT
140943,VEOLIA WATER PROJECTS LTD=====,SI-14-0008453,1,"4,595.67",ELECTRICITY,05/02/2015,"4,595.67",Technical And Service Support,Utilities
290115C,SPEAKERS TRUST,WEB004261,1,275,PROFESSIONAL DEVELOPMENT,05/02/2015,550,LIFE - LFB Funded,Human Resources
290115C,SPEAKERS TRUST,WEB004261,2,275,PROFESSIONAL DEVELOPMENT,05/02/2015,,LIFE - LFB Funded,Human Resources
040215G,UKDN WATERFLOW BEXLEYHEATH,1717,1,480,TACTICAL DAY TO DAY,09/02/2015,480,Technical And Service Support,"Works - Construction, R&M"
030215E,MOOLANDS LTD,1730,1,"1,645.00",STRATEGIC (NON CYCLICAL),09/02/2015,"1,645.00",Technical And Service Support,"Works - Construction, R&M"
800053521,AZTEC COMPUTING LTD===========,10458,1,"1,400.00",MAINTENANCE & SUPPORT,09/02/2015,"1,400.00",Information and Communication Technology,ICT
040215G,VISTA LANDSCAPE MANAGEMENT LTD,120460,1,144.25,GROUNDS MAINTENANCE,09/02/2015,"2,955.91",Technical And Service Support,"Works - Construction, R&M"
040215G,VISTA LANDSCAPE MANAGEMENT LTD,120460,2,26.71,GROUNDS MAINTENANCE,09/02/2015,,Technical And Service Support,"Works - Construction, R&M"
040215G,VISTA LANDSCAPE MANAGEMENT LTD,120460,3,29.23,GROUNDS MAINTENANCE,09/02/2015,,Technical And Service Support,"Works - Construction, R&M"
040215G,VISTA LANDSCAPE MANAGEMENT LTD,120460,4,32.26,GROUNDS MAINTENANCE,09/02/2015,,Technical And Service Support,"Works - Construction, R&M"
040215G,VISTA LANDSCAPE MANAGEMENT LTD,120460,5,113.22,GROUNDS MAINTENANCE,09/02/2015,,Technical And Service Support,"Works - Construction, R&M"
040215G,VISTA LANDSCAPE MANAGEMENT LTD,120460,6,25.42,GROUNDS MAINTENANCE,09/02/2015,,Technical And Service Support,"Works - Construction, R&M"
040215G,VISTA LANDSCAPE MANAGEMENT LTD,120460,7,33.14,GROUNDS MAINTENANCE,09/02/2015,,Technical And Service Support,"Works - Construction, R&M"
040215G,VISTA LANDSCAPE MANAGEMENT LTD,120460,8,26.46,GROUNDS MAINTENANCE,09/02/2015,,Technical And Service Support,"Works - Construction, R&M"
040215G,VISTA LANDSCAPE MANAGEMENT LTD,120460,9,23.05,GROUNDS MAINTENANCE,09/02/2015,,Technical And Service Support,"Works - Construction, R&M"
040215G,VISTA LANDSCAPE MANAGEMENT LTD,120460,10,23.14,GROUNDS MAINTENANCE,09/02/2015,,Technical And Service Support,"Works - Construction, R&M"
040215G,VISTA LANDSCAPE MANAGEMENT LTD,120460,11,26.68,GROUNDS MAINTENANCE,09/02/2015,,Technical And Service Support,"Works - Construction, R&M"
040215G,VISTA LANDSCAPE MANAGEMENT LTD,120460,12,124.13,GROUNDS MAINTENANCE,09/02/2015,,Technical And Service Support,"Works - Construction, R&M"
040215G,VISTA LANDSCAPE MANAGEMENT LTD,120460,13,22.46,GROUNDS MAINTENANCE,09/02/2015,,Technical And Service Support,"Works - Construction, R&M"
040215G,VISTA LANDSCAPE MANAGEMENT LTD,120460,14,94,GROUNDS MAINTENANCE,09/02/2015,,Technical And Service Support,"Works - Construction, R&M"
040215G,VISTA LANDSCAPE MANAGEMENT LTD,120460,15,29.15,GROUNDS MAINTENANCE,09/02/2015,,Technical And Service Support,"Works - Construction, R&M"
040215G,VISTA LANDSCAPE MANAGEMENT LTD,120460,16,23.91,GROUNDS MAINTENANCE,09/02/2015,,Technical And Service Support,"Works - Construction, R&M"
040215G,VISTA LANDSCAPE MANAGEMENT LTD,120460,17,141.74,GROUNDS MAINTENANCE,09/02/2015,,Technical And Service Support,"Works - Construction, R&M"
040215G,VISTA LANDSCAPE MANAGEMENT LTD,120460,18,24.27,GROUNDS MAINTENANCE,09/02/2015,,Technical And Service Support,"Works - Construction, R&M"
040215G,VISTA LANDSCAPE MANAGEMENT LTD,120460,19,25.81,GROUNDS MAINTENANCE,09/02/2015,,Technical And Service Support,"Works - Construction, R&M"
040215G,VISTA LANDSCAPE MANAGEMENT LTD,120460,20,19.47,GROUNDS MAINTENANCE,09/02/2015,,Technical And Service Support,"Works - Construction, R&M"
040215G,VISTA LANDSCAPE MANAGEMENT LTD,120460,21,24.94,GROUNDS MAINTENANCE,09/02/2015,,Technical And Service Support,"Works - Construction, R&M"
040215G,VISTA LANDSCAPE MANAGEMENT LTD,120460,22,25.79,GROUNDS MAINTENANCE,09/02/2015,,Technical And Service Support,"Works - Construction, R&M"
040215G,VISTA LANDSCAPE MANAGEMENT LTD,120460,23,29.49,GROUNDS MAINTENANCE,09/02/2015,,Technical And Service Support,"Works - Construction, R&M"
040215G,VISTA LANDSCAPE MANAGEMENT LTD,120460,24,23.35,GROUNDS MAINTENANCE,09/02/2015,,Technical And Service Support,"Works - Construction, R&M"
040215G,VISTA LANDSCAPE MANAGEMENT LTD,120460,25,23.22,GROUNDS MAINTENANCE,09/02/2015,,Technical And Service Support,"Works - Construction, R&M"
040215G,VISTA LANDSCAPE MANAGEMENT LTD,120460,26,20.92,GROUNDS MAINTENANCE,09/02/2015,,Technical And Service Support,"Works - Construction, R&M"
040215G,VISTA LANDSCAPE MANAGEMENT LTD,120460,27,91.14,GROUNDS MAINTENANCE,09/02/2015,,Technical And Service Support,"Works - Construction, R&M"
040215G,VISTA LANDSCAPE MANAGEMENT LTD,120460,28,96.04,GROUNDS MAINTENANCE,09/02/2015,,Technical And Service Support,"Works - Construction, R&M"
040215G,VISTA LANDSCAPE MANAGEMENT LTD,120460,29,24.52,GROUNDS MAINTENANCE,09/02/2015,,Technical And Service Support,"Works - Construction, R&M"
040215G,VISTA LANDSCAPE MANAGEMENT LTD,120460,30,280.25,GROUNDS MAINTENANCE,09/02/2015,,Technical And Service Support,"Works - Construction, R&M"
040215G,VISTA LANDSCAPE MANAGEMENT LTD,120460,31,24.01,GROUNDS MAINTENANCE,09/02/2015,,Technical And Service Support,"Works - Construction, R&M"
040215G,VISTA LANDSCAPE MANAGEMENT LTD,120460,32,73.23,GROUNDS MAINTENANCE,09/02/2015,,Technical And Service Support,"Works - Construction, R&M"
040215G,VISTA LANDSCAPE MANAGEMENT LTD,120460,33,22.53,GROUNDS MAINTENANCE,09/02/2015,,Technical And Service Support,"Works - Construction, R&M"
040215G,VISTA LANDSCAPE MANAGEMENT LTD,120460,34,24.02,GROUNDS MAINTENANCE,09/02/2015,,Technical And Service Support,"Works - Construction, R&M"
040215G,VISTA LANDSCAPE MANAGEMENT LTD,120460,35,23.34,GROUNDS MAINTENANCE,09/02/2015,,Technical And Service Support,"Works - Construction, R&M"
040215G,VISTA LANDSCAPE MANAGEMENT LTD,120460,36,90.84,GROUNDS MAINTENANCE,09/02/2015,,Technical And Service Support,"Works - Construction, R&M"
040215G,VISTA LANDSCAPE MANAGEMENT LTD,120460,37,132.3,GROUNDS MAINTENANCE,09/02/2015,,Technical And Service Support,"Works - Construction, R&M"
040215G,VISTA LANDSCAPE MANAGEMENT LTD,120460,38,751.76,GROUNDS MAINTENANCE,09/02/2015,,Technical And Service Support,"Works - Construction, R&M"
040215G,VISTA LANDSCAPE MANAGEMENT LTD,120460,39,72.18,GROUNDS MAINTENANCE,09/02/2015,,Technical And Service Support,"Works - Construction, R&M"
040215G,VISTA LANDSCAPE MANAGEMENT LTD,120460,40,64.28,GROUNDS MAINTENANCE,09/02/2015,,Technical And Service Support,"Works - Construction, R&M"
040215G,VISTA LANDSCAPE MANAGEMENT LTD,120460,41,29.26,GROUNDS MAINTENANCE,09/02/2015,,Technical And Service Support,"Works - Construction, R&M"
040215G,VISTA LANDSCAPE MANAGEMENT LTD,120483,1,338.83,GROUNDS MAINTENANCE,09/02/2015,338.83,Technical And Service Support,"Works - Construction, R&M"
040215G,SILVERSANDS LIMITED===========,121769,1,"3,800.00",PURCHASES-SOFTWARE,09/02/2015,"3,800.00",Information and Communication Technology,ICT
140946,MR DAVID CLAXTON,135976,1,"1,125.00",PROFESSIONAL FEES ENFORCEMENT,09/02/2015,"1,125.00",Legal & Democratic Services,Legal Services
040215G,ENTEL UK LTD==================,160541/161835,1,9,RADIO,09/02/2015,"1,199.00",Information and Communication Technology,ICT
040215G,ENTEL UK LTD==================,160541/161835,2,"1,020.00",RADIO,09/02/2015,,Information and Communication Technology,ICT
040215G,ENTEL UK LTD==================,160541/161835,3,90,RADIO,09/02/2015,,Information and Communication Technology,ICT
040215G,ENTEL UK LTD==================,160541/161835,4,80,RADIO,09/02/2015,,Information and Communication Technology,ICT
040215G,DRON & WRIGHT=================,17441,1,"5,643.92",PROFESSIONAL SERVICES,09/02/2015,"6,758.00",Technical And Service Support,Facilities & Management S
040215G,DRON & WRIGHT=================,17441,2,"1,114.08",PROFESSIONAL SERVICES,09/02/2015,,Technical And Service Support,Facilities & Management S
040215G,CHAIN GANG,20654,1,"1,408.27",POSTAL SERVICES,09/02/2015,"1,408.27",Strategy & Performance,Mail Services
140946,MS REBECCA WRIGHT,229385,1,350,PROFESSIONAL FEES ENFORCEMENT,09/02/2015,350,Legal & Democratic Services,Legal Services
140946,MR GUY LADENBURG==============,231816,1,490,PROFESSIONAL FEES ENFORCEMENT,09/02/2015,490,Legal & Democratic Services,Legal Services
140946,MISS BO-EUN JUNG==============,231907*,1,"6,250.00",CONSULTANTS,09/02/2015,"6,250.00",Regulatory Fire Safety,Legal Services
140946,MS HEATHER OLIVER,233905,1,"1,120.00",PROFESSIONAL FEES ENFORCEMENT,09/02/2015,"1,120.00",Legal & Democratic Services,Legal Services
030215E,B NOKES CONTRACTS LTD,2405,1,"1,334.50",STRATEGIC (NON CYCLICAL),09/02/2015,"1,334.50",Technical and Service Support,"Works - Construction, R&M"
040215G,B NOKES CONTRACTS LTD,2486,1,295,TACTICAL DAY TO DAY,09/02/2015,295,Regulatory Fire Safety,"Works - Construction, R&M"
040215G,B NOKES CONTRACTS LTD,2487,1,288,TACTICAL DAY TO DAY,09/02/2015,288,Technical And Service Support,"Works - Construction, R&M"
040215G,B NOKES CONTRACTS LTD,2552,1,980,TACTICAL DAY TO DAY,09/02/2015,980,Technical And Service Support,"Works - Construction, R&M"
040215G,B NOKES CONTRACTS LTD,2554,1,680,REMOVALS,09/02/2015,680,Technical And Service Support,"Works - Construction, R&M"
030215E,B NOKES CONTRACTS LTD,2555,1,"8,694.50",STRATEGIC (NON CYCLICAL),09/02/2015,"8,694.50",Technical and Service Support,"Works - Construction, R&M"
040215G,B NOKES CONTRACTS LTD,2556,1,"5,665.00",REMOVALS,09/02/2015,"5,665.00",Technical And Service Support,"Works - Construction, R&M"
040215G,B NOKES CONTRACTS LTD,2557,1,"1,640.00",REMOVALS,09/02/2015,"1,640.00",Technical And Service Support,"Works - Construction, R&M"
040215G,B NOKES CONTRACTS LTD,2558,1,"1,440.00",REMOVALS,09/02/2015,"1,440.00",Technical And Service Support,"Works - Construction, R&M"
030215E,B NOKES CONTRACTS LTD,2559,1,"5,871.75",STRATEGIC (NON CYCLICAL),09/02/2015,"5,871.75",Technical and Service Support,"Works - Construction, R&M"
040215G,B NOKES CONTRACTS LTD,2560,1,"2,965.00",REMOVALS,09/02/2015,"2,965.00",Technical And Service Support,"Works - Construction, R&M"
040215G,B NOKES CONTRACTS LTD,2562,1,390,TACTICAL DAY TO DAY,09/02/2015,390,Technical And Service Support,"Works - Construction, R&M"
040215G,B NOKES CONTRACTS LTD,2563,1,800,TACTICAL DAY TO DAY,09/02/2015,800,Technical And Service Support,"Works - Construction, R&M"
040215G,B NOKES CONTRACTS LTD,2565,1,"2,965.00",REMOVALS,09/02/2015,"2,965.00",Technical And Service Support,"Works - Construction, R&M"
040215G,B NOKES CONTRACTS LTD,2567,1,"5,236.75",STRATEGIC (NON CYCLICAL),09/02/2015,"6,721.75",Technical and Service Support,"Works - Construction, R&M"
040215G,B NOKES CONTRACTS LTD,2567,2,"1,485.00",STRATEGIC (NON CYCLICAL),09/02/2015,,Technical and Service Support,"Works - Construction, R&M"
040215G,B NOKES CONTRACTS LTD,2568,1,"5,665.00",REMOVALS,09/02/2015,"5,665.00",Technical And Service Support,"Works - Construction, R&M"
030215E,B NOKES CONTRACTS LTD,2569,1,"5,665.00",REMOVALS,09/02/2015,"5,665.00",Technical And Service Support,"Works - Construction, R&M"
030215E,B NOKES CONTRACTS LTD,2570,1,"5,665.00",REMOVALS,09/02/2015,"5,665.00",Technical And Service Support,"Works - Construction, R&M"
030215E,B NOKES CONTRACTS LTD,2571,1,"2,965.00",REMOVALS,09/02/2015,"2,965.00",Technical And Service Support,"Works - Construction, R&M"
030215E,B NOKES CONTRACTS LTD,2573,1,"2,403.30",DEVELOPMENT  EXPENSES-CONTRACT,09/02/2015,"2,403.30",Technical and Service Support,"Works - Construction, R&M"
040215G,ARKAS LIMITED=================,26300,1,"1,101.28",STRATEGIC (CYCLICAL),09/02/2015,"2,249.89",Technical And Service Support,"Works - Construction, R&M"
040215G,ARKAS LIMITED=================,26300,2,197.5,STRATEGIC (CYCLICAL),09/02/2015,,Technical And Service Support,"Works - Construction, R&M"
040215G,ARKAS LIMITED=================,26300,3,524.86,STRATEGIC (CYCLICAL),09/02/2015,,Technical And Service Support,"Works - Construction, R&M"
040215G,ARKAS LIMITED=================,26300,4,426.25,STRATEGIC (CYCLICAL),09/02/2015,,Technical And Service Support,"Works - Construction, R&M"
800025142,ADECCO UK LIMITED=============,26570184,1,"1,071.00",FRS STAFF AGENCY,09/02/2015,"1,071.00",Communications,Human Resources
800025143,ADECCO UK LIMITED=============,26570185,1,"1,224.00",FRS STAFF AGENCY,09/02/2015,"1,224.00",Communications,Human Resources
800058209,ADECCO UK LIMITED=============,26948932,1,747.36,FRS STAFF AGENCY,09/02/2015,747.36,Mobilising,Human Resources
800058215,ADECCO UK LIMITED=============,27002233,1,996.48,FRS STAFF AGENCY,09/02/2015,996.48,Mobilising,Human Resources
800057997,ADECCO UK LIMITED=============,27049341,1,675.15,FRS STAFF AGENCY,09/02/2015,675.15,Information and Communication Technology,Human Resources
800058088,ADECCO UK LIMITED=============,27052430,1,439.6,FRS STAFF AGENCY,09/02/2015,439.6,Communications,Human Resources
040215G,DRAEGER SAFETY UK LIMITED=====,2910005500,1,"2,468.19",PROTECTIVE EQUIPT - PARTS,09/02/2015,"2,468.19",Technical and Service Support,Fire & Rescue
040215G,DRAEGER SAFETY UK LIMITED=====,2910005503,1,"1,896.20",PROTECTIVE EQUIPT - PARTS,09/02/2015,"1,896.20",Technical and Service Support,Fire & Rescue
040215G,CARPETS & FLOOR COVERS DIRECT=,3481,1,903.88,FIXTURES & FITTINGS,09/02/2015,"4,594.66",Technical And Service Support,Building Constr Materials
040215G,CARPETS & FLOOR COVERS DIRECT=,3481,2,"2,020.30",FIXTURES & FITTINGS,09/02/2015,,Technical And Service Support,Building Constr Materials
040215G,CARPETS & FLOOR COVERS DIRECT=,3481,3,"1,670.48",FIXTURES & FITTINGS,09/02/2015,,Technical And Service Support,Building Constr Materials
040215G,CARPETS & FLOOR COVERS DIRECT=,3486,1,"1,213.52",FIXTURES & FITTINGS,09/02/2015,"2,958.20",Technical And Service Support,Building Constr Materials
040215G,CARPETS & FLOOR COVERS DIRECT=,3486,2,"1,744.68",FIXTURES & FITTINGS,09/02/2015,,Technical And Service Support,Building Constr Materials
040215G,COMPUTACENTRE================,3880392308,1,796.6,ACQUISITIONS,09/02/2015,"4,203.50",Information and Communication Technology,ICT
040215G,COMPUTACENTRE================,3880392308,2,700,ACQUISITIONS,09/02/2015,,Information and Communication Technology,ICT
040215G,COMPUTACENTRE================,3880392308,3,"2,706.90",ACQUISITIONS,09/02/2015,,Information and Communication Technology,ICT
040215G,CANON (UK) LTD===============,401614927,1,38.5,OFFICE EQUIPMENT,09/02/2015,619.88,Mobilising,ICT
040215G,CANON (UK) LTD===============,401614927,2,581.38,OFFICE EQUIPMENT,09/02/2015,,Mobilising,ICT
040215G,KNIGHTON CLEANING SERVICES LTD,44392,1,557.2,SPECIAL CLEANS,09/02/2015,557.2,Technical And Service Support,Cleaning & Janitorial
140935,*SP SERVICES,5501512141,1,61.22,ELECTRICITY,09/02/2015,"1,099.16",Technical And Service Support,Healthcare
140935,*SP SERVICES,5501512141,2,38.88,ELECTRICITY,09/02/2015,,Technical And Service Support,Healthcare
140935,*SP SERVICES,5501512141,3,101.54,ELECTRICITY,09/02/2015,,Technical And Service Support,Healthcare
140935,*SP SERVICES,5501512141,4,95.29,ELECTRICITY,09/02/2015,,Technical And Service Support,Healthcare
140935,*SP SERVICES,5501512141,5,59.73,ELECTRICITY,09/02/2015,,Technical And Service Support,Healthcare
140935,*SP SERVICES,5501512141,6,8.99,ELECTRICITY,09/02/2015,,Technical And Service Support,Healthcare
140935,*SP SERVICES,5501512141,7,12.62,ELECTRICITY,09/02/2015,,Technical And Service Support,Healthcare
140935,*SP SERVICES,5501512141,8,18.58,ELECTRICITY,09/02/2015,,Technical And Service Support,Healthcare
140935,*SP SERVICES,5501512141,9,46.7,ELECTRICITY,09/02/2015,,Technical And Service Support,Healthcare
140935,*SP SERVICES,5501512141,10,26.04,ELECTRICITY,09/02/2015,,Technical And Service Support,Healthcare
140935,*SP SERVICES,5501512141,11,16.11,ELECTRICITY,09/02/2015,,Technical And Service Support,Healthcare
140935,*SP SERVICES,5501512141,12,73.89,ELECTRICITY,09/02/2015,,Technical And Service Support,Healthcare
140935,*SP SERVICES,5501512141,13,19.67,ELECTRICITY,09/02/2015,,Technical And Service Support,Healthcare
140935,*SP SERVICES,5501512141,14,100.7,ELECTRICITY,09/02/2015,,Technical And Service Support,Healthcare
140935,*SP SERVICES,5501512141,15,9.72,ELECTRICITY,09/02/2015,,Technical And Service Support,Healthcare
140935,*SP SERVICES,5501512141,16,97.77,ELECTRICITY,09/02/2015,,Technical And Service Support,Healthcare
140935,*SP SERVICES,5501512141,17,32.92,ELECTRICITY,09/02/2015,,Technical And Service Support,Healthcare
140935,*SP SERVICES,5501512141,18,38.32,ELECTRICITY,09/02/2015,,Technical And Service Support,Healthcare
140935,*SP SERVICES,5501512141,19,55.27,ELECTRICITY,09/02/2015,,Technical And Service Support,Healthcare
140935,*SP SERVICES,5501512141,20,25.66,ELECTRICITY,09/02/2015,,Technical And Service Support,Healthcare
140935,*SP SERVICES,5501512141,21,21.47,ELECTRICITY,09/02/2015,,Technical And Service Support,Healthcare
140935,*SP SERVICES,5501512141,22,29.66,ELECTRICITY,09/02/2015,,Technical And Service Support,Healthcare
140935,*SP SERVICES,5501512141,23,61.83,ELECTRICITY,09/02/2015,,Technical And Service Support,Healthcare
140935,*SP SERVICES,5501512141,24,15.23,ELECTRICITY,09/02/2015,,Technical And Service Support,Healthcare
140935,*SP SERVICES,5501512141,25,10.67,ELECTRICITY,09/02/2015,,Technical And Service Support,Healthcare
140935,*SP SERVICES,5501512141,26,10.29,ELECTRICITY,09/02/2015,,Technical And Service Support,Healthcare
140935,*SP SERVICES,5501512141,27,10.39,ELECTRICITY,09/02/2015,,Technical And Service Support,Healthcare
040215G,*SP SERVICES,55411,1,0.8,HYGIENE,09/02/2015,399.84,Operations Non Fire Stations,Healthcare
040215G,*SP SERVICES,55411,2,0.8,HYGIENE,09/02/2015,,Operations Non Fire Stations,Healthcare
040215G,*SP SERVICES,55411,3,0.8,HYGIENE,09/02/2015,,Operations Non Fire Stations,Healthcare
040215G,*SP SERVICES,55411,4,0.8,HYGIENE,09/02/2015,,Operations Non Fire Stations,Healthcare
040215G,*SP SERVICES,55411,5,39.8,HYGIENE,09/02/2015,,Operations Non Fire Stations,Healthcare
040215G,*SP SERVICES,55411,6,5.6,HYGIENE,09/02/2015,,Operations Non Fire Stations,Healthcare
040215G,*SP SERVICES,55411,7,7.44,HYGIENE,09/02/2015,,Operations Non Fire Stations,Healthcare
040215G,*SP SERVICES,55411,8,2.4,HYGIENE,09/02/2015,,Operations Non Fire Stations,Healthcare
040215G,*SP SERVICES,55411,9,2.4,HYGIENE,09/02/2015,,Operations Non Fire Stations,Healthcare
040215G,*SP SERVICES,55411,10,4.6,HYGIENE,09/02/2015,,Operations Non Fire Stations,Healthcare
040215G,*SP SERVICES,55411,11,6.8,HYGIENE,09/02/2015,,Operations Non Fire Stations,Healthcare
040215G,*SP SERVICES,55411,12,8.2,HYGIENE,09/02/2015,,Operations Non Fire Stations,Healthcare
040215G,*SP SERVICES,55411,13,9,HYGIENE,09/02/2015,,Operations Non Fire Stations,Healthcare
040215G,*SP SERVICES,55411,14,27.2,HYGIENE,09/02/2015,,Operations Non Fire Stations,Healthcare
040215G,*SP SERVICES,55411,15,8.24,HYGIENE,09/02/2015,,Operations Non Fire Stations,Healthcare
040215G,*SP SERVICES,55411,16,119.8,HYGIENE,09/02/2015,,Operations Non Fire Stations,Healthcare
040215G,*SP SERVICES,55411,17,8.4,HYGIENE,09/02/2015,,Operations Non Fire Stations,Healthcare
040215G,*SP SERVICES,55411,18,19.8,HYGIENE,09/02/2015,,Operations Non Fire Stations,Healthcare
040215G,*SP SERVICES,55411,19,10.4,HYGIENE,09/02/2015,,Operations Non Fire Stations,Healthcare
040215G,*SP SERVICES,55411,20,5.6,HYGIENE,09/02/2015,,Operations Non Fire Stations,Healthcare
040215G,*SP SERVICES,55411,21,2.12,HYGIENE,09/02/2015,,Operations Non Fire Stations,Healthcare
040215G,*SP SERVICES,55411,22,22.24,HYGIENE,09/02/2015,,Operations Non Fire Stations,Healthcare
040215G,*SP SERVICES,55411,23,8,HYGIENE,09/02/2015,,Operations Non Fire Stations,Healthcare
040215G,*SP SERVICES,55411,24,16.8,HYGIENE,09/02/2015,,Operations Non Fire Stations,Healthcare
040215G,*SP SERVICES,55411,25,19.4,HYGIENE,09/02/2015,,Operations Non Fire Stations,Healthcare
040215G,*SP SERVICES,55411,26,19.4,HYGIENE,09/02/2015,,Operations Non Fire Stations,Healthcare
040215G,*SP SERVICES,55411,27,23,HYGIENE,09/02/2015,,Operations Non Fire Stations,Healthcare
800057617,*GREENHAM TRADING LTD=========,5670109,1,40.75,HYGIENE,09/02/2015,407.58,Operations Fire Stations,Cleaning & Janitorial
800057617,*GREENHAM TRADING LTD=========,5670109,2,16,HYGIENE,09/02/2015,,Operations Fire Stations,Cleaning & Janitorial
800057617,*GREENHAM TRADING LTD=========,5670109,3,12.4,HYGIENE,09/02/2015,,Operations Fire Stations,Cleaning & Janitorial
800057617,*GREENHAM TRADING LTD=========,5670109,4,17.7,HYGIENE,09/02/2015,,Operations Fire Stations,Cleaning & Janitorial
800057617,*GREENHAM TRADING LTD=========,5670109,5,10.2,HYGIENE,09/02/2015,,Operations Fire Stations,Cleaning & Janitorial
800057617,*GREENHAM TRADING LTD=========,5670109,6,5.13,HYGIENE,09/02/2015,,Operations Fire Stations,Cleaning & Janitorial
800057617,*GREENHAM TRADING LTD=========,5670109,7,43.67,HYGIENE,09/02/2015,,Operations Fire Stations,Cleaning & Janitorial
800057617,*GREENHAM TRADING LTD=========,5670109,8,35.47,HYGIENE,09/02/2015,,Operations Fire Stations,Cleaning & Janitorial
800057617,*GREENHAM TRADING LTD=========,5670109,9,29.88,CLOTHING,09/02/2015,,Operations Fire Stations,Cleaning & Janitorial
800057617,*GREENHAM TRADING LTD=========,5670109,10,2,HYGIENE,09/02/2015,,Operations Fire Stations,Cleaning & Janitorial
800057617,*GREENHAM TRADING LTD=========,5670109,11,22.6,HYGIENE,09/02/2015,,Operations Fire Stations,Cleaning & Janitorial
800057617,*GREENHAM TRADING LTD=========,5670109,12,49.9,HYGIENE,09/02/2015,,Operations Fire Stations,Cleaning & Janitorial
800057617,*GREENHAM TRADING LTD=========,5670109,13,9.88,HYGIENE,09/02/2015,,Operations Fire Stations,Cleaning & Janitorial
800057617,*GREENHAM TRADING LTD=========,5670109,14,1.64,HYGIENE,09/02/2015,,Operations Fire Stations,Cleaning & Janitorial
800057617,*GREENHAM TRADING LTD=========,5670109,15,11.56,HYGIENE,09/02/2015,,Operations Fire Stations,Cleaning & Janitorial
800057617,*GREENHAM TRADING LTD=========,5670109,16,18.64,OPERATIONAL EQUIP-PURCHASE,09/02/2015,,Operations Fire Stations,Cleaning & Janitorial
800057617,*GREENHAM TRADING LTD=========,5670109,17,4.49,HYGIENE,09/02/2015,,Operations Fire Stations,Cleaning & Janitorial
800057617,*GREENHAM TRADING LTD=========,5670109,18,21.62,HYGIENE,09/02/2015,,Operations Fire Stations,Cleaning & Janitorial
800057617,*GREENHAM TRADING LTD=========,5670109,19,32.43,HYGIENE,09/02/2015,,Operations Fire Stations,Cleaning & Janitorial
800057617,*GREENHAM TRADING LTD=========,5670109,20,21.62,HYGIENE,09/02/2015,,Operations Fire Stations,Cleaning & Janitorial
800057641,*GREENHAM TRADING LTD=========,5670135,1,17.1,HYGIENE,09/02/2015,561.31,Operations Fire Stations,Cleaning & Janitorial
800057641,*GREENHAM TRADING LTD=========,5670135,2,1.45,HYGIENE,09/02/2015,,Operations Fire Stations,Cleaning & Janitorial
800057641,*GREENHAM TRADING LTD=========,5670135,3,4,HYGIENE,09/02/2015,,Operations Fire Stations,Cleaning & Janitorial
800057641,*GREENHAM TRADING LTD=========,5670135,4,29.5,HYGIENE,09/02/2015,,Operations Fire Stations,Cleaning & Janitorial
800057641,*GREENHAM TRADING LTD=========,5670135,5,49.4,HYGIENE,09/02/2015,,Operations Fire Stations,Cleaning & Janitorial
800057641,*GREENHAM TRADING LTD=========,5670135,6,3.8,HYGIENE,09/02/2015,,Operations Fire Stations,Cleaning & Janitorial
800057641,*GREENHAM TRADING LTD=========,5670135,7,174.68,HYGIENE,09/02/2015,,Operations Fire Stations,Cleaning & Janitorial
800057641,*GREENHAM TRADING LTD=========,5670135,8,40,HYGIENE,09/02/2015,,Operations Fire Stations,Cleaning & Janitorial
800057641,*GREENHAM TRADING LTD=========,5670135,9,31,HYGIENE,09/02/2015,,Operations Fire Stations,Cleaning & Janitorial
800057641,*GREENHAM TRADING LTD=========,5670135,10,43.16,HYGIENE,09/02/2015,,Operations Fire Stations,Cleaning & Janitorial
800057641,*GREENHAM TRADING LTD=========,5670135,11,24.9,CLOTHING,09/02/2015,,Operations Fire Stations,Cleaning & Janitorial
800057641,*GREENHAM TRADING LTD=========,5670135,12,9.92,HYGIENE,09/02/2015,,Operations Fire Stations,Cleaning & Janitorial
800057641,*GREENHAM TRADING LTD=========,5670135,13,95.12,HYGIENE,09/02/2015,,Operations Fire Stations,Cleaning & Janitorial
800057641,*GREENHAM TRADING LTD=========,5670135,14,37.28,OPERATIONAL EQUIP-PURCHASE,09/02/2015,,Operations Fire Stations,Cleaning & Janitorial
040215G,CORE SURVEYSLTD===============,5970,1,170,ASBESTOS,09/02/2015,340,Technical and Service Support,"Works - Construction, R&M"
040215G,CORE SURVEYSLTD===============,5970,2,170,ASBESTOS,09/02/2015,,Technical and Service Support,"Works - Construction, R&M"
030215E,URS SCOTT WILSON LIMITED,6148835,1,"1,169.94",CONSULTANTS,09/02/2015,"1,169.94",Technical And Service Support,Consultancy
030215E,URS SCOTT WILSON LIMITED,6152782,1,"2,128.60",CONSULTANTS,09/02/2015,"2,128.60",Technical And Service Support,Consultancy
040215G,CONTRACT CATERING CONSULTANTS=,6293,1,500,CONSULTANTS,09/02/2015,500,Technical And Service Support,Catering
140945,LONDON PENSIONS FUND AUTHORITY,8690,1,"84,113.22",LOCAL GOVT PENSION SCHEME PAYM,09/02/2015,"84,113.22",Central Finance,Financial Services
030215E,A.R.C.S. ENVIRONMENTAL LTD====,8945,1,280,DEVELOPMENT  EXPENSES-CONTRACT,09/02/2015,280,Technical and Service Support,Environmental Services
040215G,VCG KESTREL LIMITED===========,90274,1,"2,182.00",DAY TO DAY MINOR IMPS,09/02/2015,"2,182.00",Property PFI,Facilities & Management S
140946,P OLDHAM======================,90594,1,"4,365.00",PROFESSIONAL FEES GENERAL,09/02/2015,"4,365.00",Legal & Democratic Services,Legal Services
040215G,COFELY WORKPLACE LIMITED,M133269,1,107.85,TACTICAL DAY TO DAY,09/02/2015,"1,624.85",Technical And Service Support,"Works - Construction, R&M"
040215G,COFELY WORKPLACE LIMITED,M133269,2,106.21,TACTICAL DAY TO DAY,09/02/2015,,Technical And Service Support,"Works - Construction, R&M"
040215G,COFELY WORKPLACE LIMITED,M133269,3,118.26,TACTICAL DAY TO DAY,09/02/2015,,Technical And Service Support,"Works - Construction, R&M"
040215G,COFELY WORKPLACE LIMITED,M133269,4,255.52,TACTICAL DAY TO DAY,09/02/2015,,Technical And Service Support,"Works - Construction, R&M"
040215G,COFELY WORKPLACE LIMITED,M133269,5,100.46,TACTICAL DAY TO DAY,09/02/2015,,Technical And Service Support,"Works - Construction, R&M"
040215G,COFELY WORKPLACE LIMITED,M133269,6,65.25,TACTICAL DAY TO DAY,09/02/2015,,Technical And Service Support,"Works - Construction, R&M"
040215G,COFELY WORKPLACE LIMITED,M133269,7,44.96,TACTICAL DAY TO DAY,09/02/2015,,Technical And Service Support,"Works - Construction, R&M"
040215G,COFELY WORKPLACE LIMITED,M133269,8,19,TACTICAL DAY TO DAY,09/02/2015,,Technical And Service Support,"Works - Construction, R&M"
040215G,COFELY WORKPLACE LIMITED,M133269,9,39.03,TACTICAL DAY TO DAY,09/02/2015,,Technical And Service Support,"Works - Construction, R&M"
040215G,COFELY WORKPLACE LIMITED,M133269,10,45.83,TACTICAL DAY TO DAY,09/02/2015,,Technical And Service Support,"Works - Construction, R&M"
040215G,COFELY WORKPLACE LIMITED,M133269,11,18.33,TACTICAL DAY TO DAY,09/02/2015,,Technical And Service Support,"Works - Construction, R&M"
040215G,COFELY WORKPLACE LIMITED,M133269,12,21.57,TACTICAL DAY TO DAY,09/02/2015,,Technical And Service Support,"Works - Construction, R&M"
040215G,COFELY WORKPLACE LIMITED,M133269,13,150.93,TACTICAL DAY TO DAY,09/02/2015,,Technical And Service Support,"Works - Construction, R&M"
040215G,COFELY WORKPLACE LIMITED,M133269,14,391.6,TACTICAL DAY TO DAY,09/02/2015,,Technical And Service Support,"Works - Construction, R&M"
040215G,COFELY WORKPLACE LIMITED,M133269,15,45.82,TACTICAL DAY TO DAY,09/02/2015,,Technical And Service Support,"Works - Construction, R&M"
040215G,COFELY WORKPLACE LIMITED,M133269,16,48.53,TACTICAL DAY TO DAY,09/02/2015,,Technical And Service Support,"Works - Construction, R&M"
040215G,COFELY WORKPLACE LIMITED,M133269,17,45.7,TACTICAL DAY TO DAY,09/02/2015,,Technical And Service Support,"Works - Construction, R&M"
030215E,COFELY WORKPLACE LIMITED,M133754,1,"3,872.35",STRATEGIC (NON CYCLICAL),09/02/2015,"3,872.35",Technical and Service Support,"Works - Construction, R&M"
030215E,ESTEEM SYSTEMS LTD============,OP/I082616,1,"1,700.00",PURCHASES-COMPUTER/EQUIPMENT,09/02/2015,"1,700.00",Information and Communication Technology,ICT
040215G,PILLINGER CONTROLS LTD========,PI73468,1,500,STRATEGIC (NON CYCLICAL),09/02/2015,"2,319.89",Technical and Service Support,Environmental Services
040215G,PILLINGER CONTROLS LTD========,PI73468,2,"1,819.89",STRATEGIC (NON CYCLICAL),09/02/2015,,Technical and Service Support,Environmental Services
800057777,*THOMAS KNEALE & CO LTD,TK109432,1,10.89,CLOTHING,09/02/2015,"1,459.89",Operations Fire Stations,Furniture
800057777,*THOMAS KNEALE & CO LTD,TK109432,2,0.99,CLOTHING,09/02/2015,,Operations Fire Stations,Furniture
800057777,*THOMAS KNEALE & CO LTD,TK109432,3,3.47,CLOTHING,09/02/2015,,Operations Fire Stations,Furniture
800057777,*THOMAS KNEALE & CO LTD,TK109432,4,1.48,CLOTHING,09/02/2015,,Operations Fire Stations,Furniture
800057777,*THOMAS KNEALE & CO LTD,TK109432,5,10.89,CLOTHING,09/02/2015,,Operations Fire Stations,Furniture
800057777,*THOMAS KNEALE & CO LTD,TK109432,6,0.99,CLOTHING,09/02/2015,,Operations Fire Stations,Furniture
800057777,*THOMAS KNEALE & CO LTD,TK109432,7,10.89,CLOTHING,09/02/2015,,Operations Fire Stations,Furniture
800057777,*THOMAS KNEALE & CO LTD,TK109432,8,0.99,CLOTHING,09/02/2015,,Operations Fire Stations,Furniture
800057777,*THOMAS KNEALE & CO LTD,TK109432,9,3.47,CLOTHING,09/02/2015,,Operations Fire Stations,Furniture
800057777,*THOMAS KNEALE & CO LTD,TK109432,10,1.48,CLOTHING,09/02/2015,,Operations Fire Stations,Furniture
800057777,*THOMAS KNEALE & CO LTD,TK109432,11,3.47,CLOTHING,09/02/2015,,Operations Fire Stations,Furniture
800057777,*THOMAS KNEALE & CO LTD,TK109432,12,10.89,CLOTHING,09/02/2015,,Operations Fire Stations,Furniture
800057777,*THOMAS KNEALE & CO LTD,TK109432,13,10.89,CLOTHING,09/02/2015,,Operations Fire Stations,Furniture
800057777,*THOMAS KNEALE & CO LTD,TK109432,14,10.89,CLOTHING,09/02/2015,,Operations Fire Stations,Furniture
800057777,*THOMAS KNEALE & CO LTD,TK109432,15,0.99,CLOTHING,09/02/2015,,Operations Fire Stations,Furniture
800057777,*THOMAS KNEALE & CO LTD,TK109432,16,3.47,CLOTHING,09/02/2015,,Operations Fire Stations,Furniture
800057777,*THOMAS KNEALE & CO LTD,TK109432,17,1.48,CLOTHING,09/02/2015,,Operations Fire Stations,Furniture
800057777,*THOMAS KNEALE & CO LTD,TK109432,18,10.89,CLOTHING,09/02/2015,,Operations Fire Stations,Furniture
800057777,*THOMAS KNEALE & CO LTD,TK109432,19,10.89,CLOTHING,09/02/2015,,Operations Fire Stations,Furniture
800057777,*THOMAS KNEALE & CO LTD,TK109432,20,0.99,CLOTHING,09/02/2015,,Operations Fire Stations,Furniture
800057777,*THOMAS KNEALE & CO LTD,TK109432,21,3.47,CLOTHING,09/02/2015,,Operations Fire Stations,Furniture
800057777,*THOMAS KNEALE & CO LTD,TK109432,22,1.48,CLOTHING,09/02/2015,,Operations Fire Stations,Furniture
800057777,*THOMAS KNEALE & CO LTD,TK109432,23,6.94,CLOTHING,09/02/2015,,Operations Fire Stations,Furniture
800057777,*THOMAS KNEALE & CO LTD,TK109432,24,2.96,CLOTHING,09/02/2015,,Operations Fire Stations,Furniture
800057777,*THOMAS KNEALE & CO LTD,TK109432,25,3.47,CLOTHING,09/02/2015,,Operations Fire Stations,Furniture
800057777,*THOMAS KNEALE & CO LTD,TK109432,26,1.48,CLOTHING,09/02/2015,,Operations Fire Stations,Furniture
800057777,*THOMAS KNEALE & CO LTD,TK109432,27,1.48,CLOTHING,09/02/2015,,Operations Fire Stations,Furniture
800057777,*THOMAS KNEALE & CO LTD,TK109432,28,10.89,CLOTHING,09/02/2015,,Operations Fire Stations,Furniture
800057777,*THOMAS KNEALE & CO LTD,TK109432,29,3.47,CLOTHING,09/02/2015,,Operations Fire Stations,Furniture
800057777,*THOMAS KNEALE & CO LTD,TK109432,30,10.89,CLOTHING,09/02/2015,,Operations Fire Stations,Furniture
800057777,*THOMAS KNEALE & CO LTD,TK109432,31,3.47,CLOTHING,09/02/2015,,Operations Fire Stations,Furniture
800057777,*THOMAS KNEALE & CO LTD,TK109432,32,3.47,CLOTHING,09/02/2015,,Operations Fire Stations,Furniture
800057777,*THOMAS KNEALE & CO LTD,TK109432,33,1.48,CLOTHING,09/02/2015,,Operations Fire Stations,Furniture
800057777,*THOMAS KNEALE & CO LTD,TK109432,34,10.89,CLOTHING,09/02/2015,,Operations Fire Stations,Furniture
800057777,*THOMAS KNEALE & CO LTD,TK109432,35,3.47,CLOTHING,09/02/2015,,Operations Fire Stations,Furniture
800057777,*THOMAS KNEALE & CO LTD,TK109432,36,10.89,CLOTHING,09/02/2015,,Operations Fire Stations,Furniture
800057777,*THOMAS KNEALE & CO LTD,TK109432,37,0.99,CLOTHING,09/02/2015,,Operations Fire Stations,Furniture
800057777,*THOMAS KNEALE & CO LTD,TK109432,38,10.89,CLOTHING,09/02/2015,,Operations Fire Stations,Furniture
800057777,*THOMAS KNEALE & CO LTD,TK109432,39,135.9,OFFICE FURNITURE,09/02/2015,,Operations Fire Stations,Furniture
800057777,*THOMAS KNEALE & CO LTD,TK109432,40,135.9,OFFICE FURNITURE,09/02/2015,,Operations Fire Stations,Furniture
800057777,*THOMAS KNEALE & CO LTD,TK109432,41,11.36,OFFICE FURNITURE,09/02/2015,,Operations Fire Stations,Furniture
800057777,*THOMAS KNEALE & CO LTD,TK109432,42,5.18,OFFICE FURNITURE,09/02/2015,,Operations Fire Stations,Furniture
800057777,*THOMAS KNEALE & CO LTD,TK109432,43,5.35,CLOTHING,09/02/2015,,Operations Fire Stations,Furniture
800057777,*THOMAS KNEALE & CO LTD,TK109432,44,3.47,CLOTHING,09/02/2015,,Operations Fire Stations,Furniture
800057777,*THOMAS KNEALE & CO LTD,TK109432,45,1.48,CLOTHING,09/02/2015,,Operations Fire Stations,Furniture
800057777,*THOMAS KNEALE & CO LTD,TK109432,46,10.89,CLOTHING,09/02/2015,,Operations Fire Stations,Furniture
800057777,*THOMAS KNEALE & CO LTD,TK109432,47,2.84,OFFICE FURNITURE,09/02/2015,,Operations Fire Stations,Furniture
800057777,*THOMAS KNEALE & CO LTD,TK109432,48,10.89,CLOTHING,09/02/2015,,Operations Fire Stations,Furniture
800057777,*THOMAS KNEALE & CO LTD,TK109432,49,10.89,CLOTHING,09/02/2015,,Operations Fire Stations,Furniture
800057777,*THOMAS KNEALE & CO LTD,TK109432,50,3.47,CLOTHING,09/02/2015,,Operations Fire Stations,Furniture
800057777,*THOMAS KNEALE & CO LTD,TK109432,51,5.68,OFFICE FURNITURE,09/02/2015,,Operations Fire Stations,Furniture
800057777,*THOMAS KNEALE & CO LTD,TK109432,52,107.96,OFFICE FURNITURE,09/02/2015,,Operations Fire Stations,Furniture
800057777,*THOMAS KNEALE & CO LTD,TK109432,53,10.89,CLOTHING,09/02/2015,,Operations Fire Stations,Furniture
800057777,*THOMAS KNEALE & CO LTD,TK109432,54,3.47,CLOTHING,09/02/2015,,Operations Fire Stations,Furniture
800057777,*THOMAS KNEALE & CO LTD,TK109432,55,1.48,CLOTHING,09/02/2015,,Operations Fire Stations,Furniture
800057777,*THOMAS KNEALE & CO LTD,TK109432,56,0.99,CLOTHING,09/02/2015,,Operations Fire Stations,Furniture
800057777,*THOMAS KNEALE & CO LTD,TK109432,57,1.48,CLOTHING,09/02/2015,,Operations Fire Stations,Furniture
800057777,*THOMAS KNEALE & CO LTD,TK109432,58,10.89,CLOTHING,09/02/2015,,Operations Fire Stations,Furniture
800057777,*THOMAS KNEALE & CO LTD,TK109432,59,3.47,CLOTHING,09/02/2015,,Operations Fire Stations,Furniture
800057777,*THOMAS KNEALE & CO LTD,TK109432,60,10.89,CLOTHING,09/02/2015,,Operations Fire Stations,Furniture
800057777,*THOMAS KNEALE & CO LTD,TK109432,61,2.96,CLOTHING,09/02/2015,,Operations Fire Stations,Furniture
800057777,*THOMAS KNEALE & CO LTD,TK109432,62,10.89,CLOTHING,09/02/2015,,Operations Fire Stations,Furniture
800057777,*THOMAS KNEALE & CO LTD,TK109432,63,1.48,CLOTHING,09/02/2015,,Operations Fire Stations,Furniture
800057777,*THOMAS KNEALE & CO LTD,TK109432,64,10.89,CLOTHING,09/02/2015,,Operations Fire Stations,Furniture
800057777,*THOMAS KNEALE & CO LTD,TK109432,65,10.89,CLOTHING,09/02/2015,,Operations Fire Stations,Furniture
800057777,*THOMAS KNEALE & CO LTD,TK109432,66,10.89,CLOTHING,09/02/2015,,Operations Fire Stations,Furniture
800057777,*THOMAS KNEALE & CO LTD,TK109432,67,10.89,CLOTHING,09/02/2015,,Operations Fire Stations,Furniture
800057777,*THOMAS KNEALE & CO LTD,TK109432,68,0.99,CLOTHING,09/02/2015,,Operations Fire Stations,Furniture
800057777,*THOMAS KNEALE & CO LTD,TK109432,69,10.89,CLOTHING,09/02/2015,,Operations Fire Stations,Furniture
800057777,*THOMAS KNEALE & CO LTD,TK109432,70,3.47,CLOTHING,09/02/2015,,Operations Fire Stations,Furniture
800057777,*THOMAS KNEALE & CO LTD,TK109432,71,6.94,CLOTHING,09/02/2015,,Operations Fire Stations,Furniture
800057777,*THOMAS KNEALE & CO LTD,TK109432,72,161.94,OFFICE FURNITURE,09/02/2015,,Operations Fire Stations,Furniture
800057777,*THOMAS KNEALE & CO LTD,TK109432,73,161.94,OFFICE FURNITURE,09/02/2015,,Operations Fire Stations,Furniture
800057777,*THOMAS KNEALE & CO LTD,TK109432,74,161.94,OFFICE FURNITURE,09/02/2015,,Operations Fire Stations,Furniture
800057777,*THOMAS KNEALE & CO LTD,TK109432,75,161.94,OFFICE FURNITURE,09/02/2015,,Operations Fire Stations,Furniture
800057777,*THOMAS KNEALE & CO LTD,TK109432,76,10.89,CLOTHING,09/02/2015,,Operations Fire Stations,Furniture
800057777,*THOMAS KNEALE & CO LTD,TK109432,77,10.89,CLOTHING,09/02/2015,,Operations Fire Stations,Furniture
800057777,*THOMAS KNEALE & CO LTD,TK109432,78,0.99,CLOTHING,09/02/2015,,Operations Fire Stations,Furniture
800057777,*THOMAS KNEALE & CO LTD,TK109432,79,10.89,CLOTHING,09/02/2015,,Operations Fire Stations,Furniture
902497,"ACCELLION, INC.===============",15030021,1,"5,560.00",MAINTENANCE & SUPPORT,11/02/2015,"5,560.00",Information and Communication Technology,ICT
140952,SLATER & GORDON (UK) LLP,8422,2,"27,000.00",CLAIMANT COSTS AGREED,11/02/2015,"27,000.00",Legal & Democratic Services,Legal Services
140952,DEPARTMENT FOR WORK & PENSIONS,9103,1,600,DWP NHS CHARGES,11/02/2015,600,Legal & Democratic Services,Statutory Bodies
090215C,EUS HOLDINGS LIMITED,PLC10025,1,312.5,SUBSCRIPTIONS,11/02/2015,312.5,Procurement,Consultancy
140949,THAMES WATER UTILITIES LTD====,07054-20579N,1,524.94,WATER & SEWERAGE RATES,12/02/2015,524.94,Technical And Service Support,Utilities
050215E,FIRE PREVENTION PRODUCTS LTD==,90121,1,264.49,OPERATIONAL EQUIP-PURCHASE,12/02/2015,264.49,Community Safety Delivery,Fire & Rescue
140949,AFFINITY WATER,101028034,1,769,CURRENT HYDRANT COSTS,12/02/2015,769,Operational Resilience,Utilities
140949,AFFINITY WATER,101029004,1,769,CURRENT HYDRANT COSTS,12/02/2015,769,Operational Resilience,Utilities
050215E,*SPRUE SAFETY PRODUCTS LTD====,1069022,1,988.8,FIRE DETECTORS,12/02/2015,988.8,Operations Non Fire Stations,Health & Safety
050215E,*SPRUE SAFETY PRODUCTS LTD====,1069027,1,741.6,FIRE DETECTORS,12/02/2015,741.6,Operations Non Fire Stations,Health & Safety
050215E,*SPRUE SAFETY PRODUCTS LTD====,1069028,1,494.4,FIRE DETECTORS,12/02/2015,494.4,Operations Non Fire Stations,Health & Safety
290115C,NISBETS=======================,10691111,1,529.99,CATERING EQUIPMENT,12/02/2015,529.99,CBRN RRT,Catering
290115C,*SPRUE SAFETY PRODUCTS LTD====,1070308,1,440,FIRE DETECTORS,12/02/2015,440,Operations Non Fire Stations,Health & Safety
290115C,*SPRUE SAFETY PRODUCTS LTD====,1070309,1,800,FIRE DETECTORS,12/02/2015,800,Operations Non Fire Stations,Health & Safety
290115C,A&A ELECTRICAL DISTRIBUTORS===,1079773,1,"1,350.00",GENERAL CONSUMABLES,12/02/2015,"1,350.00",Procurement,Building Constr Materials
050215E,SILVERSANDS LIMITED===========,121796,1,475,PURCHASES-SOFTWARE,12/02/2015,950,Information and Communication Technology,ICT
050215E,SILVERSANDS LIMITED===========,121796,2,475,PURCHASES-SOFTWARE,12/02/2015,,Information and Communication Technology,ICT
050215E,SILVERSANDS LIMITED===========,121807,1,"1,900.00",PURCHASES-SOFTWARE,12/02/2015,"1,900.00",Information and Communication Technology,ICT
050215E,SILVERSANDS LIMITED===========,121808,1,"1,425.00",PURCHASES-SOFTWARE,12/02/2015,"1,425.00",Information and Communication Technology,ICT
140947,BOURNE CONSTRUCTION COMPANY,14/511,1,"2,250.00",STRATEGIC (NON CYCLICAL),12/02/2015,"4,750.00",Technical and Service Support,"Works - Construction, R&M"
140947,BOURNE CONSTRUCTION COMPANY,14/511,2,"2,500.00",STRATEGIC (NON CYCLICAL),12/02/2015,,Technical and Service Support,"Works - Construction, R&M"
140947,BOURNE CONSTRUCTION COMPANY,14/517,1,"1,200.00",STRATEGIC (NON CYCLICAL),12/02/2015,"2,600.00",Technical And Service Support,"Works - Construction, R&M"
140947,BOURNE CONSTRUCTION COMPANY,14/517,2,"1,400.00",STRATEGIC (NON CYCLICAL),12/02/2015,,Technical And Service Support,"Works - Construction, R&M"
300115C,KIER BUILDING SERV ENGINEERS==,14070461,1,"33,309.91",TACTICAL DAY TO DAY,12/02/2015,"73,332.32",Technical And Service Support,"Works - Construction, R&M"
300115C,KIER BUILDING SERV ENGINEERS==,14070461,2,530.65,TACTICAL DAY TO DAY,12/02/2015,,Technical And Service Support,"Works - Construction, R&M"
300115C,KIER BUILDING SERV ENGINEERS==,14070461,3,"1,770.09",TACTICAL DAY TO DAY,12/02/2015,,Technical And Service Support,"Works - Construction, R&M"
300115C,KIER BUILDING SERV ENGINEERS==,14070461,4,"1,909.13",TACTICAL DAY TO DAY,12/02/2015,,Technical And Service Support,"Works - Construction, R&M"
300115C,KIER BUILDING SERV ENGINEERS==,14070461,5,"27,237.27",STRATEGIC (CYCLICAL),12/02/2015,,Technical And Service Support,"Works - Construction, R&M"
300115C,KIER BUILDING SERV ENGINEERS==,14070461,6,"1,204.00",STRATEGIC (CYCLICAL),12/02/2015,,Technical And Service Support,"Works - Construction, R&M"
300115C,KIER BUILDING SERV ENGINEERS==,14070461,7,"1,509.19",STRATEGIC (CYCLICAL),12/02/2015,,Technical And Service Support,"Works - Construction, R&M"
300115C,KIER BUILDING SERV ENGINEERS==,14070461,8,"5,862.08",STRATEGIC (CYCLICAL),12/02/2015,,Technical And Service Support,"Works - Construction, R&M"
300115C,KIER BUILDING SERV ENGINEERS==,14070464,1,"16,460.05",STRATEGIC (CYCLICAL),12/02/2015,"16,460.05",Technical And Service Support,"Works - Construction, R&M"
050215E,SPECTRUM======================,1474,1,540,SPECIALIST EQUIPMENT,12/02/2015,540,Communications,Facilities & Management S
140949,THAMES WATER UTILITIES LTD====,15604-20001A,1,"2,339.82",WATER & SEWERAGE RATES,12/02/2015,"2,339.82",Technical And Service Support,Utilities
050215E,DYSLEXIA ACTION,179703,1,540,LEARNING SUPPORT,12/02/2015,540,HR Excluding Secondments,Human Resources
800025188,ADECCO UK LIMITED=============,26577227,1,"1,224.00",FRS STAFF AGENCY,12/02/2015,"1,224.00",Communications,Human Resources
800057547,ADECCO UK LIMITED=============,26968300,1,"1,292.20",FRS STAFF AGENCY,12/02/2015,"1,292.20",Property PFI,Human Resources
800057548,ADECCO UK LIMITED=============,26968301,1,"1,292.20",FRS STAFF AGENCY,12/02/2015,"1,292.20",Property PFI,Human Resources
800057307,ADECCO UK LIMITED=============,26979175,1,624.4,FRS STAFF AGENCY,12/02/2015,624.4,Operations Non Fire Stations,Human Resources
800058224,ADECCO UK LIMITED=============,26979179,1,747.36,FRS STAFF AGENCY,12/02/2015,747.36,Mobilising,Human Resources
800057373,ADECCO UK LIMITED=============,26986676,1,624.4,FRS STAFF AGENCY,12/02/2015,624.4,Operations Non Fire Stations,Human Resources
800058213,ADECCO UK LIMITED=============,26986679,1,498.24,FRS STAFF AGENCY,12/02/2015,498.24,Mobilising,Human Resources
800057388,ADECCO UK LIMITED=============,26990296,1,941.92,FRS STAFF AGENCY,12/02/2015,941.92,Communications,Human Resources
800058214,ADECCO UK LIMITED=============,26994141,1,498.24,FRS STAFF AGENCY,12/02/2015,498.24,Mobilising,Human Resources
800058216,ADECCO UK LIMITED=============,27008903,1,747.36,FRS STAFF AGENCY,12/02/2015,747.36,Mobilising,Human Resources
800058217,ADECCO UK LIMITED=============,27015861,1,747.36,FRS STAFF AGENCY,12/02/2015,747.36,Mobilising,Human Resources
800058218,ADECCO UK LIMITED=============,27022920,1,498.24,FRS STAFF AGENCY,12/02/2015,498.24,Mobilising,Human Resources
800057828,ADECCO UK LIMITED=============,27037578,1,"1,177.40",FRS STAFF AGENCY,12/02/2015,"1,177.40",Communications,Human Resources
800057976,ADECCO UK LIMITED=============,27046083,1,"1,835.15",FRS STAFF AGENCY,12/02/2015,"1,835.15",Vehicle & Equipment Programme,Human Resources
800058071,ADECCO UK LIMITED=============,27052413,1,"1,022.96",FRS STAFF AGENCY,12/02/2015,"1,022.96",Technical And Service Support,Human Resources
800058074,ADECCO UK LIMITED=============,27052416,1,"1,835.15",FRS STAFF AGENCY,12/02/2015,"1,835.15",Vehicle & Equipment Programme,Human Resources
800058078,ADECCO UK LIMITED=============,27052420,1,624.4,FRS STAFF AGENCY,12/02/2015,624.4,Technical And Service Support,Human Resources
800058079,ADECCO UK LIMITED=============,27052421,1,606.56,FRS STAFF AGENCY,12/02/2015,606.56,Operations Non Fire Stations,Human Resources
800058080,ADECCO UK LIMITED=============,27052422,1,973.14,FRS STAFF AGENCY,12/02/2015,973.14,Review of Property Services,Human Resources
800058092,ADECCO UK LIMITED=============,27052435,1,624.4,FRS STAFF AGENCY,12/02/2015,624.4,Procurement,Human Resources
800058093,ADECCO UK LIMITED=============,27052436,1,351.68,FRS STAFF AGENCY,12/02/2015,351.68,Community Safety Delivery,Human Resources
800058094,ADECCO UK LIMITED=============,27052437,1,475.5,FRS STAFF AGENCY,12/02/2015,475.5,Technical And Service Support,Human Resources
050215E,BRISTOL UNIFORMS LTD==========,286859/556,1,266.38,CLOTHING,12/02/2015,266.38,Procurement,Clothing
050215E,BRISTOL UNIFORMS LTD==========,286860/573,1,"4,077.05",CLOTHING,12/02/2015,"4,077.05",Procurement,Clothing
050215E,BRISTOL UNIFORMS LTD==========,286861,1,"197,575.56",CLOTHING,12/02/2015,"197,575.56",Procurement,Clothing
140949,THAMES WATER UTILITIES LTD====,3195811112\,1,431.46,WATER & SEWERAGE RATES,12/02/2015,431.46,Technical And Service Support,Utilities
140949,THAMES WATER UTILITIES LTD====,32298-00367N,1,793.16,WATER & SEWERAGE RATES,12/02/2015,793.16,Technical And Service Support,Utilities
140949,THAMES WATER UTILITIES LTD====,3251898471,1,790.29,WATER & SEWERAGE RATES,12/02/2015,790.29,Technical And Service Support,Utilities
050215E,CLASSIC VIDEO INTERNATIONAL===,38559,1,620,PUBLIC RELATIONS,12/02/2015,620,Communications,Education
140949,THAMES WATER UTILITIES LTD====,39992-96402N,1,479.92,WATER & SEWERAGE RATES,12/02/2015,479.92,Technical And Service Support,Utilities
050215E,FLEXIFORM BUSINESS FURNITURE==,413721,1,"5,828.00",PURCHASES-FURNITURE,12/02/2015,"5,828.00",Technical and Service Support,Furniture
140947,REACTIVE ROOFING (UK) LIMITED,4497,1,"2,593.32",STRATEGIC (NON CYCLICAL),12/02/2015,"3,897.32",Technical and Service Support,"Works - Construction, R&M"
140947,REACTIVE ROOFING (UK) LIMITED,4497,2,"1,304.00",STRATEGIC (NON CYCLICAL),12/02/2015,,Technical and Service Support,"Works - Construction, R&M"
030215E,MITIE SECURITY (LONDON) LTD===,45/577688,1,"8,564.08",PREMISES SECURITY,12/02/2015,"8,564.08",Technical And Service Support,Facilities & Management S
030215E,MITIE SECURITY (LONDON) LTD===,45/577692,1,"17,082.24",PREMISES SECURITY,12/02/2015,"17,082.24",Technical And Service Support,Facilities & Management S
030215E,CAPITA SECURE INFO SOLUTIONS,6060000216,1,300,STRATEGIC (NON CYCLICAL),12/02/2015,300,Technical and Service Support,ICT
030215E,J HUDSON & CO (WHISTLES)LTD,61393,1,508.66,GENERAL CONSUMABLES,12/02/2015,508.66,Procurement, Fire & Rescue 
050215E,MOORE STEPHENS CONSULTING LTD=,673725,1,"4,170.00",MAINTENANCE & SUPPORT,12/02/2015,"4,170.00",Information and Communication Technology,ICT
050215E,MOORE STEPHENS CONSULTING LTD=,673726,1,"18,250.00",MAINTENANCE & SUPPORT,12/02/2015,"18,250.00",Information and Communication Technology,ICT
040215G,MAYORS OFF FOR POLICING&CRIME,6800100706,1,"102,099.00",GLA GROUP SHARED SERVICES,12/02/2015,"102,099.00",Finance Services,Human Resources
140949,THAMES WATER UTILITIES LTD====,68834-98179Q,1,460.19,WATER & SEWERAGE RATES,12/02/2015,460.19,Technical And Service Support,Utilities
030215E,ESSEX FIRE AUTHORITY==========,7362,1,"1,335.66",PROFESSIONAL DEVELOPMENT,12/02/2015,"2,003.49",Regulatory Fire Safety,Human Resources
030215E,ESSEX FIRE AUTHORITY==========,7362,2,667.83,PROFESSIONAL DEVELOPMENT,12/02/2015,,Regulatory Fire Safety,Human Resources
280115C,WESTMINSTER CATHEDRAL=========,749,1,"1,000.00",PUBLIC RELATIONS,12/02/2015,"1,000.00",Communications,Arts & Leisure Services
050215E,CANON (UK) LTD===============,770492219,1,390.85,OFFICE EQUIPMENT,12/02/2015,390.85,Technical And Service Support,ICT
050215E,LINCOLNSHIRE COUNTY COUNCIL===,90811822,1,"23,381.52",FIRE AUTHORITIES,12/02/2015,"23,381.52",National Operational Guidance Project,Statutory Bodies
140949,NORTHUMBRIAN WATER LTD========,91335807X,1,451,CURRENT HYDRANT COSTS,12/02/2015,451,Operational Resilience,Utilities
800058233,ALLSTAR BUSINESS SOLUTIONS LTD,E2004225756,1,780.4,FUEL,12/02/2015,"15,418.84",Procurement,Vehicle Management
800058233,ALLSTAR BUSINESS SOLUTIONS LTD,E2004225756,2,756.62,FUEL,12/02/2015,,Operations Non Fire Stations,Vehicle Management
800058233,ALLSTAR BUSINESS SOLUTIONS LTD,E2004225756,3,404.92,FUEL,12/02/2015,,Operations Fire Stations,Vehicle Management
800058233,ALLSTAR BUSINESS SOLUTIONS LTD,E2004225756,4,339.01,FUEL,12/02/2015,,Operations Fire Stations,Vehicle Management
800058233,ALLSTAR BUSINESS SOLUTIONS LTD,E2004225756,5,337.32,FUEL,12/02/2015,,Operations Fire Stations,Vehicle Management
800058233,ALLSTAR BUSINESS SOLUTIONS LTD,E2004225756,6,332.13,FUEL,12/02/2015,,Operations Fire Stations,Vehicle Management
800058233,ALLSTAR BUSINESS SOLUTIONS LTD,E2004225756,7,328.18,FUEL,12/02/2015,,Operations Fire Stations,Vehicle Management
800058233,ALLSTAR BUSINESS SOLUTIONS LTD,E2004225756,8,288.61,FUEL,12/02/2015,,Operations Fire Stations,Vehicle Management
800058233,ALLSTAR BUSINESS SOLUTIONS LTD,E2004225756,9,286.72,FUEL,12/02/2015,,Operations Fire Stations,Vehicle Management
800058233,ALLSTAR BUSINESS SOLUTIONS LTD,E2004225756,10,267.68,FUEL,12/02/2015,,Operations Fire Stations,Vehicle Management
800058233,ALLSTAR BUSINESS SOLUTIONS LTD,E2004225756,11,266.77,FUEL,12/02/2015,,Operations Fire Stations,Vehicle Management
800058233,ALLSTAR BUSINESS SOLUTIONS LTD,E2004225756,12,263.05,FUEL,12/02/2015,,Operations Fire Stations,Vehicle Management
800058233,ALLSTAR BUSINESS SOLUTIONS LTD,E2004225756,13,251.23,FUEL,12/02/2015,,Operations Fire Stations,Vehicle Management
800058233,ALLSTAR BUSINESS SOLUTIONS LTD,E2004225756,14,250.11,FUEL,12/02/2015,,Operations Fire Stations,Vehicle Management
800058233,ALLSTAR BUSINESS SOLUTIONS LTD,E2004225756,15,248.44,FUEL,12/02/2015,,Operations Fire Stations,Vehicle Management
800058233,ALLSTAR BUSINESS SOLUTIONS LTD,E2004225756,16,246.61,FUEL,12/02/2015,,Operations Fire Stations,Vehicle Management
800058233,ALLSTAR BUSINESS SOLUTIONS LTD,E2004225756,17,234.75,FUEL,12/02/2015,,Regulatory Fire Safety,Vehicle Management
800058233,ALLSTAR BUSINESS SOLUTIONS LTD,E2004225756,18,229.94,FUEL,12/02/2015,,Operations Fire Stations,Vehicle Management
800058233,ALLSTAR BUSINESS SOLUTIONS LTD,E2004225756,19,225.34,FUEL,12/02/2015,,Operations Fire Stations,Vehicle Management
800058233,ALLSTAR BUSINESS SOLUTIONS LTD,E2004225756,20,223.88,FUEL,12/02/2015,,Operations Fire Stations,Vehicle Management
800058233,ALLSTAR BUSINESS SOLUTIONS LTD,E2004225756,21,219.19,FUEL,12/02/2015,,Operations Fire Stations,Vehicle Management
800058233,ALLSTAR BUSINESS SOLUTIONS LTD,E2004225756,22,217.52,FUEL,12/02/2015,,Operations Fire Stations,Vehicle Management
800058233,ALLSTAR BUSINESS SOLUTIONS LTD,E2004225756,23,204.77,FUEL,12/02/2015,,Operations Fire Stations,Vehicle Management
800058233,ALLSTAR BUSINESS SOLUTIONS LTD,E2004225756,24,204.21,FUEL,12/02/2015,,Operations Fire Stations,Vehicle Management
800058233,ALLSTAR BUSINESS SOLUTIONS LTD,E2004225756,25,203.7,FUEL,12/02/2015,,Operations Fire Stations,Vehicle Management
800058233,ALLSTAR BUSINESS SOLUTIONS LTD,E2004225756,26,203.35,FUEL,12/02/2015,,Operations Fire Stations,Vehicle Management
800058233,ALLSTAR BUSINESS SOLUTIONS LTD,E2004225756,27,202.9,FUEL,12/02/2015,,Operations Fire Stations,Vehicle Management
800058233,ALLSTAR BUSINESS SOLUTIONS LTD,E2004225756,28,194.49,FUEL,12/02/2015,,Operations Fire Stations,Vehicle Management
800058233,ALLSTAR BUSINESS SOLUTIONS LTD,E2004225756,29,190.06,FUEL,12/02/2015,,Operations Fire Stations,Vehicle Management
800058233,ALLSTAR BUSINESS SOLUTIONS LTD,E2004225756,30,183.09,FUEL,12/02/2015,,Operations Fire Stations,Vehicle Management
800058233,ALLSTAR BUSINESS SOLUTIONS LTD,E2004225756,31,182.6,FUEL,12/02/2015,,Operations Fire Stations,Vehicle Management
800058233,ALLSTAR BUSINESS SOLUTIONS LTD,E2004225756,32,179.74,FUEL,12/02/2015,,Operations Fire Stations,Vehicle Management
800058233,ALLSTAR BUSINESS SOLUTIONS LTD,E2004225756,33,177.31,FUEL,12/02/2015,,Operations Fire Stations,Vehicle Management
800058233,ALLSTAR BUSINESS SOLUTIONS LTD,E2004225756,34,176.73,FUEL,12/02/2015,,Operations Fire Stations,Vehicle Management
800058233,ALLSTAR BUSINESS SOLUTIONS LTD,E2004225756,35,173.3,FUEL,12/02/2015,,Operations Fire Stations,Vehicle Management
800058233,ALLSTAR BUSINESS SOLUTIONS LTD,E2004225756,36,169.19,FUEL,12/02/2015,,Operations Fire Stations,Vehicle Management
800058233,ALLSTAR BUSINESS SOLUTIONS LTD,E2004225756,37,165.26,FUEL,12/02/2015,,Operations Fire Stations,Vehicle Management
800058233,ALLSTAR BUSINESS SOLUTIONS LTD,E2004225756,38,161.63,FUEL,12/02/2015,,Operations Fire Stations,Vehicle Management
800058233,ALLSTAR BUSINESS SOLUTIONS LTD,E2004225756,39,159.28,FUEL,12/02/2015,,Operations Fire Stations,Vehicle Management
800058233,ALLSTAR BUSINESS SOLUTIONS LTD,E2004225756,40,154.08,FUEL,12/02/2015,,Operations Fire Stations,Vehicle Management
800058233,ALLSTAR BUSINESS SOLUTIONS LTD,E2004225756,41,146.89,FUEL,12/02/2015,,Operations Fire Stations,Vehicle Management
800058233,ALLSTAR BUSINESS SOLUTIONS LTD,E2004225756,42,146.71,FUEL,12/02/2015,,Operations Fire Stations,Vehicle Management
800058233,ALLSTAR BUSINESS SOLUTIONS LTD,E2004225756,43,142.18,FUEL,12/02/2015,,Operations Fire Stations,Vehicle Management
800058233,ALLSTAR BUSINESS SOLUTIONS LTD,E2004225756,44,138.51,FUEL,12/02/2015,,Information and Communication Technology,Vehicle Management
800058233,ALLSTAR BUSINESS SOLUTIONS LTD,E2004225756,45,138.21,FUEL,12/02/2015,,Operations Fire Stations,Vehicle Management
800058233,ALLSTAR BUSINESS SOLUTIONS LTD,E2004225756,46,136.64,FUEL,12/02/2015,,Technical And Service Support,Vehicle Management
800058233,ALLSTAR BUSINESS SOLUTIONS LTD,E2004225756,47,134.06,FUEL,12/02/2015,,Operations Fire Stations,Vehicle Management
800058233,ALLSTAR BUSINESS SOLUTIONS LTD,E2004225756,48,131.9,FUEL,12/02/2015,,Operations Fire Stations,Vehicle Management
800058233,ALLSTAR BUSINESS SOLUTIONS LTD,E2004225756,49,128.57,FUEL,12/02/2015,,Operations Fire Stations,Vehicle Management
800058233,ALLSTAR BUSINESS SOLUTIONS LTD,E2004225756,50,128.24,FUEL,12/02/2015,,Operations Fire Stations,Vehicle Management
800058233,ALLSTAR BUSINESS SOLUTIONS LTD,E2004225756,51,125.97,FUEL,12/02/2015,,Operations Fire Stations,Vehicle Management
800058233,ALLSTAR BUSINESS SOLUTIONS LTD,E2004225756,52,123.98,FUEL,12/02/2015,,Operations Fire Stations,Vehicle Management
800058233,ALLSTAR BUSINESS SOLUTIONS LTD,E2004225756,53,122.43,FUEL,12/02/2015,,Operations Fire Stations,Vehicle Management
800058233,ALLSTAR BUSINESS SOLUTIONS LTD,E2004225756,54,122.22,FUEL,12/02/2015,,Operations Fire Stations,Vehicle Management
800058233,ALLSTAR BUSINESS SOLUTIONS LTD,E2004225756,55,121.4,FUEL,12/02/2015,,Operations Fire Stations,Vehicle Management
800058233,ALLSTAR BUSINESS SOLUTIONS LTD,E2004225756,56,120.98,FUEL,12/02/2015,,Operations Fire Stations,Vehicle Management
800058233,ALLSTAR BUSINESS SOLUTIONS LTD,E2004225756,57,117.11,FUEL,12/02/2015,,Operations Fire Stations,Vehicle Management
800058233,ALLSTAR BUSINESS SOLUTIONS LTD,E2004225756,58,114.86,FUEL,12/02/2015,,Command Units,Vehicle Management
800058233,ALLSTAR BUSINESS SOLUTIONS LTD,E2004225756,59,113.19,FUEL,12/02/2015,,Operations Fire Stations,Vehicle Management
800058233,ALLSTAR BUSINESS SOLUTIONS LTD,E2004225756,60,108.21,FUEL,12/02/2015,,Operations Fire Stations,Vehicle Management
800058233,ALLSTAR BUSINESS SOLUTIONS LTD,E2004225756,61,107.92,FUEL,12/02/2015,,Operations Fire Stations,Vehicle Management
800058233,ALLSTAR BUSINESS SOLUTIONS LTD,E2004225756,62,105.96,FUEL,12/02/2015,,Operations Fire Stations,Vehicle Management
800058233,ALLSTAR BUSINESS SOLUTIONS LTD,E2004225756,63,96.13,FUEL,12/02/2015,,Operations Fire Stations,Vehicle Management
800058233,ALLSTAR BUSINESS SOLUTIONS LTD,E2004225756,64,95.99,FUEL,12/02/2015,,Operations Fire Stations,Vehicle Management
800058233,ALLSTAR BUSINESS SOLUTIONS LTD,E2004225756,65,95.93,FUEL,12/02/2015,,Operations Fire Stations,Vehicle Management
800058233,ALLSTAR BUSINESS SOLUTIONS LTD,E2004225756,66,95.64,FUEL,12/02/2015,,Operations Fire Stations,Vehicle Management
800058233,ALLSTAR BUSINESS SOLUTIONS LTD,E2004225756,67,94.51,FUEL,12/02/2015,,Operations Fire Stations,Vehicle Management
800058233,ALLSTAR BUSINESS SOLUTIONS LTD,E2004225756,68,93.78,FUEL,12/02/2015,,Command Units,Vehicle Management
800058233,ALLSTAR BUSINESS SOLUTIONS LTD,E2004225756,69,93.65,FUEL,12/02/2015,,Operations Fire Stations,Vehicle Management
800058233,ALLSTAR BUSINESS SOLUTIONS LTD,E2004225756,70,92.62,FUEL,12/02/2015,,Operations Fire Stations,Vehicle Management
800058233,ALLSTAR BUSINESS SOLUTIONS LTD,E2004225756,71,91.79,FUEL,12/02/2015,,Command Units,Vehicle Management
800058233,ALLSTAR BUSINESS SOLUTIONS LTD,E2004225756,72,83.99,FUEL,12/02/2015,,Operations Fire Stations,Vehicle Management
800058233,ALLSTAR BUSINESS SOLUTIONS LTD,E2004225756,73,82,FUEL,12/02/2015,,Operations Fire Stations,Vehicle Management
800058233,ALLSTAR BUSINESS SOLUTIONS LTD,E2004225756,74,80.29,FUEL,12/02/2015,,Operations Fire Stations,Vehicle Management
800058233,ALLSTAR BUSINESS SOLUTIONS LTD,E2004225756,75,79.98,FUEL,12/02/2015,,Operations Fire Stations,Vehicle Management
800058233,ALLSTAR BUSINESS SOLUTIONS LTD,E2004225756,76,78.02,FUEL,12/02/2015,,Operations Fire Stations,Vehicle Management
800058233,ALLSTAR BUSINESS SOLUTIONS LTD,E2004225756,77,77.5,FUEL,12/02/2015,,Operations Fire Stations,Vehicle Management
800058233,ALLSTAR BUSINESS SOLUTIONS LTD,E2004225756,78,73.21,FUEL,12/02/2015,,Operations Fire Stations,Vehicle Management
800058233,ALLSTAR BUSINESS SOLUTIONS LTD,E2004225756,79,71.64,FUEL,12/02/2015,,LIFE - LFB Funded,Vehicle Management
800058233,ALLSTAR BUSINESS SOLUTIONS LTD,E2004225756,80,70.44,FUEL,12/02/2015,,Operations Fire Stations,Vehicle Management
800058233,ALLSTAR BUSINESS SOLUTIONS LTD,E2004225756,81,69.98,FUEL,12/02/2015,,Operations Fire Stations,Vehicle Management
800058233,ALLSTAR BUSINESS SOLUTIONS LTD,E2004225756,82,64.93,FUEL,12/02/2015,,Operations Fire Stations,Vehicle Management
800058233,ALLSTAR BUSINESS SOLUTIONS LTD,E2004225756,83,63.41,FUEL,12/02/2015,,Operations Non Fire Stations,Vehicle Management
800058233,ALLSTAR BUSINESS SOLUTIONS LTD,E2004225756,84,62.5,FUEL,12/02/2015,,Operational Resilience,Vehicle Management
800058233,ALLSTAR BUSINESS SOLUTIONS LTD,E2004225756,85,61.03,FUEL,12/02/2015,,Smoke Filled Environment Project,Vehicle Management
800058233,ALLSTAR BUSINESS SOLUTIONS LTD,E2004225756,86,59.63,FUEL,12/02/2015,,Command Units,Vehicle Management
800058233,ALLSTAR BUSINESS SOLUTIONS LTD,E2004225756,87,58.86,FUEL,12/02/2015,,Operations Fire Stations,Vehicle Management
800058233,ALLSTAR BUSINESS SOLUTIONS LTD,E2004225756,88,56.67,FUEL,12/02/2015,,Command Units,Vehicle Management
800058233,ALLSTAR BUSINESS SOLUTIONS LTD,E2004225756,89,54.35,FUEL,12/02/2015,,Operations Fire Stations,Vehicle Management
800058233,ALLSTAR BUSINESS SOLUTIONS LTD,E2004225756,90,54.18,FUEL,12/02/2015,,Command Units,Vehicle Management
800058233,ALLSTAR BUSINESS SOLUTIONS LTD,E2004225756,91,48.62,FUEL,12/02/2015,,Command Units,Vehicle Management
800058233,ALLSTAR BUSINESS SOLUTIONS LTD,E2004225756,92,43.3,FUEL,12/02/2015,,Operations Fire Stations,Vehicle Management
800058233,ALLSTAR BUSINESS SOLUTIONS LTD,E2004225756,93,41.57,FUEL,12/02/2015,,Operations Fire Stations,Vehicle Management
800058233,ALLSTAR BUSINESS SOLUTIONS LTD,E2004225756,94,41.12,FUEL,12/02/2015,,CBRN RRT,Vehicle Management
800058233,ALLSTAR BUSINESS SOLUTIONS LTD,E2004225756,95,31.33,FUEL,12/02/2015,,Operations Non Fire Stations,Vehicle Management
020215C,HALL FUELS,I07336618,1,"1,322.70",FUEL,12/02/2015,"1,322.70",Operations Fire Stations,Vehicle Management
050215E,CAPITA BUSINESS SERVICES LTD==,INV-24075,1,350,PROFESSIONAL DEVELOPMENT,12/02/2015,350,Community Safety Delivery,ICT
100215E,MOOLANDS LTD,1755,1,553,TACTICAL DAY TO DAY,16/02/2015,553,Technical And Service Support,"Works - Construction, R&M"
100215E,MOOLANDS LTD,1756,1,492.5,TACTICAL DAY TO DAY,16/02/2015,492.5,Technical And Service Support,"Works - Construction, R&M"
110215C,PAUL EVERS,40215,1,500,GENERAL,16/02/2015,500,LIFE - LFB Funded,Human Resources
140953,THAMES WATER UTILITIES LTD====,06948-88143A,1,732.64,WATER & SEWERAGE RATES,16/02/2015,732.64,Technical And Service Support,Utilities
110215C,OPERATIONAL RESEARCH IN HEALTH,08A/LFB1/53,1,"3,400.00",CONSULTANTS,16/02/2015,"3,400.00",Strategy & Performance,Consultancy
110215C,GUY'S AND ST THOMAS' NHS TRUST,100215,1,750,GENERAL,16/02/2015,750,Communications,Healthcare
100215E,AFFINITY WATER,101051329,1,300,CURRENT HYDRANT COSTS,16/02/2015,300,Operational Resilience,Utilities
090215C,CHANGING YOUNG MINDS,1016,1,150,GENERAL,16/02/2015,450,LIFE - LFB Funded,Human Resources
090215C,CHANGING YOUNG MINDS,1016,2,150,GENERAL,16/02/2015,,LIFE - LFB Funded,Human Resources
090215C,CHANGING YOUNG MINDS,1016,3,150,GENERAL,16/02/2015,,LIFE - LFB Funded,Human Resources
110215C,ROYAL COLLEGE OF MUSIC========,11044486,1,370,PUBLIC RELATIONS,16/02/2015,370,Communications,Facilities & Management S
140953,EDF ENERGY===================,13152100001,1,"8,349.98",ELECTRICITY,16/02/2015,"8,349.98",Technical And Service Support,Utilities
140953,AFFINITY WATER,13273831U,1,636.37,WATER & SEWERAGE RATES,16/02/2015,636.37,Technical And Service Support,Utilities
090215C,HAGEMEYER UK LTD==============,132744713,1,"3,326.70",FIRE DETECTORS,16/02/2015,"3,326.70",Operations Non Fire Stations,Building Constr Materials
110215G,*NPS (SHOES) LTD,14037,1,35,CLOTHING,16/02/2015,"1,370.10",Operations Fire Stations,Clothing
110215G,*NPS (SHOES) LTD,14037,2,35,CLOTHING,16/02/2015,,Operations Fire Stations,Clothing
110215G,*NPS (SHOES) LTD,14037,3,35,CLOTHING,16/02/2015,,Operations Fire Stations,Clothing
110215G,*NPS (SHOES) LTD,14037,4,35,CLOTHING,16/02/2015,,Operations Fire Stations,Clothing
110215G,*NPS (SHOES) LTD,14037,5,35,CLOTHING,16/02/2015,,Operations Fire Stations,Clothing
110215G,*NPS (SHOES) LTD,14037,6,35,CLOTHING,16/02/2015,,Regulatory Fire Safety,Clothing
110215G,*NPS (SHOES) LTD,14037,7,35,CLOTHING,16/02/2015,,Operations Fire Stations,Clothing
110215G,*NPS (SHOES) LTD,14037,8,35,CLOTHING,16/02/2015,,Operational Procedures,Clothing
110215G,*NPS (SHOES) LTD,14037,9,35,CLOTHING,16/02/2015,,Regulatory Fire Safety,Clothing
110215G,*NPS (SHOES) LTD,14037,10,41.1,CLOTHING,16/02/2015,,Operations Fire Stations,Clothing
110215G,*NPS (SHOES) LTD,14037,11,41.1,CLOTHING,16/02/2015,,Operations Fire Stations,Clothing
110215G,*NPS (SHOES) LTD,14037,12,30.05,CLOTHING,16/02/2015,,Operations Non Fire Stations,Clothing
110215G,*NPS (SHOES) LTD,14037,13,30.05,CLOTHING,16/02/2015,,Operations Fire Stations,Clothing
110215G,*NPS (SHOES) LTD,14037,14,30.05,CLOTHING,16/02/2015,,Operations Fire Stations,Clothing
110215G,*NPS (SHOES) LTD,14037,15,30.05,CLOTHING,16/02/2015,,National Operational Guidance Project,Clothing
110215G,*NPS (SHOES) LTD,14037,16,29.45,CLOTHING,16/02/2015,,Operations Fire Stations,Clothing
110215G,*NPS (SHOES) LTD,14037,17,29.45,CLOTHING,16/02/2015,,Operations Fire Stations,Clothing
110215G,*NPS (SHOES) LTD,14037,18,29.45,CLOTHING,16/02/2015,,Operations Fire Stations,Clothing
110215G,*NPS (SHOES) LTD,14037,19,41.1,CLOTHING,16/02/2015,,Operational Resilience,Clothing
110215G,*NPS (SHOES) LTD,14037,20,41.1,CLOTHING,16/02/2015,,National Operational Guidance Project,Clothing
110215G,*NPS (SHOES) LTD,14037,21,30.05,CLOTHING,16/02/2015,,Operations Fire Stations,Clothing
110215G,*NPS (SHOES) LTD,14037,22,30.05,CLOTHING,16/02/2015,,Operations Fire Stations,Clothing
110215G,*NPS (SHOES) LTD,14037,23,30.05,CLOTHING,16/02/2015,,Operations Fire Stations,Clothing
110215G,*NPS (SHOES) LTD,14037,24,30.05,CLOTHING,16/02/2015,,Operations Fire Stations,Clothing
110215G,*NPS (SHOES) LTD,14037,25,30.05,CLOTHING,16/02/2015,,Operations Fire Stations,Clothing
110215G,*NPS (SHOES) LTD,14037,26,30.05,CLOTHING,16/02/2015,,Operations Fire Stations,Clothing
110215G,*NPS (SHOES) LTD,14037,27,35,CLOTHING,16/02/2015,,Operations Fire Stations,Clothing
110215G,*NPS (SHOES) LTD,14037,28,30.05,CLOTHING,16/02/2015,,Operations Fire Stations,Clothing
110215G,*NPS (SHOES) LTD,14037,29,30.05,CLOTHING,16/02/2015,,Operations Fire Stations,Clothing
110215G,*NPS (SHOES) LTD,14037,30,30.05,CLOTHING,16/02/2015,,Operations Fire Stations,Clothing
110215G,*NPS (SHOES) LTD,14037,31,29.45,CLOTHING,16/02/2015,,Operations Fire Stations,Clothing
110215G,*NPS (SHOES) LTD,14037,32,29.45,CLOTHING,16/02/2015,,Operations Fire Stations,Clothing
110215G,*NPS (SHOES) LTD,14037,33,29.45,CLOTHING,16/02/2015,,Operations Fire Stations,Clothing
110215G,*NPS (SHOES) LTD,14037,34,29.45,CLOTHING,16/02/2015,,Operations Fire Stations,Clothing
110215G,*NPS (SHOES) LTD,14037,35,29.45,CLOTHING,16/02/2015,,Operations Fire Stations,Clothing
110215G,*NPS (SHOES) LTD,14037,36,29.45,CLOTHING,16/02/2015,,Operations Fire Stations,Clothing
110215G,*NPS (SHOES) LTD,14037,37,29.45,CLOTHING,16/02/2015,,Operations Fire Stations,Clothing
110215G,*NPS (SHOES) LTD,14037,38,29.45,CLOTHING,16/02/2015,,Operations Fire Stations,Clothing
110215G,*NPS (SHOES) LTD,14037,39,29.45,CLOTHING,16/02/2015,,Operations Fire Stations,Clothing
110215G,*NPS (SHOES) LTD,14037,40,29.45,CLOTHING,16/02/2015,,Operations Fire Stations,Clothing
110215G,*NPS (SHOES) LTD,14037,41,82.2,CLOTHING,16/02/2015,,HR Excluding Secondments,Clothing
140953,THAMES WATER UTILITIES LTD====,1414076262Z,1,310.6,WATER & SEWERAGE RATES,16/02/2015,310.6,Technical And Service Support,Utilities
060215C,SURREY BLIND & CURTAIN CO=====,14518,1,95,FIXTURES & FITTINGS,16/02/2015,275,Technical And Service Support,"Works - Construction, R&M"
060215C,SURREY BLIND & CURTAIN CO=====,14518,2,180,FIXTURES & FITTINGS,16/02/2015,,Technical And Service Support,"Works - Construction, R&M"
060215C,CMT===========================,148087,1,640.08,PROTECTIVE EQUIPT - PARTS,16/02/2015,672.78,Technical and Service Support,Fire & Rescue
060215C,CMT===========================,148087,2,32.7,OPERATIONAL EQUIP-PURCHASE,16/02/2015,,Technical And Service Support,Fire & Rescue
140952,MISS REBECCA THOMAS===========,153427*,1,300,COUNSELS FEES,16/02/2015,300,Legal & Democratic Services,Legal Services
060215C,ENTEL UK LTD==================,161860,1,525,RADIO,16/02/2015,"1,587.80",Information and Communication Technology,ICT
060215C,ENTEL UK LTD==================,161860,2,128.6,RADIO,16/02/2015,,Information and Communication Technology,ICT
060215C,ENTEL UK LTD==================,161860,3,130.2,RADIO,16/02/2015,,Information and Communication Technology,ICT
060215C,ENTEL UK LTD==================,161860,4,315,RADIO,16/02/2015,,Information and Communication Technology,ICT
060215C,ENTEL UK LTD==================,161860,5,480,RADIO,16/02/2015,,Information and Communication Technology,ICT
060215C,ENTEL UK LTD==================,161860,6,9,RADIO,16/02/2015,,Information and Communication Technology,ICT
060215C,GREATER LONDON AUTHORITY======,1800004499,1,"49,509.68",GLA GROUP SHARED SERVICES,16/02/2015,"49,509.68",Legal & Democratic Services,Fire & Rescue
090215C,B NOKES CONTRACTS LTD,2205,1,"1,054.50",STRATEGIC (NON CYCLICAL),16/02/2015,"1,054.50",Technical and Service Support,"Works - Construction, R&M"
090215C,GRADIENT CONSULTANTS LLP======,2223,1,245,ASBESTOS,16/02/2015,"5,880.00",Technical and Service Support,"Works - Construction, R&M"
090215C,GRADIENT CONSULTANTS LLP======,2223,2,245,ASBESTOS,16/02/2015,,Technical and Service Support,"Works - Construction, R&M"
090215C,GRADIENT CONSULTANTS LLP======,2223,3,245,ASBESTOS,16/02/2015,,Technical and Service Support,"Works - Construction, R&M"
090215C,GRADIENT CONSULTANTS LLP======,2223,4,245,ASBESTOS,16/02/2015,,Technical and Service Support,"Works - Construction, R&M"
090215C,GRADIENT CONSULTANTS LLP======,2223,5,245,ASBESTOS,16/02/2015,,Technical and Service Support,"Works - Construction, R&M"
090215C,GRADIENT CONSULTANTS LLP======,2223,6,245,ASBESTOS,16/02/2015,,Technical and Service Support,"Works - Construction, R&M"
090215C,GRADIENT CONSULTANTS LLP======,2223,7,245,ASBESTOS,16/02/2015,,Technical and Service Support,"Works - Construction, R&M"
090215C,GRADIENT CONSULTANTS LLP======,2223,8,245,ASBESTOS,16/02/2015,,Technical and Service Support,"Works - Construction, R&M"
090215C,GRADIENT CONSULTANTS LLP======,2223,9,245,ASBESTOS,16/02/2015,,Technical and Service Support,"Works - Construction, R&M"
090215C,GRADIENT CONSULTANTS LLP======,2223,10,245,ASBESTOS,16/02/2015,,Technical and Service Support,"Works - Construction, R&M"
090215C,GRADIENT CONSULTANTS LLP======,2223,11,245,ASBESTOS,16/02/2015,,Technical and Service Support,"Works - Construction, R&M"
090215C,GRADIENT CONSULTANTS LLP======,2223,12,245,ASBESTOS,16/02/2015,,Technical and Service Support,"Works - Construction, R&M"
090215C,GRADIENT CONSULTANTS LLP======,2223,13,245,ASBESTOS,16/02/2015,,Technical and Service Support,"Works - Construction, R&M"
090215C,GRADIENT CONSULTANTS LLP======,2223,14,245,ASBESTOS,16/02/2015,,Technical and Service Support,"Works - Construction, R&M"
090215C,GRADIENT CONSULTANTS LLP======,2223,15,245,ASBESTOS,16/02/2015,,Technical and Service Support,"Works - Construction, R&M"
090215C,GRADIENT CONSULTANTS LLP======,2223,16,245,ASBESTOS,16/02/2015,,Technical and Service Support,"Works - Construction, R&M"
090215C,GRADIENT CONSULTANTS LLP======,2223,17,245,ASBESTOS,16/02/2015,,Technical and Service Support,"Works - Construction, R&M"
090215C,GRADIENT CONSULTANTS LLP======,2223,18,245,ASBESTOS,16/02/2015,,Technical and Service Support,"Works - Construction, R&M"
090215C,GRADIENT CONSULTANTS LLP======,2223,19,245,ASBESTOS,16/02/2015,,Technical and Service Support,"Works - Construction, R&M"
090215C,GRADIENT CONSULTANTS LLP======,2223,20,245,ASBESTOS,16/02/2015,,Technical and Service Support,"Works - Construction, R&M"
090215C,GRADIENT CONSULTANTS LLP======,2223,21,245,ASBESTOS,16/02/2015,,Technical and Service Support,"Works - Construction, R&M"
090215C,GRADIENT CONSULTANTS LLP======,2223,22,245,ASBESTOS,16/02/2015,,Technical and Service Support,"Works - Construction, R&M"
090215C,GRADIENT CONSULTANTS LLP======,2223,23,245,ASBESTOS,16/02/2015,,Technical and Service Support,"Works - Construction, R&M"
090215C,GRADIENT CONSULTANTS LLP======,2223,24,245,ASBESTOS,16/02/2015,,Technical and Service Support,"Works - Construction, R&M"
110215C,GRADIENT CONSULTANTS LLP======,2227,1,97.5,ASBESTOS,16/02/2015,"16,822.25",Technical and Service Support,"Works - Construction, R&M"
110215C,GRADIENT CONSULTANTS LLP======,2227,2,55,ASBESTOS,16/02/2015,,Technical and Service Support,"Works - Construction, R&M"
110215C,GRADIENT CONSULTANTS LLP======,2227,3,195,ASBESTOS,16/02/2015,,Technical and Service Support,"Works - Construction, R&M"
110215C,GRADIENT CONSULTANTS LLP======,2227,4,97.5,ASBESTOS,16/02/2015,,Technical and Service Support,"Works - Construction, R&M"
110215C,GRADIENT CONSULTANTS LLP======,2227,5,300,ASBESTOS,16/02/2015,,Technical and Service Support,"Works - Construction, R&M"
110215C,GRADIENT CONSULTANTS LLP======,2227,6,55,ASBESTOS,16/02/2015,,Technical and Service Support,"Works - Construction, R&M"
110215C,GRADIENT CONSULTANTS LLP======,2227,7,55,ASBESTOS,16/02/2015,,Technical and Service Support,"Works - Construction, R&M"
110215C,GRADIENT CONSULTANTS LLP======,2227,8,290,ASBESTOS,16/02/2015,,Technical and Service Support,"Works - Construction, R&M"
110215C,GRADIENT CONSULTANTS LLP======,2227,9,545,ASBESTOS,16/02/2015,,Technical and Service Support,"Works - Construction, R&M"
110215C,GRADIENT CONSULTANTS LLP======,2227,10,195,ASBESTOS,16/02/2015,,Technical and Service Support,"Works - Construction, R&M"
110215C,GRADIENT CONSULTANTS LLP======,2227,11,300,ASBESTOS,16/02/2015,,Technical and Service Support,"Works - Construction, R&M"
110215C,GRADIENT CONSULTANTS LLP======,2227,12,290,ASBESTOS,16/02/2015,,Technical and Service Support,"Works - Construction, R&M"
110215C,GRADIENT CONSULTANTS LLP======,2227,13,545,ASBESTOS,16/02/2015,,Technical and Service Support,"Works - Construction, R&M"
110215C,GRADIENT CONSULTANTS LLP======,2227,14,195,ASBESTOS,16/02/2015,,Technical and Service Support,"Works - Construction, R&M"
110215C,GRADIENT CONSULTANTS LLP======,2227,15,55,ASBESTOS,16/02/2015,,Technical and Service Support,"Works - Construction, R&M"
110215C,GRADIENT CONSULTANTS LLP======,2227,16,290,ASBESTOS,16/02/2015,,Technical and Service Support,"Works - Construction, R&M"
110215C,GRADIENT CONSULTANTS LLP======,2227,17,48.75,ASBESTOS,16/02/2015,,Technical and Service Support,"Works - Construction, R&M"
110215C,GRADIENT CONSULTANTS LLP======,2227,18,195,ASBESTOS,16/02/2015,,Technical and Service Support,"Works - Construction, R&M"
110215C,GRADIENT CONSULTANTS LLP======,2227,19,16,ASBESTOS,16/02/2015,,Technical and Service Support,"Works - Construction, R&M"
110215C,GRADIENT CONSULTANTS LLP======,2227,20,55,ASBESTOS,16/02/2015,,Technical and Service Support,"Works - Construction, R&M"
110215C,GRADIENT CONSULTANTS LLP======,2227,21,250,ASBESTOS,16/02/2015,,Technical and Service Support,"Works - Construction, R&M"
110215C,GRADIENT CONSULTANTS LLP======,2227,22,55,ASBESTOS,16/02/2015,,Technical and Service Support,"Works - Construction, R&M"
110215C,GRADIENT CONSULTANTS LLP======,2227,23,290,ASBESTOS,16/02/2015,,Technical and Service Support,"Works - Construction, R&M"
110215C,GRADIENT CONSULTANTS LLP======,2227,24,290,ASBESTOS,16/02/2015,,Technical and Service Support,"Works - Construction, R&M"
110215C,GRADIENT CONSULTANTS LLP======,2227,25,300,ASBESTOS,16/02/2015,,Technical and Service Support,"Works - Construction, R&M"
110215C,GRADIENT CONSULTANTS LLP======,2227,26,280,ASBESTOS,16/02/2015,,Technical and Service Support,"Works - Construction, R&M"
110215C,GRADIENT CONSULTANTS LLP======,2227,27,48.75,ASBESTOS,16/02/2015,,Technical and Service Support,"Works - Construction, R&M"
110215C,GRADIENT CONSULTANTS LLP======,2227,28,75,ASBESTOS,16/02/2015,,Technical and Service Support,"Works - Construction, R&M"
110215C,GRADIENT CONSULTANTS LLP======,2227,29,62.5,ASBESTOS,16/02/2015,,Technical and Service Support,"Works - Construction, R&M"
110215C,GRADIENT CONSULTANTS LLP======,2227,30,97.5,ASBESTOS,16/02/2015,,Technical and Service Support,"Works - Construction, R&M"
110215C,GRADIENT CONSULTANTS LLP======,2227,31,290,ASBESTOS,16/02/2015,,Technical and Service Support,"Works - Construction, R&M"
110215C,GRADIENT CONSULTANTS LLP======,2227,32,97.5,ASBESTOS,16/02/2015,,Technical and Service Support,"Works - Construction, R&M"
110215C,GRADIENT CONSULTANTS LLP======,2227,33,55,ASBESTOS,16/02/2015,,Technical and Service Support,"Works - Construction, R&M"
110215C,GRADIENT CONSULTANTS LLP======,2227,34,290,ASBESTOS,16/02/2015,,Technical and Service Support,"Works - Construction, R&M"
110215C,GRADIENT CONSULTANTS LLP======,2227,35,125,ASBESTOS,16/02/2015,,Technical and Service Support,"Works - Construction, R&M"
110215C,GRADIENT CONSULTANTS LLP======,2227,36,97.5,ASBESTOS,16/02/2015,,Technical and Service Support,"Works - Construction, R&M"
110215C,GRADIENT CONSULTANTS LLP======,2227,37,55,ASBESTOS,16/02/2015,,Technical and Service Support,"Works - Construction, R&M"
110215C,GRADIENT CONSULTANTS LLP======,2227,38,20,ASBESTOS,16/02/2015,,Technical and Service Support,"Works - Construction, R&M"
110215C,GRADIENT CONSULTANTS LLP======,2227,39,445,ASBESTOS,16/02/2015,,Technical and Service Support,"Works - Construction, R&M"
110215C,GRADIENT CONSULTANTS LLP======,2227,40,55,ASBESTOS,16/02/2015,,Technical and Service Support,"Works - Construction, R&M"
110215C,GRADIENT CONSULTANTS LLP======,2227,41,20,ASBESTOS,16/02/2015,,Technical and Service Support,"Works - Construction, R&M"
110215C,GRADIENT CONSULTANTS LLP======,2227,42,97.5,ASBESTOS,16/02/2015,,Technical and Service Support,"Works - Construction, R&M"
110215C,GRADIENT CONSULTANTS LLP======,2227,43,290,ASBESTOS,16/02/2015,,Technical and Service Support,"Works - Construction, R&M"
110215C,GRADIENT CONSULTANTS LLP======,2227,44,55,ASBESTOS,16/02/2015,,Technical and Service Support,"Works - Construction, R&M"
110215C,GRADIENT CONSULTANTS LLP======,2227,45,97.5,ASBESTOS,16/02/2015,,Technical and Service Support,"Works - Construction, R&M"
110215C,GRADIENT CONSULTANTS LLP======,2227,46,97.5,ASBESTOS,16/02/2015,,Technical and Service Support,"Works - Construction, R&M"
110215C,GRADIENT CONSULTANTS LLP======,2227,47,80,ASBESTOS,16/02/2015,,Technical and Service Support,"Works - Construction, R&M"
110215C,GRADIENT CONSULTANTS LLP======,2227,48,290,ASBESTOS,16/02/2015,,Technical and Service Support,"Works - Construction, R&M"
110215C,GRADIENT CONSULTANTS LLP======,2227,49,55,ASBESTOS,16/02/2015,,Technical and Service Support,"Works - Construction, R&M"
110215C,GRADIENT CONSULTANTS LLP======,2227,50,55,ASBESTOS,16/02/2015,,Technical and Service Support,"Works - Construction, R&M"
110215C,GRADIENT CONSULTANTS LLP======,2227,51,55,ASBESTOS,16/02/2015,,Technical and Service Support,"Works - Construction, R&M"
110215C,GRADIENT CONSULTANTS LLP======,2227,52,290,ASBESTOS,16/02/2015,,Technical and Service Support,"Works - Construction, R&M"
110215C,GRADIENT CONSULTANTS LLP======,2227,53,195,ASBESTOS,16/02/2015,,Technical and Service Support,"Works - Construction, R&M"
110215C,GRADIENT CONSULTANTS LLP======,2227,54,290,ASBESTOS,16/02/2015,,Technical and Service Support,"Works - Construction, R&M"
110215C,GRADIENT CONSULTANTS LLP======,2227,55,290,ASBESTOS,16/02/2015,,Technical and Service Support,"Works - Construction, R&M"
110215C,GRADIENT CONSULTANTS LLP======,2227,56,250,ASBESTOS,16/02/2015,,Technical and Service Support,"Works - Construction, R&M"
110215C,GRADIENT CONSULTANTS LLP======,2227,57,250,ASBESTOS,16/02/2015,,Technical and Service Support,"Works - Construction, R&M"
110215C,GRADIENT CONSULTANTS LLP======,2227,58,290,ASBESTOS,16/02/2015,,Technical and Service Support,"Works - Construction, R&M"
110215C,GRADIENT CONSULTANTS LLP======,2227,59,55,ASBESTOS,16/02/2015,,Technical and Service Support,"Works - Construction, R&M"
110215C,GRADIENT CONSULTANTS LLP======,2227,60,97.5,ASBESTOS,16/02/2015,,Technical and Service Support,"Works - Construction, R&M"
110215C,GRADIENT CONSULTANTS LLP======,2227,61,290,ASBESTOS,16/02/2015,,Technical and Service Support,"Works - Construction, R&M"
110215C,GRADIENT CONSULTANTS LLP======,2227,62,245,ASBESTOS,16/02/2015,,Technical and Service Support,"Works - Construction, R&M"
110215C,GRADIENT CONSULTANTS LLP======,2227,63,290,ASBESTOS,16/02/2015,,Technical and Service Support,"Works - Construction, R&M"
110215C,GRADIENT CONSULTANTS LLP======,2227,64,55,ASBESTOS,16/02/2015,,Technical and Service Support,"Works - Construction, R&M"
110215C,GRADIENT CONSULTANTS LLP======,2227,65,290,ASBESTOS,16/02/2015,,Technical and Service Support,"Works - Construction, R&M"
110215C,GRADIENT CONSULTANTS LLP======,2227,66,187.5,ASBESTOS,16/02/2015,,Technical and Service Support,"Works - Construction, R&M"
110215C,GRADIENT CONSULTANTS LLP======,2227,67,55,ASBESTOS,16/02/2015,,Technical and Service Support,"Works - Construction, R&M"
110215C,GRADIENT CONSULTANTS LLP======,2227,68,290,ASBESTOS,16/02/2015,,Technical and Service Support,"Works - Construction, R&M"
110215C,GRADIENT CONSULTANTS LLP======,2227,69,97.5,ASBESTOS,16/02/2015,,Technical and Service Support,"Works - Construction, R&M"
110215C,GRADIENT CONSULTANTS LLP======,2227,70,290,ASBESTOS,16/02/2015,,Technical and Service Support,"Works - Construction, R&M"
110215C,GRADIENT CONSULTANTS LLP======,2227,71,195,ASBESTOS,16/02/2015,,Technical and Service Support,"Works - Construction, R&M"
110215C,GRADIENT CONSULTANTS LLP======,2227,72,103.75,ASBESTOS,16/02/2015,,Technical and Service Support,"Works - Construction, R&M"
110215C,GRADIENT CONSULTANTS LLP======,2227,73,195,ASBESTOS,16/02/2015,,Technical and Service Support,"Works - Construction, R&M"
110215C,GRADIENT CONSULTANTS LLP======,2227,74,195,ASBESTOS,16/02/2015,,Technical and Service Support,"Works - Construction, R&M"
110215C,GRADIENT CONSULTANTS LLP======,2227,75,55,ASBESTOS,16/02/2015,,Technical and Service Support,"Works - Construction, R&M"
110215C,GRADIENT CONSULTANTS LLP======,2227,76,245,ASBESTOS,16/02/2015,,Technical and Service Support,"Works - Construction, R&M"
110215C,GRADIENT CONSULTANTS LLP======,2227,77,97.5,ASBESTOS,16/02/2015,,Technical and Service Support,"Works - Construction, R&M"
110215C,GRADIENT CONSULTANTS LLP======,2227,78,290,ASBESTOS,16/02/2015,,Technical and Service Support,"Works - Construction, R&M"
110215C,GRADIENT CONSULTANTS LLP======,2227,79,55,ASBESTOS,16/02/2015,,Technical and Service Support,"Works - Construction, R&M"
110215C,GRADIENT CONSULTANTS LLP======,2227,80,55,ASBESTOS,16/02/2015,,Technical and Service Support,"Works - Construction, R&M"
110215C,GRADIENT CONSULTANTS LLP======,2227,81,55,ASBESTOS,16/02/2015,,Technical and Service Support,"Works - Construction, R&M"
110215C,GRADIENT CONSULTANTS LLP======,2227,82,290,ASBESTOS,16/02/2015,,Technical and Service Support,"Works - Construction, R&M"
110215C,GRADIENT CONSULTANTS LLP======,2227,83,55,ASBESTOS,16/02/2015,,Technical and Service Support,"Works - Construction, R&M"
110215C,GRADIENT CONSULTANTS LLP======,2227,84,40,ASBESTOS,16/02/2015,,Technical and Service Support,"Works - Construction, R&M"
110215C,GRADIENT CONSULTANTS LLP======,2227,85,195,ASBESTOS,16/02/2015,,Technical and Service Support,"Works - Construction, R&M"
110215C,GRADIENT CONSULTANTS LLP======,2227,86,195,ASBESTOS,16/02/2015,,Technical and Service Support,"Works - Construction, R&M"
110215C,GRADIENT CONSULTANTS LLP======,2227,87,55,ASBESTOS,16/02/2015,,Technical and Service Support,"Works - Construction, R&M"
110215C,GRADIENT CONSULTANTS LLP======,2227,88,55,ASBESTOS,16/02/2015,,Technical and Service Support,"Works - Construction, R&M"
110215C,GRADIENT CONSULTANTS LLP======,2227,89,55,ASBESTOS,16/02/2015,,Technical and Service Support,"Works - Construction, R&M"
110215C,GRADIENT CONSULTANTS LLP======,2227,90,290,ASBESTOS,16/02/2015,,Technical and Service Support,"Works - Construction, R&M"
110215C,GRADIENT CONSULTANTS LLP======,2227,91,195,ASBESTOS,16/02/2015,,Technical and Service Support,"Works - Construction, R&M"
110215C,GRADIENT CONSULTANTS LLP======,2227,92,20,ASBESTOS,16/02/2015,,Technical and Service Support,"Works - Construction, R&M"
110215C,GRADIENT CONSULTANTS LLP======,2227,93,195,ASBESTOS,16/02/2015,,Technical and Service Support,"Works - Construction, R&M"
110215C,GRADIENT CONSULTANTS LLP======,2227,94,97.5,ASBESTOS,16/02/2015,,Technical and Service Support,"Works - Construction, R&M"
110215C,GRADIENT CONSULTANTS LLP======,2227,95,290,ASBESTOS,16/02/2015,,Technical and Service Support,"Works - Construction, R&M"
110215C,GRADIENT CONSULTANTS LLP======,2227,96,290,ASBESTOS,16/02/2015,,Technical and Service Support,"Works - Construction, R&M"
110215C,GRADIENT CONSULTANTS LLP======,2227,97,345,ASBESTOS,16/02/2015,,Technical and Service Support,"Works - Construction, R&M"
110215C,GRADIENT CONSULTANTS LLP======,2227,98,120,ASBESTOS,16/02/2015,,Technical And Service Support,"Works - Construction, R&M"
110215C,GRADIENT CONSULTANTS LLP======,2227,99,55,ASBESTOS,16/02/2015,,Technical and Service Support,"Works - Construction, R&M"
110215C,GRADIENT CONSULTANTS LLP======,2228,1,105,ASBESTOS,16/02/2015,"1,000.00",Technical and Service Support,"Works - Construction, R&M"
110215C,GRADIENT CONSULTANTS LLP======,2228,2,105,ASBESTOS,16/02/2015,,Technical and Service Support,"Works - Construction, R&M"
110215C,GRADIENT CONSULTANTS LLP======,2228,3,105,ASBESTOS,16/02/2015,,Technical and Service Support,"Works - Construction, R&M"
110215C,GRADIENT CONSULTANTS LLP======,2228,4,105,ASBESTOS,16/02/2015,,Technical and Service Support,"Works - Construction, R&M"
110215C,GRADIENT CONSULTANTS LLP======,2228,5,105,ASBESTOS,16/02/2015,,Technical and Service Support,"Works - Construction, R&M"
110215C,GRADIENT CONSULTANTS LLP======,2228,6,55,ASBESTOS,16/02/2015,,Technical and Service Support,"Works - Construction, R&M"
110215C,GRADIENT CONSULTANTS LLP======,2228,7,105,ASBESTOS,16/02/2015,,Technical and Service Support,"Works - Construction, R&M"
110215C,GRADIENT CONSULTANTS LLP======,2228,8,105,ASBESTOS,16/02/2015,,Technical and Service Support,"Works - Construction, R&M"
110215C,GRADIENT CONSULTANTS LLP======,2228,9,105,ASBESTOS,16/02/2015,,Technical and Service Support,"Works - Construction, R&M"
110215C,GRADIENT CONSULTANTS LLP======,2228,10,105,ASBESTOS,16/02/2015,,Technical and Service Support,"Works - Construction, R&M"
100215E,TRADE WINDS===================,22479,1,339,PRINTING,16/02/2015,339,Communications,Facilities & Management S
140953,EDF ENERGY===================,23682100001,1,"16,837.20",ELECTRICITY,16/02/2015,"16,837.20",Technical And Service Support,Utilities
100215E,B NOKES CONTRACTS LTD,2373,1,627,REMOVALS,16/02/2015,627,Technical And Service Support,"Works - Construction, R&M"
100215E,B NOKES CONTRACTS LTD,2452,1,"4,544.50",STRATEGIC (NON CYCLICAL),16/02/2015,"4,544.50",Technical and Service Support,"Works - Construction, R&M"
100215E,B NOKES CONTRACTS LTD,2561,1,420,CONSULTANTS,16/02/2015,420,Control & Mobilising Services,"Works - Construction, R&M"
100215E,B NOKES CONTRACTS LTD,2574,1,822,REMOVALS,16/02/2015,822,Technical And Service Support,"Works - Construction, R&M"
090215C,B NOKES CONTRACTS LTD,2575,1,"3,295.00",STRATEGIC (NON CYCLICAL),16/02/2015,"3,295.00",Technical and Service Support,"Works - Construction, R&M"
090215C,B NOKES CONTRACTS LTD,2576,1,"3,120.00",STRATEGIC (NON CYCLICAL),16/02/2015,"3,120.00",Technical and Service Support,"Works - Construction, R&M"
090215C,B NOKES CONTRACTS LTD,2577,1,"5,783.50",STRATEGIC (NON CYCLICAL),16/02/2015,"5,783.50",Technical and Service Support,"Works - Construction, R&M"
100215E,B NOKES CONTRACTS LTD,2578,1,"2,352.50",REMOVALS,16/02/2015,"2,352.50",Technical And Service Support,"Works - Construction, R&M"
100215E,B NOKES CONTRACTS LTD,2579,1,530,TACTICAL DAY TO DAY,16/02/2015,530,Technical And Service Support,"Works - Construction, R&M"
090215C,B NOKES CONTRACTS LTD,2584,1,"2,150.00",STRATEGIC (NON CYCLICAL),16/02/2015,"2,150.00",Technical and Service Support,"Works - Construction, R&M"
090215C,B NOKES CONTRACTS LTD,2585,1,"1,420.50",STRATEGIC (NON CYCLICAL),16/02/2015,"1,420.50",Technical and Service Support,"Works - Construction, R&M"
090215C,B NOKES CONTRACTS LTD,2586,1,"5,762.75",STRATEGIC (NON CYCLICAL),16/02/2015,"5,762.75",Technical and Service Support,"Works - Construction, R&M"
090215C,B NOKES CONTRACTS LTD,2587,1,"1,236.00",STRATEGIC (NON CYCLICAL),16/02/2015,"1,236.00",Technical and Service Support,"Works - Construction, R&M"
090215C,B NOKES CONTRACTS LTD,2588,1,"4,600.00",STRATEGIC (NON CYCLICAL),16/02/2015,"4,600.00",Technical and Service Support,"Works - Construction, R&M"
100215E,ARKAS LIMITED=================,26339,1,"3,224.00",STRATEGIC (CYCLICAL),16/02/2015,"3,224.00",Technical and Service Support,"Works - Construction, R&M"
110215C,ARKAS LIMITED=================,26598,1,"2,019.60",DEVELOPMENT  EXPENSES-CONTRACT,16/02/2015,"2,019.60",Technical and Service Support,"Works - Construction, R&M"
800058301,ADECCO UK LIMITED=============,26971973,1,439.6,FRS STAFF AGENCY,16/02/2015,439.6,Operations Non Fire Stations,Human Resources
800057371,ADECCO UK LIMITED=============,26986674,1,570.88,FRS STAFF AGENCY,16/02/2015,570.88,Operational Directorates Support Group,Human Resources
800058304,ADECCO UK LIMITED=============,27002217,1,439.6,FRS STAFF AGENCY,16/02/2015,439.6,Operations Non Fire Stations,Human Resources
800058205,ADECCO UK LIMITED=============,27046073,1,624.4,FRS STAFF AGENCY,16/02/2015,624.4,Regulatory Fire Safety,Human Resources
800057982,ADECCO UK LIMITED=============,27046089,1,973.14,FRS STAFF AGENCY,16/02/2015,973.14,Review of Property Services,Human Resources
800057992,ADECCO UK LIMITED=============,27046099,1,332.85,FRS STAFF AGENCY,16/02/2015,332.85,Regulatory Fire Safety,Human Resources
800058069,ADECCO UK LIMITED=============,27052411,1,635.17,FRS STAFF AGENCY,16/02/2015,635.17,Corporate Management Secretariat,Human Resources
800058070,ADECCO UK LIMITED=============,27052412,1,"1,961.80",FRS STAFF AGENCY,16/02/2015,"1,961.80",Legal & Democratic Services,Human Resources
140952,MBL SEMINARS=================,280926,1,500,PROFESSIONAL DEVELOPMENT,16/02/2015,500,Legal & Democratic Services,Human Resources
060215C,VIGILANCE PROPERTIES,2836,1,984,DEVELOPMENT  EXPENSES-CONTRACT,16/02/2015,"5,609.00",Technical and Service Support,Facilities & Management S
060215C,VIGILANCE PROPERTIES,2836,2,"4,625.00",PREMISES SECURITY,16/02/2015,,Technical And Service Support,Facilities & Management S
140953,EDF ENERGY===================,3015210001,1,"1,220.91",ELECTRICITY,16/02/2015,"1,220.91",Technical And Service Support,Utilities
100215E,STORM TECHNOLOGIES============,310160,1,"2,895.06",ACQUISITIONS,16/02/2015,"2,895.06",Information and Communication Technology,ICT
110215C,EUROLOOS LTD,34045,1,850,OPERATIONAL EQUIP-PURCHASE,16/02/2015,850,Operations Non Fire Stations,Facilities & Management S
090215C,PRESTIGE PROJECTS LTD,3437,1,"1,120.00",OPERATIONAL EQUIP-PURCHASE,16/02/2015,"1,120.00",Community Safety Delivery,Social Community Care S&S
110215C,EVOLUTION ENVIRONMENTAL LTD,3482,1,290,ASBESTOS,16/02/2015,640,Technical and Service Support,"Works - Construction, R&M"
110215C,EVOLUTION ENVIRONMENTAL LTD,3482,2,175,ASBESTOS,16/02/2015,,Technical and Service Support,"Works - Construction, R&M"
110215C,EVOLUTION ENVIRONMENTAL LTD,3482,3,175,ASBESTOS,16/02/2015,,Technical and Service Support,"Works - Construction, R&M"
100215E,CARPETS & FLOOR COVERS DIRECT=,3502,1,"2,864.00",FIXTURES & FITTINGS,16/02/2015,"2,864.00",Technical And Service Support,Building Constr Materials
110215C,CARPETS & FLOOR COVERS DIRECT=,3510,1,"3,468.90",STRATEGIC (NON CYCLICAL),16/02/2015,"3,468.90",Technical and Service Support,Building Constr Materials
090215C,UNDERSTANDING RECRUITMENT,3570,1,"6,300.00",FRS STAFF AGENCY,16/02/2015,"6,300.00",Information and Communication Technology,Human Resources
140952,MS HELEN PAGETT,422834,1,315,COUNSELS FEES,16/02/2015,315,Legal & Democratic Services,Legal Services
060215C,KNIGHTON CLEANING SERVICES LTD,43821,1,"3,135.54",HYGIENE,16/02/2015,"3,135.54",Technical And Service Support,Cleaning & Janitorial
140953,EDF ENERGY===================,44252100001,1,"11,223.24",ELECTRICITY,16/02/2015,"11,223.24",Technical And Service Support,Utilities
060215C,KNIGHTON CLEANING SERVICES LTD,44757,1,"2,814.29",HYGIENE,16/02/2015,"2,814.29",Technical And Service Support,Cleaning & Janitorial
060215C,KNIGHTON CLEANING SERVICES LTD,44825,1,"2,186.94",GENERAL CLEANS,16/02/2015,"74,970.12",Technical And Service Support,Cleaning & Janitorial
060215C,KNIGHTON CLEANING SERVICES LTD,44825,2,"2,023.46",GENERAL CLEANS,16/02/2015,,Technical And Service Support,Cleaning & Janitorial
060215C,KNIGHTON CLEANING SERVICES LTD,44825,3,"1,428.84",GENERAL CLEANS,16/02/2015,,Technical And Service Support,Cleaning & Janitorial
060215C,KNIGHTON CLEANING SERVICES LTD,44825,4,"1,154.62",GENERAL CLEANS,16/02/2015,,Technical And Service Support,Cleaning & Janitorial
060215C,KNIGHTON CLEANING SERVICES LTD,44825,5,"1,207.35",GENERAL CLEANS,16/02/2015,,Technical And Service Support,Cleaning & Janitorial
060215C,KNIGHTON CLEANING SERVICES LTD,44825,6,"1,068.32",GENERAL CLEANS,16/02/2015,,Technical And Service Support,Cleaning & Janitorial
060215C,KNIGHTON CLEANING SERVICES LTD,44825,7,758.96,GENERAL CLEANS,16/02/2015,,Technical And Service Support,Cleaning & Janitorial
060215C,KNIGHTON CLEANING SERVICES LTD,44825,8,"1,263.99",GENERAL CLEANS,16/02/2015,,Technical And Service Support,Cleaning & Janitorial
060215C,KNIGHTON CLEANING SERVICES LTD,44825,9,"1,078.24",GENERAL CLEANS,16/02/2015,,Technical And Service Support,Cleaning & Janitorial
060215C,KNIGHTON CLEANING SERVICES LTD,44825,10,"1,835.67",GENERAL CLEANS,16/02/2015,,Technical And Service Support,Cleaning & Janitorial
060215C,KNIGHTON CLEANING SERVICES LTD,44825,11,"2,260.06",GENERAL CLEANS,16/02/2015,,Technical And Service Support,Cleaning & Janitorial
060215C,KNIGHTON CLEANING SERVICES LTD,44825,12,775.23,GENERAL CLEANS,16/02/2015,,Technical And Service Support,Cleaning & Janitorial
060215C,KNIGHTON CLEANING SERVICES LTD,44825,13,"1,448.52",GENERAL CLEANS,16/02/2015,,Technical And Service Support,Cleaning & Janitorial
060215C,KNIGHTON CLEANING SERVICES LTD,44825,14,763.25,GENERAL CLEANS,16/02/2015,,Technical And Service Support,Cleaning & Janitorial
060215C,KNIGHTON CLEANING SERVICES LTD,44825,15,"1,517.78",GENERAL CLEANS,16/02/2015,,Technical And Service Support,Cleaning & Janitorial
060215C,KNIGHTON CLEANING SERVICES LTD,44825,16,"1,752.14",GENERAL CLEANS,16/02/2015,,Technical And Service Support,Cleaning & Janitorial
060215C,KNIGHTON CLEANING SERVICES LTD,44825,17,614.43,GENERAL CLEANS,16/02/2015,,Technical And Service Support,Cleaning & Janitorial
060215C,KNIGHTON CLEANING SERVICES LTD,44825,18,"2,302.80",GENERAL CLEANS,16/02/2015,,Technical And Service Support,Cleaning & Janitorial
060215C,KNIGHTON CLEANING SERVICES LTD,44825,19,"1,838.05",GENERAL CLEANS,16/02/2015,,Technical And Service Support,Cleaning & Janitorial
060215C,KNIGHTON CLEANING SERVICES LTD,44825,20,931.96,GENERAL CLEANS,16/02/2015,,Technical And Service Support,Cleaning & Janitorial
060215C,KNIGHTON CLEANING SERVICES LTD,44825,21,933.18,GENERAL CLEANS,16/02/2015,,Technical And Service Support,Cleaning & Janitorial
060215C,KNIGHTON CLEANING SERVICES LTD,44825,22,"1,083.13",GENERAL CLEANS,16/02/2015,,Technical And Service Support,Cleaning & Janitorial
060215C,KNIGHTON CLEANING SERVICES LTD,44825,23,"1,767.94",GENERAL CLEANS,16/02/2015,,Technical And Service Support,Cleaning & Janitorial
060215C,KNIGHTON CLEANING SERVICES LTD,44825,24,"1,050.67",GENERAL CLEANS,16/02/2015,,Technical And Service Support,Cleaning & Janitorial
060215C,KNIGHTON CLEANING SERVICES LTD,44825,25,824.34,GENERAL CLEANS,16/02/2015,,Technical And Service Support,Cleaning & Janitorial
060215C,KNIGHTON CLEANING SERVICES LTD,44825,26,971.22,GENERAL CLEANS,16/02/2015,,Technical And Service Support,Cleaning & Janitorial
060215C,KNIGHTON CLEANING SERVICES LTD,44825,27,"1,335.48",GENERAL CLEANS,16/02/2015,,Technical And Service Support,Cleaning & Janitorial
060215C,KNIGHTON CLEANING SERVICES LTD,44825,28,771.83,GENERAL CLEANS,16/02/2015,,Technical And Service Support,Cleaning & Janitorial
060215C,KNIGHTON CLEANING SERVICES LTD,44825,29,"1,557.08",GENERAL CLEANS,16/02/2015,,Technical And Service Support,Cleaning & Janitorial
060215C,KNIGHTON CLEANING SERVICES LTD,44825,30,"1,109.10",GENERAL CLEANS,16/02/2015,,Technical And Service Support,Cleaning & Janitorial
060215C,KNIGHTON CLEANING SERVICES LTD,44825,31,"1,395.51",GENERAL CLEANS,16/02/2015,,Technical And Service Support,Cleaning & Janitorial
060215C,KNIGHTON CLEANING SERVICES LTD,44825,32,784.09,GENERAL CLEANS,16/02/2015,,Technical And Service Support,Cleaning & Janitorial
060215C,KNIGHTON CLEANING SERVICES LTD,44825,33,939.33,GENERAL CLEANS,16/02/2015,,Technical And Service Support,Cleaning & Janitorial
060215C,KNIGHTON CLEANING SERVICES LTD,44825,34,698.83,GENERAL CLEANS,16/02/2015,,Technical And Service Support,Cleaning & Janitorial
060215C,KNIGHTON CLEANING SERVICES LTD,44825,35,"1,514.40",GENERAL CLEANS,16/02/2015,,Technical And Service Support,Cleaning & Janitorial
060215C,KNIGHTON CLEANING SERVICES LTD,44825,36,"1,337.32",GENERAL CLEANS,16/02/2015,,Technical And Service Support,Cleaning & Janitorial
060215C,KNIGHTON CLEANING SERVICES LTD,44825,37,951.28,GENERAL CLEANS,16/02/2015,,Technical And Service Support,Cleaning & Janitorial
060215C,KNIGHTON CLEANING SERVICES LTD,44825,38,"2,634.42",GENERAL CLEANS,16/02/2015,,Technical And Service Support,Cleaning & Janitorial
060215C,KNIGHTON CLEANING SERVICES LTD,44825,39,"1,034.69",GENERAL CLEANS,16/02/2015,,Technical And Service Support,Cleaning & Janitorial
060215C,KNIGHTON CLEANING SERVICES LTD,44825,40,"1,081.80",GENERAL CLEANS,16/02/2015,,Technical And Service Support,Cleaning & Janitorial
060215C,KNIGHTON CLEANING SERVICES LTD,44825,41,"1,046.98",GENERAL CLEANS,16/02/2015,,Technical And Service Support,Cleaning & Janitorial
060215C,KNIGHTON CLEANING SERVICES LTD,44825,42,949.77,GENERAL CLEANS,16/02/2015,,Technical And Service Support,Cleaning & Janitorial
060215C,KNIGHTON CLEANING SERVICES LTD,44825,43,399.42,GENERAL CLEANS,16/02/2015,,Technical And Service Support,Cleaning & Janitorial
060215C,KNIGHTON CLEANING SERVICES LTD,44825,44,"2,279.98",GENERAL CLEANS,16/02/2015,,Technical And Service Support,Cleaning & Janitorial
060215C,KNIGHTON CLEANING SERVICES LTD,44825,45,"1,858.45",GENERAL CLEANS,16/02/2015,,Technical And Service Support,Cleaning & Janitorial
060215C,KNIGHTON CLEANING SERVICES LTD,44825,46,"1,044.82",GENERAL CLEANS,16/02/2015,,Technical And Service Support,Cleaning & Janitorial
060215C,KNIGHTON CLEANING SERVICES LTD,44825,47,689.04,GENERAL CLEANS,16/02/2015,,Technical And Service Support,Cleaning & Janitorial
060215C,KNIGHTON CLEANING SERVICES LTD,44825,48,680.46,GENERAL CLEANS,16/02/2015,,Technical And Service Support,Cleaning & Janitorial
060215C,KNIGHTON CLEANING SERVICES LTD,44825,49,790.88,GENERAL CLEANS,16/02/2015,,Technical And Service Support,Cleaning & Janitorial
060215C,KNIGHTON CLEANING SERVICES LTD,44825,50,"2,322.07",GENERAL CLEANS,16/02/2015,,Technical And Service Support,Cleaning & Janitorial
060215C,KNIGHTON CLEANING SERVICES LTD,44825,51,919.77,GENERAL CLEANS,16/02/2015,,Technical And Service Support,Cleaning & Janitorial
060215C,KNIGHTON CLEANING SERVICES LTD,44825,52,"1,593.07",GENERAL CLEANS,16/02/2015,,Technical And Service Support,Cleaning & Janitorial
060215C,KNIGHTON CLEANING SERVICES LTD,44825,53,"2,624.01",GENERAL CLEANS,16/02/2015,,Technical And Service Support,Cleaning & Janitorial
060215C,KNIGHTON CLEANING SERVICES LTD,44825,54,769.1,GENERAL CLEANS,16/02/2015,,Technical And Service Support,Cleaning & Janitorial
060215C,KNIGHTON CLEANING SERVICES LTD,44825,55,785.95,GENERAL CLEANS,16/02/2015,,Technical And Service Support,Cleaning & Janitorial
060215C,KNIGHTON CLEANING SERVICES LTD,44825,56,13,GENERAL CLEANS,16/02/2015,,Technical And Service Support,Cleaning & Janitorial
060215C,KNIGHTON CLEANING SERVICES LTD,44825,57,"1,068.72",GENERAL CLEANS,16/02/2015,,Technical And Service Support,Cleaning & Janitorial
060215C,KNIGHTON CLEANING SERVICES LTD,44825,58,811.71,GENERAL CLEANS,16/02/2015,,Technical And Service Support,Cleaning & Janitorial
060215C,KNIGHTON CLEANING SERVICES LTD,44825,59,"1,055.41",GENERAL CLEANS,16/02/2015,,Technical And Service Support,Cleaning & Janitorial
060215C,KNIGHTON CLEANING SERVICES LTD,44825,60,"1,281.26",GENERAL CLEANS,16/02/2015,,Technical And Service Support,Cleaning & Janitorial
060215C,KNIGHTON CLEANING SERVICES LTD,44826,1,994.97,GENERAL CLEANS,16/02/2015,"71,694.48",Technical And Service Support,Cleaning & Janitorial
060215C,KNIGHTON CLEANING SERVICES LTD,44826,2,"1,097.63",GENERAL CLEANS,16/02/2015,,Technical And Service Support,Cleaning & Janitorial
060215C,KNIGHTON CLEANING SERVICES LTD,44826,3,"1,028.74",GENERAL CLEANS,16/02/2015,,Technical And Service Support,Cleaning & Janitorial
060215C,KNIGHTON CLEANING SERVICES LTD,44826,4,"1,239.39",GENERAL CLEANS,16/02/2015,,Technical And Service Support,Cleaning & Janitorial
060215C,KNIGHTON CLEANING SERVICES LTD,44826,5,602.72,GENERAL CLEANS,16/02/2015,,Technical And Service Support,Cleaning & Janitorial
